Workbook

Sheet Micro canal
B2: Selectiontool Micro Canal
G4: Taal/Language/Sprache | H4: 0 | I4: 0 | J4: 0 | K4: English
G5: Langue/Språk/Lengua/Jazyk
G6: =IF(cal!$S$7=1,"Uitvoering",IF(cal!$S$7=2,"Version",IF(cal!$S$7=3,"Ausfürhung",IF(cal!$S$7=4,"Version",IF(cal!$S$7=5,"Modell",IF(cal!$S$7=6,"Version",IF(cal!$S$7=7,"Modell",IF(cal!$S$7=8,"Verze",IF(cal!$S$7=9,"Version",IF(cal!$S$7=10,"Version",IF(cal!$S$7=11,"Version",))))))))))) -> Version | K6: Micro H6 B14
B8: =cal!B7 -> Temperatures
B9: =cal!B8 -> Heating: | M9: 0 | N9: 0
B10: =cal!B9 -> Inlet temp. | E10: 75 | M10: =cal!M9 -> Unit conversion
B11: =cal!B10 -> Return temp. | C11: =cal!C10 -> 0 | D11: =cal!D10 -> 0 | E11: 65
B12: =cal!B11 -> Room temp. | C12: =cal!C11 -> 0 | D12: =cal!D11 -> 0 | E12: 20
D15: =cal!D14 -> 0 | E15: =cal!E14 -> 1 | F15: =cal!F14 -> 1 | G15: 3.412141633 | H15: =cal!H14 -> 1 | I15: =cal!I14 -> 1 | J15: =cal!J14 -> 1 | K15: =cal!K14 -> 0 | L15: =cal!L14 -> 0 | M15: =cal!M14 -> 0 | N15: =cal!N14 -> 1
B16: =cal!B15 -> Speed level: | C16: =cal!C15 -> Control voltage [V] | D16: =cal!D15 -> Heat output * 75/65/20 [W] | E16: =cal!E15 -> Water flowrate, heating [l/h] | F16: =cal!F15 -> Watersided pressure loss [kPa] | K16: =cal!K15 -> Sound pressure *** [dB(A)] | L16: =cal!L15 -> Sound power ** [dB(A)] | M16: =cal!M15 -> Electrical power [W] | N16: =cal!N15 -> Air flowrate [m³/h] | O16: =cal!O15 -> Air exhaust temp. heating [°C] | P16: =cal!P15 -> Air exhaust temp. cooling [°C]
B17: =cal!B16 -> Micro Canal height 6 cm width 14 cm length 60 cm (Type 1)
B18: =cal!B17 -> 0.2 | C18: =cal!C17 -> 2 | D18: =IF($E$10<=$E$11,cal!$AC$3,cal!D17) -> 59.7 | E18: =IF($E$10<=$E$11,"",cal!E17) -> 5 | F18: =IF($E$10<=$E$11,"",cal!F17) -> 0.001142587369 | K18: =cal!K17 -> 13.8 | L18: =cal!L17 -> 21.8 | M18: =cal!M17 -> 0.51 | N18: =cal!N17 -> 11
B19: =cal!B18 -> 0.4 | C19: =cal!C18 -> 4 | D19: =IF($E$10<=$E$11,cal!$AC$4,cal!D18) -> 156.9 | E19: =IF($E$10<=$E$11,"",cal!E18) -> 13 | F19: =IF($E$10<=$E$11,"",cal!F18) -> 0.0067175218 | K19: =cal!K18 -> 14.9 | L19: =cal!L18 -> 22.9 | M19: =cal!M18 -> 0.75 | N19: =cal!N18 -> 19
B20: =cal!B19 -> 0.6 | C20: =cal!C19 -> 6 | D20: =IF($E$10<=$E$11,"",cal!D19) -> 315.9 | E20: =IF($E$10<=$E$11,"",cal!E19) -> 27 | F20: =IF($E$10<=$E$11,"",cal!F19) -> 0.02430025386 | K20: =cal!K19 -> 18.8 | L20: =cal!L19 -> 26.8 | M20: =cal!M19 -> 1.17 | N20: =cal!N19 -> 29
B21: =cal!B20 -> 0.8 | C21: =cal!C20 -> 8 | D21: =IF($E$10<=$E$11,"",cal!D20) -> 420.9 | E21: =IF($E$10<=$E$11,"",cal!E20) -> 36 | F21: =IF($E$10<=$E$11,"",cal!F20) -> 0.04120180891 | K21: =cal!K20 -> 31.6 | L21: =cal!L20 -> 39.6 | M21: =cal!M20 -> 1.79 | N21: =cal!N20 -> 40
B22: =cal!B21 -> 1 | C22: =cal!C21 -> 10 | D22: =IF($E$10<=$E$11,"",cal!D21) -> 494.7 | E22: =IF($E$10<=$E$11,"",cal!E21) -> 43 | F22: =IF($E$10<=$E$11,"",cal!F21) -> 0.05547489855 | K22: =cal!K21 -> 39.2 | L22: =cal!L21 -> 47.2 | M22: =cal!M21 -> 2.67 | N22: =cal!N21 -> 65
B23: =cal!B22 -> Micro Canal height 6 cm width 14 cm length 95 cm (Type 2)
B24: =cal!B23 -> 0.2 | C24: =cal!C23 -> 2 | D24: =IF($E$10<=$E$11,cal!$AC$3,cal!D23) -> 129.35 | E24: =IF($E$10<=$E$11,"",cal!E23) -> 11 | F24: =IF($E$10<=$E$11,"",cal!F23) -> 0.008180498891 | K24: =cal!K23 -> 14.3 | L24: =cal!L23 -> 22.3 | M24: =cal!M23 -> 0.52 | N24: =cal!N23 -> 18
B25: =cal!B24 -> 0.4 | C25: =cal!C24 -> 4 | D25: =IF($E$10<=$E$11,cal!$AC$4,cal!D24) -> 339.95 | E25: =IF($E$10<=$E$11,"",cal!E24) -> 29 | F25: =IF($E$10<=$E$11,"",cal!F24) -> 0.04765943833 | K25: =cal!K24 -> 17.4 | L25: =cal!L24 -> 25.4 | M25: =cal!M24 -> 0.87 | N25: =cal!N24 -> 30
B26: =cal!B25 -> 0.6 | C26: =cal!C25 -> 6 | D26: =IF($E$10<=$E$11,"",cal!D25) -> 684.45 | E26: =IF($E$10<=$E$11,"",cal!E25) -> 59 | F26: =IF($E$10<=$E$11,"",cal!F25) -> 0.171128579 | K26: =cal!K25 -> 25.5 | L26: =cal!L25 -> 33.5 | M26: =cal!M25 -> 1.53 | N26: =cal!N25 -> 50
B27: =cal!B26 -> 0.8 | C27: =cal!C26 -> 8 | D27: =IF($E$10<=$E$11,"",cal!D26) -> 911.95 | E27: =IF($E$10<=$E$11,"",cal!E26) -> 78 | F27: =IF($E$10<=$E$11,"",cal!F26) -> 0.2892079601 | K27: =cal!K26 -> 36.1 | L27: =cal!L26 -> 44.1 | M27: =cal!M26 -> 2.46 | N27: =cal!N26 -> 74
B28: =cal!B27 -> 1 | C28: =cal!C27 -> 10 | D28: =IF($E$10<=$E$11,"",cal!D27) -> 1071.85 | E28: =IF($E$10<=$E$11,"",cal!E27) -> 92 | F28: =IF($E$10<=$E$11,"",cal!F27) -> 0.3886579649 | K28: =cal!K27 -> 42.5 | L28: =cal!L27 -> 50.5 | M28: =cal!M27 -> 3.84 | N28: =cal!N27 -> 98
B29: =cal!B28 -> Micro Canal height 6 cm width 14 cm length 130 cm (Type 3)
B30: =cal!B29 -> 0.2 | C30: =cal!C29 -> 2 | D30: =IF($E$10<=$E$11,cal!$AC$3,cal!D29) -> 199 | E30: =IF($E$10<=$E$11,"",cal!E29) -> 17 | F30: =IF($E$10<=$E$11,"",cal!F29) -> 0.02548779151 | K30: =cal!K29 -> 13.9 | L30: =cal!L29 -> 21.9 | M30: =cal!M29 -> 0.54 | N30: =cal!N29 -> 26
B31: =cal!B30 -> 0.4 | C31: =cal!C30 -> 4 | D31: =IF($E$10<=$E$11,cal!$AC$4,cal!D30) -> 523 | E31: =IF($E$10<=$E$11,"",cal!E30) -> 45 | F31: =IF($E$10<=$E$11,"",cal!F30) -> 0.147870391 | K31: =cal!K30 -> 15.2 | L31: =cal!L30 -> 23.2 | M31: =cal!M30 -> 0.95 | N31: =cal!N30 -> 41
B32: =cal!B31 -> 0.6 | C32: =cal!C31 -> 6 | D32: =IF($E$10<=$E$11,"",cal!D31) -> 1053 | E32: =IF($E$10<=$E$11,"",cal!E31) -> 91 | F32: =IF($E$10<=$E$11,"",cal!F31) -> 0.5291142784 | K32: =cal!K31 -> 26.4 | L32: =cal!L31 -> 34.4 | M32: =cal!M31 -> 1.62 | N32: =cal!N31 -> 67
B33: =cal!B32 -> 0.8 | C33: =cal!C32 -> 8 | D33: =IF($E$10<=$E$11,"",cal!D32) -> 1403 | E33: =IF($E$10<=$E$11,"",cal!E32) -> 121 | F33: =IF($E$10<=$E$11,"",cal!F32) -> 0.8928342016 | K33: =cal!K32 -> 37.2 | L33: =cal!L32 -> 45.2 | M33: =cal!M32 -> 2.65 | N33: =cal!N32 -> 99
B34: =cal!B33 -> 1 | C34: =cal!C33 -> 10 | D34: =IF($E$10<=$E$11,"",cal!D33) -> 1649 | E34: =IF($E$10<=$E$11,"",cal!E33) -> 142 | F34: =IF($E$10<=$E$11,"",cal!F33) -> 1.198781162 | K34: =cal!K33 -> 41.8 | L34: =cal!L33 -> 49.8 | M34: =cal!M33 -> 4.14 | N34: =cal!N33 -> 130
B35: =cal!B34 -> Micro Canal height 6 cm width 14 cm length 165 cm (Type 4)
B36: =cal!B35 -> 0.2 | C36: =cal!C35 -> 2 | D36: =IF($E$10<=$E$11,cal!$AC$3,cal!D35) -> 268.65 | E36: =IF($E$10<=$E$11,"",cal!E35) -> 23 | F36: =IF($E$10<=$E$11,"",cal!F35) -> 0.05696696318 | K36: =cal!K35 -> 17.3 | L36: =cal!L35 -> 25.3 | M36: =cal!M35 -> 1.04 | N36: =cal!N35 -> 36
B37: =cal!B36 -> 0.4 | C37: =cal!C36 -> 4 | D37: =IF($E$10<=$E$11,cal!$AC$4,cal!D36) -> 706.05 | E37: =IF($E$10<=$E$11,"",cal!E36) -> 61 | F37: =IF($E$10<=$E$11,"",cal!F36) -> 0.3296906264 | K37: =cal!K36 -> 20.4 | L37: =cal!L36 -> 28.4 | M37: =cal!M36 -> 1.74 | N37: =cal!N36 -> 60
B38: =cal!B37 -> 0.6 | C38: =cal!C37 -> 6 | D38: =IF($E$10<=$E$11,"",cal!D37) -> 1421.55 | E38: =IF($E$10<=$E$11,"",cal!E37) -> 122 | F38: =IF($E$10<=$E$11,"",cal!F37) -> 1.17730302 | K38: =cal!K37 -> 28.5 | L38: =cal!L37 -> 36.5 | M38: =cal!M37 -> 3.06 | N38: =cal!N37 -> 100
B39: =cal!B38 -> 0.8 | C39: =cal!C38 -> 8 | D39: =IF($E$10<=$E$11,"",cal!D38) -> 1894.05 | E39: =IF($E$10<=$E$11,"",cal!E38) -> 163 | F39: =IF($E$10<=$E$11,"",cal!F38) -> 1.984794606 | K39: =cal!K38 -> 39.1 | L39: =cal!L38 -> 47.1 | M39: =cal!M38 -> 4.92 | N39: =cal!N38 -> 148
B40: =cal!B39 -> 1 | C40: =cal!C39 -> 10 | D40: =IF($E$10<=$E$11,"",cal!D39) -> 2226.15 | E40: =IF($E$10<=$E$11,"",cal!E39) -> 191 | F40: =IF($E$10<=$E$11,"",cal!F39) -> 2.663511954 | K40: =cal!K39 -> 45.5 | L40: =cal!L39 -> 53.5 | M40: =cal!M39 -> 7.68 | N40: =cal!N39 -> 196
B41: =cal!B40 -> Micro Canal height 6 cm width 14 cm length 200 cm (Type 5)
B42: =cal!B41 -> 0.2 | C42: =cal!C41 -> 2 | D42: =IF($E$10<=$E$11,cal!$AC$3,cal!D41) -> 338.3 | E42: =IF($E$10<=$E$11,"",cal!E41) -> 29 | F42: =IF($E$10<=$E$11,"",cal!F41) -> 0.1062615876 | K42: =IF(cal!K41=-8,"",cal!K41) -> 17.1 | L42: =IF(cal!L41=0,"",cal!L41) -> 25.1 | M42: =IF(cal!M41=0,"",cal!M41) -> 1.06 | N42: =IF(cal!N41=0,"",cal!N41) -> 44
B43: =cal!B42 -> 0.4 | C43: =cal!C42 -> 4 | D43: =IF($E$10<=$E$11,cal!$AC$4,cal!D42) -> 889.1 | E43: =IF($E$10<=$E$11,"",cal!E42) -> 76 | F43: =IF($E$10<=$E$11,"",cal!F42) -> 0.6139781529 | K43: =IF(cal!K42=-8,"",cal!K42) -> 19.4 | L43: =IF(cal!L42=0,"",cal!L42) -> 27.4 | M43: =IF(cal!M42=0,"",cal!M42) -> 1.82 | N43: =IF(cal!N42=0,"",cal!N42) -> 71
B44: =cal!B43 -> 0.6 | C44: =cal!C43 -> 6 | D44: =IF($E$10<=$E$11,"",cal!D43) -> 1790.1 | E44: =IF($E$10<=$E$11,"",cal!E43) -> 154 | F44: =IF($E$10<=$E$11,"",cal!F43) -> 2.189495924 | K44: =IF(cal!K43=-8,"",cal!K43) -> 29 | L44: =IF(cal!L43=0,"",cal!L43) -> 37 | M44: =IF(cal!M43=0,"",cal!M43) -> 3.15 | N44: =IF(cal!N43=0,"",cal!N43) -> 117
B45: =cal!B44 -> 0.8 | C45: =cal!C44 -> 8 | D45: =IF($E$10<=$E$11,"",cal!D44) -> 2385.1 | E45: =IF($E$10<=$E$11,"",cal!E44) -> 205 | F45: =IF($E$10<=$E$11,"",cal!F44) -> 3.688997889 | K45: =IF(cal!K44=-8,"",cal!K44) -> 39.7 | L45: =IF(cal!L44=0,"",cal!L44) -> 47.7 | M45: =IF(cal!M44=0,"",cal!M44) -> 5.11 | N45: =IF(cal!N44=0,"",cal!N44) -> 173
B46: =cal!B45 -> 1 | C46: =cal!C45 -> 10 | D46: =IF($E$10<=$E$11,"",cal!D45) -> 2803.3 | E46: =IF($E$10<=$E$11,"",cal!E45) -> 241 | F46: =IF($E$10<=$E$11,"",cal!F45) -> 4.948729862 | K46: =IF(cal!K45=-8,"",cal!K45) -> 45.2 | L46: =IF(cal!L45=0,"",cal!L45) -> 53.2 | M46: =IF(cal!M45=0,"",cal!M45) -> 7.98 | N46: =IF(cal!N45=0,"",cal!N45) -> 228
B47: =IF(cal!$X$16=1,"",IF(cal!$X$16=2,"",cal!B46)) -> 
B48: =cal!#REF! ->  | C48: =cal!C47 -> 0 | D48: =IF($E$10<=$E$11,cal!$AC$3,cal!D47) -> 0 | E48: =IF($E$10<=$E$11,"",cal!E47) -> 0 | F48: =IF($E$10<=$E$11,"",cal!F47) -> 0 | G48: =IF($I$11>=$K$11,cal!$AC$3,cal!G47) -> Temp. | H48: =IF($I$11>=$K$11,"",cal!H47) ->  | I48: =IF($I$11>=$K$11,"",cal!I47) ->  | J48: =IF($I$11>=$K$11,"",cal!J47) ->  | K48: =IF(cal!K47=-8,"",cal!K47) -> 0 | L48: =IF(cal!L47=0,"",cal!L47) ->  | M48: =IF(cal!M47=0,"",cal!M47) ->  | N48: =IF(cal!N47=0,"",cal!N47) -> 
B49: =cal!#REF! ->  | C49: =cal!C48 -> 0 | D49: =IF($E$10<=$E$11,cal!$AC$4,cal!D48) -> 0 | E49: =IF($E$10<=$E$11,"",cal!E48) -> 0 | F49: =IF($E$10<=$E$11,"",cal!F48) -> 0 | G49: =IF($I$11>=$K$11,cal!$AC$5,cal!G48) -> cooling! | H49: =IF($I$11>=$K$11,"",cal!H48) ->  | I49: =IF($I$11>=$K$11,"",cal!I48) ->  | J49: =IF($I$11>=$K$11,"",cal!J48) ->  | K49: =IF(cal!K48=-8,"",cal!K48) -> 0 | L49: =IF(cal!L48=0,"",cal!L48) ->  | M49: =IF(cal!M48=0,"",cal!M48) ->  | N49: =IF(cal!N48=0,"",cal!N48) -> 
B50: =cal!#REF! ->  | C50: =cal!C49 -> 0 | D50: =IF($E$10<=$E$11,"",cal!D49) -> 0 | E50: =IF($E$10<=$E$11,"",cal!E49) -> 0 | F50: =IF($E$10<=$E$11,"",cal!F49) -> 0 | G50: =IF($I$11>=$K$11,"",cal!G49) ->  | H50: =IF($I$11>=$K$11,"",cal!H49) ->  | I50: =IF($I$11>=$K$11,"",cal!I49) ->  | J50: =IF($I$11>=$K$11,"",cal!J49) ->  | K50: =IF(cal!K49=-8,"",cal!K49) -> 0 | L50: =IF(cal!L49=0,"",cal!L49) ->  | M50: =IF(cal!M49=0,"",cal!M49) ->  | N50: =IF(cal!N49=0,"",cal!N49) -> 
B51: =cal!B50 -> 0 | C51: =cal!C50 -> 0 | D51: =IF($E$10<=$E$11,"",cal!D50) -> 0 | E51: =IF($E$10<=$E$11,"",cal!E50) -> 0 | F51: =IF($E$10<=$E$11,"",cal!F50) -> 0 | G51: =IF($I$11>=$K$11,"",cal!G50) ->  | H51: =IF($I$11>=$K$11,"",cal!H50) ->  | I51: =IF($I$11>=$K$11,"",cal!I50) ->  | J51: =IF($I$11>=$K$11,"",cal!J50) ->  | K51: =IF(cal!K50=-8,"",cal!K50) -> 0 | L51: =IF(cal!L50=0,"",cal!L50) ->  | M51: =IF(cal!M50=0,"",cal!M50) ->  | N51: =IF(cal!N50=0,"",cal!N50) -> 
B52: =cal!B51 -> 0 | C52: =cal!C51 -> 0 | D52: =IF($E$10<=$E$11,"",cal!D51) -> 0 | E52: =IF($E$10<=$E$11,"",cal!E51) -> 0 | F52: =IF($E$10<=$E$11,"",cal!F51) -> 0 | G52: =IF($I$11>=$K$11,"",cal!G51) ->  | H52: =IF($I$11>=$K$11,"",cal!H51) ->  | I52: =IF($I$11>=$K$11,"",cal!I51) ->  | J52: =IF($I$11>=$K$11,"",cal!J51) ->  | K52: =IF(cal!K51=-8,"",cal!K51) -> 0 | L52: =IF(cal!L51=0,"",cal!L51) ->  | M52: =IF(cal!M51=0,"",cal!M51) ->  | N52: =IF(cal!N51=0,"",cal!N51) -> 
B53: =IF(cal!$X$16=1,"",IF(cal!$X$16=2,"",cal!B52)) -> 
B54: =cal!B53 -> 0 | C54: =cal!C53 -> 0 | D54: =IF($E$10<=$E$11,cal!$AC$3,cal!D53) -> 0 | E54: =IF($E$10<=$E$11,"",cal!E53) -> 0 | F54: =IF($E$10<=$E$11,"",cal!F53) -> 0 | G54: =IF($I$11>=$K$11,cal!$AC$3,cal!G53) -> Temp. | H54: =IF($I$11>=$K$11,"",cal!H53) ->  | I54: =IF($I$11>=$K$11,"",cal!I53) ->  | J54: =IF($I$11>=$K$11,"",cal!J53) ->  | K54: =IF(cal!K53=-8,"",cal!K53) -> 0 | L54: =IF(cal!L53=0,"",cal!L53) ->  | M54: =IF(cal!M53=0,"",cal!M53) ->  | N54: =IF(cal!N53=0,"",cal!N53) -> 
B55: =cal!B54 -> 0 | C55: =cal!C54 -> 0 | D55: =IF($E$10<=$E$11,cal!$AC$4,cal!D54) -> 0 | E55: =IF($E$10<=$E$11,"",cal!E54) -> 0 | F55: =IF($E$10<=$E$11,"",cal!F54) -> 0 | G55: =IF($I$11>=$K$11,cal!$AC$5,cal!G54) -> cooling! | H55: =IF($I$11>=$K$11,"",cal!H54) ->  | I55: =IF($I$11>=$K$11,"",cal!I54) ->  | J55: =IF($I$11>=$K$11,"",cal!J54) ->  | K55: =IF(cal!K54=-8,"",cal!K54) -> 0 | L55: =IF(cal!L54=0,"",cal!L54) ->  | M55: =IF(cal!M54=0,"",cal!M54) ->  | N55: =IF(cal!N54=0,"",cal!N54) -> 
B56: =cal!B55 -> 0 | C56: =cal!C55 -> 0 | D56: =IF($E$10<=$E$11,"",cal!D55) -> 0 | E56: =IF($E$10<=$E$11,"",cal!E55) -> 0 | F56: =IF($E$10<=$E$11,"",cal!F55) -> 0 | G56: =IF($I$11>=$K$11,"",cal!G55) ->  | H56: =IF($I$11>=$K$11,"",cal!H55) ->  | I56: =IF($I$11>=$K$11,"",cal!I55) ->  | J56: =IF($I$11>=$K$11,"",cal!J55) ->  | K56: =IF(cal!K55=-8,"",cal!K55) -> 0 | L56: =IF(cal!L55=0,"",cal!L55) ->  | M56: =IF(cal!M55=0,"",cal!M55) ->  | N56: =IF(cal!N55=0,"",cal!N55) -> 
B57: =cal!B56 -> 0 | C57: =cal!C56 -> 0 | D57: =IF($E$10<=$E$11,"",cal!D56) -> 0 | E57: =IF($E$10<=$E$11,"",cal!E56) -> 0 | F57: =IF($E$10<=$E$11,"",cal!F56) -> 0 | G57: =IF($I$11>=$K$11,"",cal!G56) ->  | H57: =IF($I$11>=$K$11,"",cal!H56) ->  | I57: =IF($I$11>=$K$11,"",cal!I56) ->  | J57: =IF($I$11>=$K$11,"",cal!J56) ->  | K57: =IF(cal!K56=-8,"",cal!K56) -> 0 | L57: =IF(cal!L56=0,"",cal!L56) ->  | M57: =IF(cal!M56=0,"",cal!M56) ->  | N57: =IF(cal!N56=0,"",cal!N56) -> 
B58: =cal!B57 -> 0 | C58: =cal!C57 -> 0 | D58: =IF($E$10<=$E$11,"",cal!D57) -> 0 | E58: =IF($E$10<=$E$11,"",cal!E57) -> 0 | F58: =IF($E$10<=$E$11,"",cal!F57) -> 0 | G58: =IF($I$11>=$K$11,"",cal!G57) ->  | H58: =IF($I$11>=$K$11,"",cal!H57) ->  | I58: =IF($I$11>=$K$11,"",cal!I57) ->  | J58: =IF($I$11>=$K$11,"",cal!J57) ->  | K58: =IF(cal!K57=-8,"",cal!K57) -> 0 | L58: =IF(cal!L57=0,"",cal!L57) ->  | M58: =IF(cal!M57=0,"",cal!M57) ->  | N58: =IF(cal!N57=0,"",cal!N57) -> 
B59: =IF(cal!$X$16=1,"",IF(cal!$X$16=2,"",cal!B58)) -> 
B60: =cal!B59 -> 0 | C60: =cal!C59 -> 0 | D60: =IF($E$10<=$E$11,cal!$AC$3,cal!D59) -> 0 | E60: =IF($E$10<=$E$11,"",cal!E59) -> 0 | F60: =IF($E$10<=$E$11,"",cal!F59) -> 0 | G60: =IF($I$11>=$K$11,cal!$AC$3,cal!G59) -> Temp. | H60: =IF($I$11>=$K$11,"",cal!H59) ->  | I60: =IF($I$11>=$K$11,"",cal!I59) ->  | J60: =IF($I$11>=$K$11,"",cal!J59) ->  | K60: =IF(cal!K59=-8,"",cal!K59) -> 0 | L60: =IF(cal!L59=0,"",cal!L59) ->  | M60: =IF(cal!M59=0,"",cal!M59) ->  | N60: =IF(cal!N59=0,"",cal!N59) -> 
B61: =cal!B60 -> 0 | C61: =cal!C60 -> 0 | D61: =IF($E$10<=$E$11,cal!$AC$4,cal!D60) -> 0 | E61: =IF($E$10<=$E$11,"",cal!E60) -> 0 | F61: =IF($E$10<=$E$11,"",cal!F60) -> 0 | G61: =IF($I$11>=$K$11,cal!$AC$5,cal!G60) -> cooling! | H61: =IF($I$11>=$K$11,"",cal!H60) ->  | I61: =IF($I$11>=$K$11,"",cal!I60) ->  | J61: =IF($I$11>=$K$11,"",cal!J60) ->  | K61: =IF(cal!K60=-8,"",cal!K60) -> 0 | L61: =IF(cal!L60=0,"",cal!L60) ->  | M61: =IF(cal!M60=0,"",cal!M60) ->  | N61: =IF(cal!N60=0,"",cal!N60) -> 
B62: =cal!B61 -> 0 | C62: =cal!C61 -> 0 | D62: =IF($E$10<=$E$11,"",cal!D61) -> 0 | E62: =IF($E$10<=$E$11,"",cal!E61) -> 0 | F62: =IF($E$10<=$E$11,"",cal!F61) -> 0 | G62: =IF($I$11>=$K$11,"",cal!G61) ->  | H62: =IF($I$11>=$K$11,"",cal!H61) ->  | I62: =IF($I$11>=$K$11,"",cal!I61) ->  | J62: =IF($I$11>=$K$11,"",cal!J61) ->  | K62: =IF(cal!K61=-8,"",cal!K61) -> 0 | L62: =IF(cal!L61=0,"",cal!L61) ->  | M62: =IF(cal!M61=0,"",cal!M61) ->  | N62: =IF(cal!N61=0,"",cal!N61) -> 
B63: =cal!B62 -> 0 | C63: =cal!C62 -> 0 | D63: =IF($E$10<=$E$11,"",cal!D62) -> 0 | E63: =IF($E$10<=$E$11,"",cal!E62) -> 0 | F63: =IF($E$10<=$E$11,"",cal!F62) -> 0 | G63: =IF($I$11>=$K$11,"",cal!G62) ->  | H63: =IF($I$11>=$K$11,"",cal!H62) ->  | I63: =IF($I$11>=$K$11,"",cal!I62) ->  | J63: =IF($I$11>=$K$11,"",cal!J62) ->  | K63: =IF(cal!K62=-8,"",cal!K62) -> 0 | L63: =IF(cal!L62=0,"",cal!L62) ->  | M63: =IF(cal!M62=0,"",cal!M62) ->  | N63: =IF(cal!N62=0,"",cal!N62) -> 
B64: =cal!B63 -> 0 | C64: =cal!C63 -> 0 | D64: =IF($E$10<=$E$11,"",cal!D63) -> 0 | E64: =IF($E$10<=$E$11,"",cal!E63) -> 0 | F64: =IF($E$10<=$E$11,"",cal!F63) -> 0 | G64: =IF($I$11>=$K$11,"",cal!G63) ->  | H64: =IF($I$11>=$K$11,"",cal!H63) ->  | I64: =IF($I$11>=$K$11,"",cal!I63) ->  | J64: =IF($I$11>=$K$11,"",cal!J63) ->  | K64: =IF(cal!K63=-8,"",cal!K63) -> 0 | L64: =IF(cal!L63=0,"",cal!L63) ->  | M64: =IF(cal!M63=0,"",cal!M63) ->  | N64: =IF(cal!N63=0,"",cal!N63) -> 
B65: =IF(cal!$X$16=1,"",IF(cal!$X$16=2,"",cal!B64)) -> 
B66: =cal!B65 -> 0 | C66: =cal!C65 -> 0 | D66: =IF($E$10<=$E$11,cal!$AC$3,cal!D65) -> 0 | E66: =IF($E$10<=$E$11,"",cal!E65) -> 0 | F66: =IF($E$10<=$E$11,"",cal!F65) -> 0 | G66: =IF($I$11>=$K$11,cal!$AC$3,cal!G65) -> Temp. | H66: =IF($I$11>=$K$11,"",cal!H65) ->  | I66: =IF($I$11>=$K$11,"",cal!I65) ->  | J66: =IF($I$11>=$K$11,"",cal!J65) ->  | K66: =IF(cal!K65=-8,"",cal!K65) -> 0 | L66: =IF(cal!L65=0,"",cal!L65) ->  | M66: =IF(cal!M65=0,"",cal!M65) ->  | N66: =IF(cal!N65=0,"",cal!N65) -> 
B67: =cal!B66 -> 0 | C67: =cal!C66 -> 0 | D67: =IF($E$10<=$E$11,cal!$AC$4,cal!D66) -> 0 | E67: =IF($E$10<=$E$11,"",cal!E66) -> 0 | F67: =IF($E$10<=$E$11,"",cal!F66) -> 0 | G67: =IF($I$11>=$K$11,cal!$AC$5,cal!G66) -> cooling! | H67: =IF($I$11>=$K$11,"",cal!H66) ->  | I67: =IF($I$11>=$K$11,"",cal!I66) ->  | J67: =IF($I$11>=$K$11,"",cal!J66) ->  | K67: =IF(cal!K66=-8,"",cal!K66) -> 0 | L67: =IF(cal!L66=0,"",cal!L66) ->  | M67: =IF(cal!M66=0,"",cal!M66) ->  | N67: =IF(cal!N66=0,"",cal!N66) -> 
B68: =cal!B67 -> 0 | C68: =cal!C67 -> 0 | D68: =IF($E$10<=$E$11,"",cal!D67) -> 0 | E68: =IF($E$10<=$E$11,"",cal!E67) -> 0 | F68: =IF($E$10<=$E$11,"",cal!F67) -> 0 | G68: =IF($I$11>=$K$11,"",cal!G67) ->  | H68: =IF($I$11>=$K$11,"",cal!H67) ->  | I68: =IF($I$11>=$K$11,"",cal!I67) ->  | J68: =IF($I$11>=$K$11,"",cal!J67) ->  | K68: =IF(cal!K67=-8,"",cal!K67) -> 0 | L68: =IF(cal!L67=0,"",cal!L67) ->  | M68: =IF(cal!M67=0,"",cal!M67) ->  | N68: =IF(cal!N67=0,"",cal!N67) -> 
B69: =cal!B68 -> 0 | C69: =cal!C68 -> 0 | D69: =IF($E$10<=$E$11,"",cal!D68) -> 0 | E69: =IF($E$10<=$E$11,"",cal!E68) -> 0 | F69: =IF($E$10<=$E$11,"",cal!F68) -> 0 | G69: =IF($I$11>=$K$11,"",cal!G68) ->  | H69: =IF($I$11>=$K$11,"",cal!H68) ->  | I69: =IF($I$11>=$K$11,"",cal!I68) ->  | J69: =IF($I$11>=$K$11,"",cal!J68) ->  | K69: =IF(cal!K68=-8,"",cal!K68) -> 0 | L69: =IF(cal!L68=0,"",cal!L68) ->  | M69: =IF(cal!M68=0,"",cal!M68) ->  | N69: =IF(cal!N68=0,"",cal!N68) -> 
B70: =cal!B69 -> 0 | C70: =cal!C69 -> 0 | D70: =IF($E$10<=$E$11,"",cal!D69) -> 0 | E70: =IF($E$10<=$E$11,"",cal!E69) -> 0 | F70: =IF($E$10<=$E$11,"",cal!F69) -> 0 | G70: =IF($I$11>=$K$11,"",cal!G69) ->  | H70: =IF($I$11>=$K$11,"",cal!H69) ->  | I70: =IF($I$11>=$K$11,"",cal!I69) ->  | J70: =IF($I$11>=$K$11,"",cal!J69) ->  | K70: =IF(cal!K69=-8,"",cal!K69) -> 0 | L70: =IF(cal!L69=0,"",cal!L69) ->  | M70: =IF(cal!M69=0,"",cal!M69) ->  | N70: =IF(cal!N69=0,"",cal!N69) -> 
B71: =cal!B47 -> *Values according to EN 16430 | P71: v2022-06-01
B72: =cal!B48 -> **Sound power according to ISO 3741:2010
B73: =cal!B49 -> ***Sound pressure with an assumed room damping of 8dB(A)

Sheet cal (hidden)
G1: Nederlands | H1: English | I1: Deutsch | J1: Français | K1: Norsk | L1: Español | M1: Svenska | N1: Čeština | O1: ExtraTaal1 | P1: ExtraTaal2 | Q1: ExtraTaal3 | U1: =IF($S$7=1,NL!Q7,IF($S$7=2,EN!Q7,IF($S$7=3,DE!Q7,IF($S$7=4,FR!Q7,IF($S$7=5,NR!Q7,IF($S$7=6,SP!Q7,IF($S$7=7,SW!Q7,IF($S$7=8,TS!Q7,IF($S$7=9,ExtraTaal1!Q7,IF($S$7=10,ExtraTaal2!Q7,IF($S$7=11,ExtraTaal3!Q7,))))))))))) -> Copy all data | Z1: Micro Canal
U2: =IF($S$7=1,NL!Q8,IF($S$7=2,EN!Q8,IF($S$7=3,DE!Q8,IF($S$7=4,FR!Q8,IF($S$7=5,NR!Q8,IF($S$7=6,SP!Q8,IF($S$7=7,SW!Q8,IF($S$7=8,TS!Q8,IF($S$7=9,ExtraTaal1!Q8,IF($S$7=10,ExtraTaal2!Q8,IF($S$7=11,ExtraTaal3!Q8,))))))))))) -> SI-units | Y2: Micro H8 B18 | Z2: =AE16 -> Micro H6 B14
B3: =IF($S$7=1,NL!A2,IF(cal!$S$7=2,EN!A2,IF(cal!$S$7=3,DE!A2,IF(cal!$S$7=4,FR!A2,)))) -> Formulary | U3: =IF($S$7=1,NL!Q9,IF($S$7=2,EN!Q9,IF($S$7=3,DE!Q9,IF($S$7=4,FR!Q9,IF($S$7=5,NR!Q9,IF($S$7=6,SP!Q9,IF($S$7=7,SW!Q9,IF($S$7=8,TS!Q9,IF($S$7=9,ExtraTaal1!Q9,IF($S$7=10,ExtraTaal2!Q9,IF($S$7=11,ExtraTaal3!Q9,))))))))))) -> Imperial-units | Y3: Clima H8 B19 | Z3: =AQ16 -> 0 | AC3: =IF($S$7=1,NL!Q15,IF(cal!$S$7=2,EN!Q15,IF(cal!$S$7=3,DE!Q15,IF(cal!$S$7=4,FR!Q15,IF(cal!$S$7=5,NR!Q15,IF(cal!$S$7=6,SP!Q15,)))))) -> Temp.
X4: 1 | Y4: Clima H8 B20 | Z4: =BB16 -> 0 | AC4: =IF($S$7=1,NL!Q16,IF(cal!$S$7=2,EN!Q16,IF(cal!$S$7=3,DE!Q16,IF(cal!$S$7=4,FR!Q16,IF(cal!$S$7=5,NR!Q16,IF(cal!$S$7=6,SP!Q16,)))))) -> heating!
B5: =IF($S$7=1,NL!A4,IF(cal!$S$7=2,EN!A4,IF(cal!$S$7=3,DE!A4,IF(cal!$S$7=4,FR!A4,)))) -> Conditions | Y5: Clima H8 B21 | Z5: =BP16 -> 0 | AC5: =IF($S$7=1,NL!Q17,IF(cal!$S$7=2,EN!Q17,IF(cal!$S$7=3,DE!Q17,IF(cal!$S$7=4,FR!Q17,IF(cal!$S$7=5,NR!Q17,IF(cal!$S$7=6,SP!Q17,)))))) -> cooling!
Y6: Clima H8 B22 | Z6: =BI16 -> 0
B7: =IF($S$7=1,NL!A6,IF(cal!$S$7=2,EN!A6,IF(cal!$S$7=3,DE!A6,IF(cal!$S$7=4,FR!A6,IF(cal!$S$7=5,NR!A6,IF(cal!$S$7=6,SP!A6,IF(cal!$S$7=7,SW!A6,IF(cal!$S$7=8,TS!A6,IF(cal!$S$7=9,ExtraTaal1!A6,IF(cal!$S$7=10,ExtraTaal2!A6,IF(cal!$S$7=11,ExtraTaal3!A6,))))))))))) -> Temperatures | M7: =IF($S$7=1,NL!L6,IF(cal!$S$7=2,EN!L6,IF(cal!$S$7=3,DE!L6,IF(cal!$S$7=4,FR!L6,IF(cal!$S$7=5,NR!L6,IF(cal!$S$7=6,SP!L6,IF(cal!$S$7=7,SW!L6,IF(cal!$S$7=8,TS!L6,IF(cal!$S$7=9,ExtraTaal1!L6,IF(cal!$S$7=10,ExtraTaal2!L6,IF(cal!$S$7=11,ExtraTaal3!L6,))))))))))) -> Altitude | N7: =IF($S$7=1,NL!M6,IF(cal!$S$7=2,EN!M6,IF(cal!$S$7=3,DE!M6,IF(cal!$S$7=4,FR!M6,IF(cal!$S$7=5,NR!M6,IF(cal!$S$7=6,SP!M6,IF(cal!$S$7=7,SW!M6,IF(cal!$S$7=8,TS!M6,IF(cal!$S$7=9,ExtraTaal1!M6,IF(cal!$S$7=10,ExtraTaal2!M6,IF(cal!$S$7=11,ExtraTaal3!M6,))))))))))) -> 0 | S7: =IF('Micro canal'!$K$4=cal!G1,1,IF('Micro canal'!$K$4=cal!H1,2,IF('Micro canal'!$K$4=cal!I1,3,IF('Micro canal'!$K$4=cal!J1,4,IF('Micro canal'!$K$4=cal!K1,5,IF('Micro canal'!$K$4=cal!L1,6,IF('Micro canal'!$K$4=cal!M1,7,IF('Micro canal'!$K$4=cal!N1,8,IF('Micro canal'!$K$4=cal!O1,9,IF('Micro canal'!$K$4=cal!P1,10,IF('Micro canal'!$K$4=cal!Q1,11,))))))))))) -> 2 | Y7: Clima H8 B23 | Z7: =CE16 -> 0
B8: =IF($S$7=1,NL!A7,IF(cal!$S$7=2,EN!A7,IF(cal!$S$7=3,DE!A7,IF(cal!$S$7=4,FR!A7,IF(cal!$S$7=5,NR!A7,IF(cal!$S$7=6,SP!A7,IF(cal!$S$7=7,SW!A7,IF(cal!$S$7=8,TS!A7,IF(cal!$S$7=9,ExtraTaal1!A7,IF(cal!$S$7=10,ExtraTaal2!A7,IF(cal!$S$7=11,ExtraTaal3!A7,))))))))))) -> Heating: | G8: =IF($S$7=1,NL!F7,IF(cal!$S$7=2,EN!F7,IF(cal!$S$7=3,DE!F7,IF(cal!$S$7=4,FR!F7,IF(cal!$S$7=5,NR!F7,IF(cal!$S$7=6,SP!F7,IF(cal!$S$7=7,SW!F7,IF(cal!$S$7=8,TS!F7,IF(cal!$S$7=9,ExtraTaal1!F7,IF(cal!$S$7=10,ExtraTaal2!F7,IF(cal!$S$7=11,ExtraTaal3!F7,))))))))))) -> Cooling: | M8: ='Micro canal'!M9:N9 -> 0 | N8: 0 | O8: =IF($X$4=1,"m",IF($X$4=2,"ft")) -> m | S8: Temp | X8: Temp | Y8: Clima H8 B24 | Z8: =BX16 -> 0
B9: =IF($S$7=1,NL!A8,IF(cal!$S$7=2,EN!A8,IF(cal!$S$7=3,DE!A8,IF(cal!$S$7=4,FR!A8,IF(cal!$S$7=5,NR!A8,IF(cal!$S$7=6,SP!A8,IF(cal!$S$7=7,SW!A8,IF(cal!$S$7=8,TS!A8,IF(cal!$S$7=9,ExtraTaal1!A8,IF(cal!$S$7=10,ExtraTaal2!A8,IF(cal!$S$7=11,ExtraTaal3!A8,))))))))))) -> Inlet temp. | C9: =IF($S$7=1,NL!B8,IF(cal!$S$7=2,EN!B8,IF(cal!$S$7=3,DE!B8,IF(cal!$S$7=4,FR!B8,IF(cal!$S$7=5,NR!B8,IF(cal!$S$7=6,SP!B8,IF(cal!$S$7=7,SW!B8,IF(cal!$S$7=8,TS!B8,IF(cal!$S$7=9,ExtraTaal1!B8,IF(cal!$S$7=10,ExtraTaal2!B8,IF(cal!$S$7=11,ExtraTaal3!B8,))))))))))) -> 0 | D9: =IF($S$7=1,NL!C8,IF(cal!$S$7=2,EN!C8,IF(cal!$S$7=3,DE!C8,IF(cal!$S$7=4,FR!C8,IF(cal!$S$7=5,NR!C8,IF(cal!$S$7=6,SP!C8,IF(cal!$S$7=7,SW!C8,IF(cal!$S$7=8,TS!C8,IF(cal!$S$7=9,ExtraTaal1!C8,IF(cal!$S$7=10,ExtraTaal2!C8,IF(cal!$S$7=11,ExtraTaal3!C8,))))))))))) -> 0 | E9: ='Micro canal'!E10 -> 75 | G9: =B9 -> Inlet temp. | H9: =IF($S$7=1,NL!G8,IF(cal!$S$7=2,EN!G8,IF(cal!$S$7=3,DE!G8,IF(cal!$S$7=4,FR!G8,)))) -> 0 | I9: =IF($S$7=1,NL!H8,IF(cal!$S$7=2,EN!H8,IF(cal!$S$7=3,DE!H8,IF(cal!$S$7=4,FR!H8,)))) -> 0 | J9: =IF($S$7=1,NL!I8,IF(cal!$S$7=2,EN!I8,IF(cal!$S$7=3,DE!I8,IF(cal!$S$7=4,FR!I8,)))) -> 0 | K9: ='Micro canal'!I11 -> 0 | M9: =IF($S$7=1,NL!L8,IF(cal!$S$7=2,EN!L8,IF(cal!$S$7=3,DE!L8,IF(cal!$S$7=4,FR!L8,IF(cal!$S$7=5,NR!L8,IF(cal!$S$7=6,SP!L8,IF(cal!$S$7=7,SW!L8,IF(cal!$S$7=8,TS!L8,IF(cal!$S$7=9,ExtraTaal1!L8,IF(cal!$S$7=10,ExtraTaal2!L8,IF(cal!$S$7=11,ExtraTaal3!L8,))))))))))) -> Unit conversion | N9: =IF($S$7=1,NL!M8,IF(cal!$S$7=2,EN!M8,IF(cal!$S$7=3,DE!M8,IF(cal!$S$7=4,FR!M8,IF(cal!$S$7=5,NR!M8,IF(cal!$S$7=6,SP!M8,IF(cal!$S$7=7,SW!M8,IF(cal!$S$7=8,TS!M8,IF(cal!$S$7=9,ExtraTaal1!M8,IF(cal!$S$7=10,ExtraTaal2!M8,IF(cal!$S$7=11,ExtraTaal3!M8,))))))))))) -> 0 | S9: =IF($X$4=1,E9,IF($X$4=2,(E9-32)/1.8)) -> 75 | X9: =IF($X$4=1,K9,IF($X$4=2,(K9-32)/1.8)) -> 0
B10: =IF($S$7=1,NL!A9,IF(cal!$S$7=2,EN!A9,IF(cal!$S$7=3,DE!A9,IF(cal!$S$7=4,FR!A9,IF(cal!$S$7=5,NR!A9,IF(cal!$S$7=6,SP!A9,IF(cal!$S$7=7,SW!A9,IF(cal!$S$7=8,TS!A9,IF(cal!$S$7=9,ExtraTaal1!A9,IF(cal!$S$7=10,ExtraTaal2!A9,IF(cal!$S$7=11,ExtraTaal3!A9,))))))))))) -> Return temp. | C10: =IF($S$7=1,NL!B9,IF(cal!$S$7=2,EN!B9,IF(cal!$S$7=3,DE!B9,IF(cal!$S$7=4,FR!B9,IF(cal!$S$7=5,NR!B9,IF(cal!$S$7=6,SP!B9,IF(cal!$S$7=7,SW!B9,IF(cal!$S$7=8,TS!B9,IF(cal!$S$7=9,ExtraTaal1!B9,IF(cal!$S$7=10,ExtraTaal2!B9,IF(cal!$S$7=11,ExtraTaal3!B9,))))))))))) -> 0 | D10: =IF($S$7=1,NL!C9,IF(cal!$S$7=2,EN!C9,IF(cal!$S$7=3,DE!C9,IF(cal!$S$7=4,FR!C9,IF(cal!$S$7=5,NR!C9,IF(cal!$S$7=6,SP!C9,IF(cal!$S$7=7,SW!C9,IF(cal!$S$7=8,TS!C9,IF(cal!$S$7=9,ExtraTaal1!C9,IF(cal!$S$7=10,ExtraTaal2!C9,IF(cal!$S$7=11,ExtraTaal3!C9,))))))))))) -> 0 | E10: ='Micro canal'!E11 -> 65 | G10: =B10 -> Return temp. | H10: =IF($S$7=1,NL!G9,IF(cal!$S$7=2,EN!G9,IF(cal!$S$7=3,DE!G9,IF(cal!$S$7=4,FR!G9,)))) -> 0 | I10: =IF($S$7=1,NL!H9,IF(cal!$S$7=2,EN!H9,IF(cal!$S$7=3,DE!H9,IF(cal!$S$7=4,FR!H9,)))) -> 0 | J10: =IF($S$7=1,NL!I9,IF(cal!$S$7=2,EN!I9,IF(cal!$S$7=3,DE!I9,IF(cal!$S$7=4,FR!I9,)))) -> 0 | K10: ='Micro canal'!K11 -> 0 | S10: =IF($X$4=1,E10,IF($X$4=2,(E10-32)/1.8)) -> 65 | T10: CF,h | W10: CF,c | X10: =IF($X$4=1,K10,IF($X$4=2,(K10-32)/1.8)) -> 0 | Z10: p_atm | AA10: h[mm] | AB10: cf_h
B11: =IF($S$7=1,NL!A10,IF(cal!$S$7=2,EN!A10,IF(cal!$S$7=3,DE!A10,IF(cal!$S$7=4,FR!A10,IF(cal!$S$7=5,NR!A10,IF(cal!$S$7=6,SP!A10,IF(cal!$S$7=7,SW!A10,IF(cal!$S$7=8,TS!A10,IF(cal!$S$7=9,ExtraTaal1!A10,IF(cal!$S$7=10,ExtraTaal2!A10,IF(cal!$S$7=11,ExtraTaal3!A10,))))))))))) -> Room temp. | C11: =IF($S$7=1,NL!B10,IF(cal!$S$7=2,EN!B10,IF(cal!$S$7=3,DE!B10,IF(cal!$S$7=4,FR!B10,IF(cal!$S$7=5,NR!B10,IF(cal!$S$7=6,SP!B10,IF(cal!$S$7=7,SW!B10,IF(cal!$S$7=8,TS!B10,IF(cal!$S$7=9,ExtraTaal1!B10,IF(cal!$S$7=10,ExtraTaal2!B10,IF(cal!$S$7=11,ExtraTaal3!B10,))))))))))) -> 0 | D11: =IF($S$7=1,NL!C10,IF(cal!$S$7=2,EN!C10,IF(cal!$S$7=3,DE!C10,IF(cal!$S$7=4,FR!C10,IF(cal!$S$7=5,NR!C10,IF(cal!$S$7=6,SP!C10,IF(cal!$S$7=7,SW!C10,IF(cal!$S$7=8,TS!C10,IF(cal!$S$7=9,ExtraTaal1!C10,IF(cal!$S$7=10,ExtraTaal2!C10,IF(cal!$S$7=11,ExtraTaal3!C10,))))))))))) -> 0 | E11: ='Micro canal'!E12 -> 20 | G11: =B11 -> Room temp. | H11: =IF($S$7=1,NL!G10,IF(cal!$S$7=2,EN!G10,IF(cal!$S$7=3,DE!G10,IF(cal!$S$7=4,FR!G10,)))) -> 0 | K11: ='Micro canal'!K12 -> 0 | S11: =IF($X$4=1,E11,IF($X$4=2,(E11-32)/1.8)) -> 20 | T11: =(($S$9-$S$10)/LN(($S$9-$S$11)/($S$10-$S$11)))/((75-65)/LN((75-20)/(65-20))) -> 1 | W11: =(($X$9-$X$10)/LN(($X$9-$X$11)/($X$10-$X$11)))/((16-18)/LN((16-27)/(18-27))) ->  | X11: =IF($X$4=1,K11,IF($X$4=2,(K11-32)/1.8)) -> 0 | Z11: =IF($X$4=1,(101325*(1-((0.0065*M8)/(288.15)))^((9.81*0.028964)/(8.31447*0.0065))),IF($X$4=2,(101325*(1-((0.0065*(M8*0.3048))/(288.15)))^((9.81*0.028964)/(8.31447*0.0065))))) -> 101325 | AA11: =IF($X$4=1,M8/1000,IF($X$4=2,M8*0.0003048)) -> 0 | AB11: =-(0.000265264729874266*AA11^6)+(0.000957582908802335*AA11^5)+(0.00470250661483425*AA11^4)-(0.0298716926548353*AA11^3)+(0.0557086806557086*AA11^2)-(0.0484008125693582*AA11)+1 -> 1
B12: =G12 -> Relative humidity | E12: 0.5 | G12: =IF($S$7=1,NL!F11,IF(cal!$S$7=2,EN!F11,IF(cal!$S$7=3,DE!F11,IF(cal!$S$7=4,FR!F11,IF(cal!$S$7=5,NR!F11,IF(cal!$S$7=6,SP!F11,IF(cal!$S$7=7,SW!F11,IF(cal!$S$7=8,TS!F11,IF(cal!$S$7=9,ExtraTaal1!F11,IF(cal!$S$7=10,ExtraTaal2!F11,IF(cal!$S$7=11,ExtraTaal3!F11,))))))))))) -> Relative humidity | K12: ='Micro canal'!K13 -> 0
E14: =IF($X$4=1,1,IF($X$4=2,0.004403)) -> 1 | F14: =IF($X$4=1,1,IF($X$4=2,4.0147)) -> 1 | G14: =IF($X$4=1,0.000334444444444444,IF($X$4=2,0.000568224721372)) -> 0.0003344444444 | H14: =IF($X$4=1,1,IF($X$4=2,3.4121416331)) -> 1 | I14: =IF($X$4=1,1,IF($X$4=2,0.004403)) -> 1 | J14: =IF($X$4=1,1,IF($X$4=2,4.0147)) -> 1 | N14: =IF($X$4=1,1,IF($X$4=2,0.588575)) -> 1 | O14: =IF($X$4=1,1,1.8) -> 1 | P14: =IF($X$4=1,0,32) -> 0 | S14: 8 & 10 | T14: 13/27 | U14: 13/32 | V14: 19
B15: =IF($S$7=1,NL!A14,IF(cal!$S$7=2,EN!A14,IF(cal!$S$7=3,DE!A14,IF(cal!$S$7=4,FR!A14,IF(cal!$S$7=5,NR!A14,IF(cal!$S$7=6,SP!A14,IF(cal!$S$7=7,SW!A14,IF(cal!$S$7=8,TS!A14,IF(cal!$S$7=9,ExtraTaal1!A14,IF(cal!$S$7=10,ExtraTaal2!A14,IF(cal!$S$7=11,ExtraTaal3!A14,))))))))))) -> Speed level: | C15: =IF($S$7=1,NL!B14,IF(cal!$S$7=2,EN!B14,IF(cal!$S$7=3,DE!B14,IF(cal!$S$7=4,FR!B14,IF(cal!$S$7=5,NR!B14,IF(cal!$S$7=6,SP!B14,IF(cal!$S$7=7,SW!B14,IF(cal!$S$7=8,TS!B14,IF(cal!$S$7=9,ExtraTaal1!B14,IF(cal!$S$7=10,ExtraTaal2!B14,IF(cal!$S$7=11,ExtraTaal3!B14,))))))))))) -> Control voltage [V] | D15: =IF($S$7=1,NL!C14,IF(cal!$S$7=2,EN!C14,IF(cal!$S$7=3,DE!C14,IF(cal!$S$7=4,FR!C14,IF(cal!$S$7=5,NR!C14,IF(cal!$S$7=6,SP!C14,IF(cal!$S$7=7,SW!C14,IF(cal!$S$7=8,TS!C14,IF(cal!$S$7=9,ExtraTaal1!C14,IF(cal!$S$7=10,ExtraTaal2!C14,IF(cal!$S$7=11,ExtraTaal3!C14,))))))))))) -> Heat output * 75/65/20 [W] | E15: =IF($S$7=1,NL!D14,IF(cal!$S$7=2,EN!D14,IF(cal!$S$7=3,DE!D14,IF(cal!$S$7=4,FR!D14,IF(cal!$S$7=5,NR!D14,IF(cal!$S$7=6,SP!D14,IF(cal!$S$7=7,SW!D14,IF(cal!$S$7=8,TS!D14,IF(cal!$S$7=9,ExtraTaal1!D14,IF(cal!$S$7=10,ExtraTaal2!D14,IF(cal!$S$7=11,ExtraTaal3!D14,))))))))))) -> Water flowrate, heating [l/h] | F15: =IF($S$7=1,NL!E14,IF(cal!$S$7=2,EN!E14,IF(cal!$S$7=3,DE!E14,IF(cal!$S$7=4,FR!E14,IF(cal!$S$7=5,NR!E14,IF(cal!$S$7=6,SP!E14,IF(cal!$S$7=7,SW!E14,IF(cal!$S$7=8,TS!E14,IF(cal!$S$7=9,ExtraTaal1!E14,IF(cal!$S$7=10,ExtraTaal2!E14,IF(cal!$S$7=11,ExtraTaal3!E14,))))))))))) -> Watersided pressure loss [kPa] | K15: =IF($S$7=1,NL!J14,IF(cal!$S$7=2,EN!J14,IF(cal!$S$7=3,DE!J14,IF(cal!$S$7=4,FR!J14,IF(cal!$S$7=5,NR!J14,IF(cal!$S$7=6,SP!J14,IF(cal!$S$7=7,SW!J14,IF(cal!$S$7=8,TS!J14,IF(cal!$S$7=9,ExtraTaal1!J14,IF(cal!$S$7=10,ExtraTaal2!J14,IF(cal!$S$7=11,ExtraTaal3!J14,))))))))))) -> Sound pressure *** [dB(A)] | L15: =IF($S$7=1,NL!K14,IF(cal!$S$7=2,EN!K14,IF(cal!$S$7=3,DE!K14,IF(cal!$S$7=4,FR!K14,IF(cal!$S$7=5,NR!K14,IF(cal!$S$7=6,SP!K14,IF(cal!$S$7=7,SW!K14,IF(cal!$S$7=8,TS!K14,IF(cal!$S$7=9,ExtraTaal1!K14,IF(cal!$S$7=10,ExtraTaal2!K14,IF(cal!$S$7=11,ExtraTaal3!K14,))))))))))) -> Sound power ** [dB(A)] | M15: =IF($S$7=1,NL!L14,IF(cal!$S$7=2,EN!L14,IF(cal!$S$7=3,DE!L14,IF(cal!$S$7=4,FR!L14,IF(cal!$S$7=5,NR!L14,IF(cal!$S$7=6,SP!L14,IF(cal!$S$7=7,SW!L14,IF(cal!$S$7=8,TS!L14,IF(cal!$S$7=9,ExtraTaal1!L14,IF(cal!$S$7=10,ExtraTaal2!L14,IF(cal!$S$7=11,ExtraTaal3!L14,))))))))))) -> Electrical power [W] | N15: =IF($S$7=1,NL!M14,IF(cal!$S$7=2,EN!M14,IF(cal!$S$7=3,DE!M14,IF(cal!$S$7=4,FR!M14,IF(cal!$S$7=5,NR!M14,IF(cal!$S$7=6,SP!M14,IF(cal!$S$7=7,SW!M14,IF(cal!$S$7=8,TS!M14,IF(cal!$S$7=9,ExtraTaal1!M14,IF(cal!$S$7=10,ExtraTaal2!M14,IF(cal!$S$7=11,ExtraTaal3!M14,))))))))))) -> Air flowrate [m³/h] | O15: =IF($S$7=1,NL!N14,IF(cal!$S$7=2,EN!N14,IF(cal!$S$7=3,DE!N14,IF(cal!$S$7=4,FR!N14,IF(cal!$S$7=5,NR!N14,IF(cal!$S$7=6,SP!N14,IF(cal!$S$7=7,SW!N14,IF(cal!$S$7=8,TS!N14,IF(cal!$S$7=9,ExtraTaal1!N14,IF(cal!$S$7=10,ExtraTaal2!N14,IF(cal!$S$7=11,ExtraTaal3!N14,))))))))))) -> Air exhaust temp. heating [°C] | P15: =IF($S$7=1,NL!O14,IF(cal!$S$7=2,EN!O14,IF(cal!$S$7=3,DE!O14,IF(cal!$S$7=4,FR!O14,IF(cal!$S$7=5,NR!O14,IF(cal!$S$7=6,SP!O14,IF(cal!$S$7=7,SW!O14,IF(cal!$S$7=8,TS!O14,IF(cal!$S$7=9,ExtraTaal1!O14,IF(cal!$S$7=10,ExtraTaal2!O14,IF(cal!$S$7=11,ExtraTaal3!O14,))))))))))) -> Air exhaust temp. cooling [°C] | Q15: n- heating | R15: n- cooling | S15: n- cooling | T15: n- cooling | U15: n- cooling | V15: n- cooling | X15: Q_verw | Y15: dP_verw | Z15: Q_voelb_c | AA15: dP_cool | AB15: Geluid_P | AC15: P_elek | AD15: V_air | AE15: Q_verw | AF15: dP_verw | AG15: Q_voelb_c | AH15: dP_cool | AI15: Geluid_P | AJ15: P_elek | AK15: V_air | AL15: Flow l/h | AM15: deltap | AN15: k1 | AO15: k2 | AP15: n
B16: =IF($S$7=1,NL!A15,IF(cal!$S$7=2,EN!A15,IF(cal!$S$7=3,DE!A15,IF(cal!$S$7=4,FR!A15,IF(cal!$S$7=5,NR!A15,IF(cal!$S$7=6,SP!A15,IF(cal!$S$7=7,SW!A15,IF(cal!$S$7=8,TS!A15,IF(cal!$S$7=9,ExtraTaal1!A15,IF(cal!$S$7=10,ExtraTaal2!A15,IF(cal!$S$7=11,ExtraTaal3!A15,))))))))))) -> Micro Canal height 6 cm width 14 cm length 60 cm (Type 1) | C16: =IF($S$7=1,NL!B15,IF(cal!$S$7=2,EN!B15,IF(cal!$S$7=3,DE!B15,IF(cal!$S$7=4,FR!B15,IF(cal!$S$7=5,NR!B15,IF(cal!$S$7=6,SP!B15,IF(cal!$S$7=7,SW!B15,IF(cal!$S$7=8,TS!B15,IF(cal!$S$7=9,ExtraTaal1!B15,IF(cal!$S$7=10,ExtraTaal2!B15,IF(cal!$S$7=11,ExtraTaal3!B15,))))))))))) -> 0 | D16: =IF($S$7=1,NL!C15,IF(cal!$S$7=2,EN!C15,IF(cal!$S$7=3,DE!C15,IF(cal!$S$7=4,FR!C15,IF(cal!$S$7=5,NR!C15,IF(cal!$S$7=6,SP!C15,IF(cal!$S$7=7,SW!C15,IF(cal!$S$7=8,TS!C15,IF(cal!$S$7=9,ExtraTaal1!C15,IF(cal!$S$7=10,ExtraTaal2!C15,IF(cal!$S$7=11,ExtraTaal3!C15,))))))))))) -> 0 | E16: =IF($S$7=1,NL!D15,IF(cal!$S$7=2,EN!D15,IF(cal!$S$7=3,DE!D15,IF(cal!$S$7=4,FR!D15,IF(cal!$S$7=5,NR!D15,IF(cal!$S$7=6,SP!D15,IF(cal!$S$7=7,SW!D15,IF(cal!$S$7=8,TS!D15,IF(cal!$S$7=9,ExtraTaal1!D15,IF(cal!$S$7=10,ExtraTaal2!D15,IF(cal!$S$7=11,ExtraTaal3!D15,))))))))))) -> 0 | F16: =IF($S$7=1,NL!E15,IF(cal!$S$7=2,EN!E15,IF(cal!$S$7=3,DE!E15,IF(cal!$S$7=4,FR!E15,IF(cal!$S$7=5,NR!E15,IF(cal!$S$7=6,SP!E15,IF(cal!$S$7=7,SW!E15,IF(cal!$S$7=8,TS!E15,IF(cal!$S$7=9,ExtraTaal1!E15,IF(cal!$S$7=10,ExtraTaal2!E15,IF(cal!$S$7=11,ExtraTaal3!E15,))))))))))) -> 0 | G16: =IF($S$7=1,NL!F15,IF(cal!$S$7=2,EN!F15,IF(cal!$S$7=3,DE!F15,IF(cal!$S$7=4,FR!F15,IF(cal!$S$7=5,NR!F15,IF(cal!$S$7=6,SP!F15,IF(cal!$S$7=7,SW!F15,IF(cal!$S$7=8,TS!F15,IF(cal!$S$7=9,ExtraTaal1!F15,IF(cal!$S$7=10,ExtraTaal2!F15,IF(cal!$S$7=11,ExtraTaal3!F15,))))))))))) -> 0 | H16: =IF($S$7=1,NL!G15,IF(cal!$S$7=2,EN!G15,IF(cal!$S$7=3,DE!G15,IF(cal!$S$7=4,FR!G15,IF(cal!$S$7=5,NR!G15,IF(cal!$S$7=6,SP!G15,IF(cal!$S$7=7,SW!G15,IF(cal!$S$7=8,TS!G15,IF(cal!$S$7=9,ExtraTaal1!G15,IF(cal!$S$7=10,ExtraTaal2!G15,IF(cal!$S$7=11,ExtraTaal3!G15,))))))))))) -> 0 | I16: =IF($S$7=1,NL!H15,IF(cal!$S$7=2,EN!H15,IF(cal!$S$7=3,DE!H15,IF(cal!$S$7=4,FR!H15,IF(cal!$S$7=5,NR!H15,IF(cal!$S$7=6,SP!H15,IF(cal!$S$7=7,SW!H15,IF(cal!$S$7=8,TS!H15,IF(cal!$S$7=9,ExtraTaal1!H15,IF(cal!$S$7=10,ExtraTaal2!H15,IF(cal!$S$7=11,ExtraTaal3!H15,))))))))))) -> 0 | J16: =IF($S$7=1,NL!I15,IF(cal!$S$7=2,EN!I15,IF(cal!$S$7=3,DE!I15,IF(cal!$S$7=4,FR!I15,IF(cal!$S$7=5,NR!I15,IF(cal!$S$7=6,SP!I15,IF(cal!$S$7=7,SW!I15,IF(cal!$S$7=8,TS!I15,IF(cal!$S$7=9,ExtraTaal1!I15,IF(cal!$S$7=10,ExtraTaal2!I15,IF(cal!$S$7=11,ExtraTaal3!I15,))))))))))) -> 0 | K16: =IF($S$7=1,NL!J15,IF(cal!$S$7=2,EN!J15,IF(cal!$S$7=3,DE!J15,IF(cal!$S$7=4,FR!J15,IF(cal!$S$7=5,NR!J15,IF(cal!$S$7=6,SP!J15,IF(cal!$S$7=7,SW!J15,IF(cal!$S$7=8,TS!J15,IF(cal!$S$7=9,ExtraTaal1!J15,IF(cal!$S$7=10,ExtraTaal2!J15,IF(cal!$S$7=11,ExtraTaal3!J15,))))))))))) -> 0 | L16: =IF($S$7=1,NL!K15,IF(cal!$S$7=2,EN!K15,IF(cal!$S$7=3,DE!K15,IF(cal!$S$7=4,FR!K15,IF(cal!$S$7=5,NR!K15,IF(cal!$S$7=6,SP!K15,IF(cal!$S$7=7,SW!K15,IF(cal!$S$7=8,TS!K15,IF(cal!$S$7=9,ExtraTaal1!K15,IF(cal!$S$7=10,ExtraTaal2!K15,IF(cal!$S$7=11,ExtraTaal3!K15,))))))))))) -> 0 | M16: =IF($S$7=1,NL!L15,IF(cal!$S$7=2,EN!L15,IF(cal!$S$7=3,DE!L15,IF(cal!$S$7=4,FR!L15,IF(cal!$S$7=5,NR!L15,IF(cal!$S$7=6,SP!L15,IF(cal!$S$7=7,SW!L15,IF(cal!$S$7=8,TS!L15,IF(cal!$S$7=9,ExtraTaal1!L15,IF(cal!$S$7=10,ExtraTaal2!L15,IF(cal!$S$7=11,ExtraTaal3!L15,))))))))))) -> 0 | N16: =IF($S$7=1,NL!M15,IF(cal!$S$7=2,EN!M15,IF(cal!$S$7=3,DE!M15,IF(cal!$S$7=4,FR!M15,IF(cal!$S$7=5,NR!M15,IF(cal!$S$7=6,SP!M15,IF(cal!$S$7=7,SW!M15,IF(cal!$S$7=8,TS!M15,IF(cal!$S$7=9,ExtraTaal1!M15,IF(cal!$S$7=10,ExtraTaal2!M15,IF(cal!$S$7=11,ExtraTaal3!M15,))))))))))) -> 0 | O16: =IF($S$7=1,NL!N15,IF(cal!$S$7=2,EN!N15,IF(cal!$S$7=3,DE!N15,IF(cal!$S$7=4,FR!N15,IF(cal!$S$7=5,NR!N15,IF(cal!$S$7=6,SP!N15,IF(cal!$S$7=7,SW!N15,IF(cal!$S$7=8,TS!N15,IF(cal!$S$7=9,ExtraTaal1!N15,IF(cal!$S$7=10,ExtraTaal2!N15,IF(cal!$S$7=11,ExtraTaal3!N15,))))))))))) -> 0 | P16: =IF($S$7=1,NL!O15,IF(cal!$S$7=2,EN!O15,IF(cal!$S$7=3,DE!O15,IF(cal!$S$7=4,FR!O15,IF(cal!$S$7=5,NR!O15,IF(cal!$S$7=6,SP!O15,IF(cal!$S$7=7,SW!O15,IF(cal!$S$7=8,TS!O15,IF(cal!$S$7=9,ExtraTaal1!O15,IF(cal!$S$7=10,ExtraTaal2!O15,IF(cal!$S$7=11,ExtraTaal3!O15,))))))))))) -> 0 | Q16: n-value | R16: n-value | S16: n-value | T16: n-value | U16: n-value | V16: n-value | X16: 1 | AE16: =CONCATENATE("Micro H",ROUND(AF22,1)," B",AH22) -> Micro H6 B14
B17: 0.2 | C17: 2 | D17: =(X17*($T$11^$Q17))*Watts*CF_Altit -> 59.7 | E17: =ROUND(((D17/Watts)/(($S$9-$S$10)*1.163))*$E$14,IF($X$4=1,0,IF($X$4=2,2))) -> 5 | F17: =(IF($X$4=1,AM17,IF($X$4=2,AM17*0.334552563))) -> 0.001142587369 | K17: =L17-8 -> 13.8 | L17: =AB17 -> 21.8 | M17: =AC17 -> 0.51 | N17: =AD17*Cubics -> 11 | O17: =((($D17/Watts)/(((p_atm*0.028964)/(8.31447*(20+273.15)))*(($N17/3600)/Cubics)*(1005+1870*((0.622)/(((p_atm)/($E$12*Pvs_Heat_in))-1)))))+Tl_heat)*Celc1+Celc2 -> 35.93079445 | P17: =(Tl_cool-(($G17/Watts)/(1006*$N17*kgss)))*Celc1+Celc2 -> 0 | Q17: 1 | R17: =IF($X$16=1,S17,IF($X$16=2,S17,IF($X$16=3,U17,IF($X$16=4,U17,IF($X$16=5,V17,IF($X$16=6,V17,IF($X$16=7,T17,))))))) -> 0.6 | S17: 0.6 | T17: 1.16 | U17: 0.7807 | V17: 0.8766 | W17: =(H17-G17)/H17 ->  | X17: =IF($X$16=1,AE17,IF($X$16=2,AQ17,IF($X$16=3,BP17,IF($X$16=4,BI17,IF($X$16=5,CE17,IF($X$16=6,BX17,IF($X$16=7,BB17,))))))) -> 59.7 | Y17: =IF($X$16=1,AF17,IF($X$16=2,AR17,IF($X$16=3,BQ17,IF($X$16=4,BJ17,IF($X$16=5,CF17,IF($X$16=6,BY17,IF($X$16=7,BC17,))))))) -> a | Z17: 30 | AA17: a | AB17: 21.8 | AC17: 0.51 | AD17: 11 | AE17: =AE29*($AK$22/$AK$34) -> 59.7 | AF17: a | AG17: 30 | AH17: a | AI17: 21.8 | AJ17: 0.51 | AK17: 11 | AL17: =((D17/Watts)/(($S$9-$S$10)*1.163)) -> 5.13327601 | AM17: =((AN17*(AL17^AP17)*(($AL$22-19.5)/100)*2)+AO17*(AL17^2))*0.0098 -> 0.001142587369 | AN17: 0.0065250871 | AO17: 0.0005785274086 | AP17: 1.805666115
B18: 0.4 | C18: 4 | D18: =(X18*($T$11^$Q18))*Watts*CF_Altit -> 156.9 | E18: =ROUND(((D18/Watts)/(($S$9-$S$10)*1.163))*$E$14,IF($X$4=1,0,IF($X$4=2,2))) -> 13 | F18: =(IF($X$4=1,AM18,IF($X$4=2,AM18*0.334552563))) -> 0.0067175218 | K18: =L18-8 -> 14.9 | L18: 22.9 | M18: 0.75 | N18: =AD18*Cubics -> 19 | O18: =((($D18/Watts)/(((p_atm*0.028964)/(8.31447*(20+273.15)))*(($N18/3600)/Cubics)*(1005+1870*((0.622)/(((p_atm)/($E$12*Pvs_Heat_in))-1)))))+Tl_heat)*Celc1+Celc2 -> 44.23958225 | P18: =(Tl_cool-(($G18/Watts)/(1006*$N18*kgss)))*Celc1+Celc2 -> 0 | Q18: 1 | R18: =IF($X$16=1,S18,IF($X$16=2,S18,IF($X$16=3,U18,IF($X$16=4,U18,IF($X$16=5,V18,IF($X$16=6,V18,IF($X$16=7,T18,))))))) -> 0.68 | S18: 0.68 | T18: 1.04 | U18: 0.8587 | V18: 0.8775 | W18: =(H18-G18)/H18 ->  | X18: =IF($X$16=1,AE18,IF($X$16=2,AQ18,IF($X$16=3,BP18,IF($X$16=4,BI18,IF($X$16=5,CE18,IF($X$16=6,BX18,IF($X$16=7,BB18,))))))) -> 156.9 | Y18: 0.00653 | Z18: =IF($X$16=1,AG18,IF($X$16=2,AS18,IF($X$16=3,BR18,IF($X$16=4,BK18,IF($X$16=5,CG18,IF($X$16=6,BZ18,IF($X$16=7,BD18,))))))) -> 66 | AA18: 0.0002564981899 | AB18: 22.9 | AC18: 0.75 | AD18: 19 | AE18: =AE30*($AK$22/$AK$34) -> 156.9 | AF18: 0.0002564981899 | AG18: 66 | AH18: =AF18 -> 0.0002564981899 | AI18: 22.9 | AJ18: 0.75 | AK18: 19 | AL18: =((D18/Watts)/(($S$9-$S$10)*1.163)) -> 13.49097163 | AM18: =((AN18*(AL18^AP18)*(($AL$22-19.5)/100)*2)+AO18*(AL18^2))*0.0098 -> 0.0067175218 | AN18: 0.0065250871 | AO18: 0.0005785274086 | AP18: 1.805666115
B19: 0.6 | C19: 6 | D19: =(X19*($T$11^$Q19))*Watts*CF_Altit -> 315.9 | E19: =ROUND(((D19/Watts)/(($S$9-$S$10)*1.163))*$E$14,IF($X$4=1,0,IF($X$4=2,2))) -> 27 | F19: =(IF($X$4=1,AM19,IF($X$4=2,AM19*0.334552563))) -> 0.02430025386 | K19: =L19-8 -> 18.8 | L19: 26.8 | M19: 1.17 | N19: =AD19*Cubics -> 29 | O19: =((($D19/Watts)/(((p_atm*0.028964)/(8.31447*(20+273.15)))*(($N19/3600)/Cubics)*(1005+1870*((0.622)/(((p_atm)/($E$12*Pvs_Heat_in))-1)))))+Tl_heat)*Celc1+Celc2 -> 51.97476904 | P19: =(Tl_cool-(($G19/Watts)/(1006*$N19*kgss)))*Celc1+Celc2 -> 0 | Q19: 1 | R19: 0.79 | S19: 0.79 | T19: 0.95 | U19: 0.8831 | V19: 0.882 | W19: =(H19-G19)/H19 ->  | X19: =IF($X$16=1,AE19,IF($X$16=2,AQ19,IF($X$16=3,BP19,IF($X$16=4,BI19,IF($X$16=5,CE19,IF($X$16=6,BX19,IF($X$16=7,BB19,))))))) -> 315.9 | Y19: =IF($X$16=1,AF19,IF($X$16=2,AR19,IF($X$16=3,BQ19,IF($X$16=4,BJ19,IF($X$16=5,CF19,IF($X$16=6,BY19,IF($X$16=7,BC19,))))))) -> b | Z19: 104 | AA19: b | AB19: 26.8 | AC19: 1.17 | AD19: 29 | AE19: =AE31*($AK$22/$AK$34) -> 315.9 | AF19: b | AG19: 104 | AH19: b | AI19: 26.8 | AJ19: 1.17 | AK19: 29 | AL19: =((D19/Watts)/(($S$9-$S$10)*1.163)) -> 27.16251075 | AM19: 0.02430025386 | AN19: 0.0065250871 | AO19: 0.0005785274086 | AP19: 1.805666115
B20: 0.8 | C20: 8 | D20: =(X20*($T$11^$Q20))*Watts*CF_Altit -> 420.9 | E20: =ROUND(((D20/Watts)/(($S$9-$S$10)*1.163))*$E$14,IF($X$4=1,0,IF($X$4=2,2))) -> 36 | F20: 0.04120180891 | K20: =L20-8 -> 31.6 | L20: 39.6 | M20: 1.79 | N20: =AD20*Cubics -> 40 | O20: =((($D20/Watts)/(((p_atm*0.028964)/(8.31447*(20+273.15)))*(($N20/3600)/Cubics)*(1005+1870*((0.622)/(((p_atm)/($E$12*Pvs_Heat_in))-1)))))+Tl_heat)*Celc1+Celc2 -> 50.88692849 | P20: =(Tl_cool-(($G20/Watts)/(1006*$N20*kgss)))*Celc1+Celc2 -> 0 | Q20: 1 | R20: 0.87 | S20: 0.87 | T20: 0.95 | U20: 0.8539 | V20: 0.895 | W20: =(H20-G20)/H20 ->  | X20: =IF($X$16=1,AE20,IF($X$16=2,AQ20,IF($X$16=3,BP20,IF($X$16=4,BI20,IF($X$16=5,CE20,IF($X$16=6,BX20,IF($X$16=7,BB20,))))))) -> 420.9 | Y20: 1.80567 | Z20: 144 | AA20: 1.823515585 | AB20: 39.6 | AC20: 1.79 | AD20: 40 | AE20: =AE32*($AK$22/$AK$34) -> 420.9 | AF20: 1.823515585 | AG20: 144 | AH20: =AF20 -> 1.823515585 | AI20: 39.6 | AJ20: 1.79 | AK20: 40 | AL20: =((D20/Watts)/(($S$9-$S$10)*1.163)) -> 36.19088564 | AM20: 0.04120180891 | AN20: 0.0065250871 | AO20: 0.0005785274086 | AP20: 1.805666115
B21: 1 | C21: 10 | D21: =(X21*($T$11^$Q21))*Watts*CF_Altit -> 494.7 | E21: =ROUND(((D21/Watts)/(($S$9-$S$10)*1.163))*$E$14,IF($X$4=1,0,IF($X$4=2,2))) -> 43 | F21: 0.05547489855 | K21: =L21-8 -> 39.2 | L21: 47.2 | M21: 2.67 | N21: =AD21*Cubics -> 65 | O21: =((($D21/Watts)/(((p_atm*0.028964)/(8.31447*(20+273.15)))*(($N21/3600)/Cubics)*(1005+1870*((0.622)/(((p_atm)/($E$12*Pvs_Heat_in))-1)))))+Tl_heat)*Celc1+Celc2 -> 42.34006034 | P21: =(Tl_cool-(($G21/Watts)/(1006*$N21*kgss)))*Celc1+Celc2 -> 0 | Q21: 1 | R21: 0.91 | S21: 0.91 | T21: 0.98 | U21: 0.7711 | V21: 0.9111 | W21: =(H21-G21)/H21 ->  | X21: =IF($X$16=1,AE21,IF($X$16=2,AQ21,IF($X$16=3,BP21,IF($X$16=4,BI21,IF($X$16=5,CE21,IF($X$16=6,BX21,IF($X$16=7,BB21,))))))) -> 494.7 | Y21: =IF($X$16=1,AF21,IF($X$16=2,AR21,IF($X$16=3,BQ21,IF($X$16=4,BJ21,IF($X$16=5,CF21,IF($X$16=6,BY21,IF($X$16=7,BC21,))))))) -> 0 | Z21: 185 | AA21: 0 | AB21: 47.2 | AC21: 2.67 | AD21: 65 | AE21: =AE33*($AK$22/$AK$34) -> 494.7 | AG21: 185 | AI21: 47.2 | AJ21: 2.67 | AK21: 65 | AL21: =((D21/Watts)/(($S$9-$S$10)*1.163)) -> 42.53654342 | AM21: 0.05547489855 | AN21: 0.0065250871 | AO21: 0.0005785274086 | AP21: 1.805666115
B22: =IF($S$7=1,NL!A21,IF(cal!$S$7=2,EN!A21,IF(cal!$S$7=3,DE!A21,IF(cal!$S$7=4,FR!A21,IF(cal!$S$7=5,NR!A21,IF(cal!$S$7=6,SP!A21,IF(cal!$S$7=7,SW!A21,IF(cal!$S$7=8,TS!A21,IF(cal!$S$7=9,ExtraTaal1!A21,IF(cal!$S$7=10,ExtraTaal2!A21,IF(cal!$S$7=11,ExtraTaal3!A21,))))))))))) -> Micro Canal height 6 cm width 14 cm length 95 cm (Type 2) | C22: =IF($S$7=1,NL!B21,IF(cal!$S$7=2,EN!B21,IF(cal!$S$7=3,DE!B21,IF(cal!$S$7=4,FR!B21,IF(cal!$S$7=5,NR!B21,IF(cal!$S$7=6,SP!B21,IF(cal!$S$7=7,SW!B21,IF(cal!$S$7=8,TS!B21,IF(cal!$S$7=9,ExtraTaal1!B21,IF(cal!$S$7=10,ExtraTaal2!B21,IF(cal!$S$7=11,ExtraTaal3!B21,))))))))))) -> 0 | D22: =IF($S$7=1,NL!C21,IF(cal!$S$7=2,EN!C21,IF(cal!$S$7=3,DE!C21,IF(cal!$S$7=4,FR!C21,IF(cal!$S$7=5,NR!C21,IF(cal!$S$7=6,SP!C21,IF(cal!$S$7=7,SW!C21,IF(cal!$S$7=8,TS!C21,IF(cal!$S$7=9,ExtraTaal1!C21,IF(cal!$S$7=10,ExtraTaal2!C21,IF(cal!$S$7=11,ExtraTaal3!C21,))))))))))) -> 0 | E22: =IF($S$7=1,NL!D21,IF(cal!$S$7=2,EN!D21,IF(cal!$S$7=3,DE!D21,IF(cal!$S$7=4,FR!D21,IF(cal!$S$7=5,NR!D21,IF(cal!$S$7=6,SP!D21,IF(cal!$S$7=7,SW!D21,IF(cal!$S$7=8,TS!D21,IF(cal!$S$7=9,ExtraTaal1!D21,IF(cal!$S$7=10,ExtraTaal2!D21,IF(cal!$S$7=11,ExtraTaal3!D21,))))))))))) -> 0 | F22: =IF($S$7=1,NL!E21,IF(cal!$S$7=2,EN!E21,IF(cal!$S$7=3,DE!E21,IF(cal!$S$7=4,FR!E21,IF(cal!$S$7=5,NR!E21,IF(cal!$S$7=6,SP!E21,IF(cal!$S$7=7,SW!E21,IF(cal!$S$7=8,TS!E21,IF(cal!$S$7=9,ExtraTaal1!E21,IF(cal!$S$7=10,ExtraTaal2!E21,IF(cal!$S$7=11,ExtraTaal3!E21,))))))))))) -> 0 | G22: =IF($S$7=1,NL!F21,IF(cal!$S$7=2,EN!F21,IF(cal!$S$7=3,DE!F21,IF(cal!$S$7=4,FR!F21,IF(cal!$S$7=5,NR!F21,IF(cal!$S$7=6,SP!F21,IF(cal!$S$7=7,SW!F21,IF(cal!$S$7=8,TS!F21,IF(cal!$S$7=9,ExtraTaal1!F21,IF(cal!$S$7=10,ExtraTaal2!F21,IF(cal!$S$7=11,ExtraTaal3!F21,))))))))))) -> 0 | H22: =IF($S$7=1,NL!G21,IF(cal!$S$7=2,EN!G21,IF(cal!$S$7=3,DE!G21,IF(cal!$S$7=4,FR!G21,IF(cal!$S$7=5,NR!G21,IF(cal!$S$7=6,SP!G21,IF(cal!$S$7=7,SW!G21,IF(cal!$S$7=8,TS!G21,IF(cal!$S$7=9,ExtraTaal1!G21,IF(cal!$S$7=10,ExtraTaal2!G21,IF(cal!$S$7=11,ExtraTaal3!G21,))))))))))) -> 0 | I22: =IF($S$7=1,NL!H21,IF(cal!$S$7=2,EN!H21,IF(cal!$S$7=3,DE!H21,IF(cal!$S$7=4,FR!H21,IF(cal!$S$7=5,NR!H21,IF(cal!$S$7=6,SP!H21,IF(cal!$S$7=7,SW!H21,IF(cal!$S$7=8,TS!H21,IF(cal!$S$7=9,ExtraTaal1!H21,IF(cal!$S$7=10,ExtraTaal2!H21,IF(cal!$S$7=11,ExtraTaal3!H21,))))))))))) -> 0 | J22: =IF($S$7=1,NL!I21,IF(cal!$S$7=2,EN!I21,IF(cal!$S$7=3,DE!I21,IF(cal!$S$7=4,FR!I21,IF(cal!$S$7=5,NR!I21,IF(cal!$S$7=6,SP!I21,IF(cal!$S$7=7,SW!I21,IF(cal!$S$7=8,TS!I21,IF(cal!$S$7=9,ExtraTaal1!I21,IF(cal!$S$7=10,ExtraTaal2!I21,IF(cal!$S$7=11,ExtraTaal3!I21,))))))))))) -> 0 | K22: =IF($S$7=1,NL!J21,IF(cal!$S$7=2,EN!J21,IF(cal!$S$7=3,DE!J21,IF(cal!$S$7=4,FR!J21,IF(cal!$S$7=5,NR!J21,IF(cal!$S$7=6,SP!J21,IF(cal!$S$7=7,SW!J21,IF(cal!$S$7=8,TS!J21,IF(cal!$S$7=9,ExtraTaal1!J21,IF(cal!$S$7=10,ExtraTaal2!J21,IF(cal!$S$7=11,ExtraTaal3!J21,))))))))))) -> 0 | L22: =IF($S$7=1,NL!K21,IF(cal!$S$7=2,EN!K21,IF(cal!$S$7=3,DE!K21,IF(cal!$S$7=4,FR!K21,IF(cal!$S$7=5,NR!K21,IF(cal!$S$7=6,SP!K21,IF(cal!$S$7=7,SW!K21,IF(cal!$S$7=8,TS!K21,IF(cal!$S$7=9,ExtraTaal1!K21,IF(cal!$S$7=10,ExtraTaal2!K21,IF(cal!$S$7=11,ExtraTaal3!K21,))))))))))) -> 0 | M22: =IF($S$7=1,NL!L21,IF(cal!$S$7=2,EN!L21,IF(cal!$S$7=3,DE!L21,IF(cal!$S$7=4,FR!L21,IF(cal!$S$7=5,NR!L21,IF(cal!$S$7=6,SP!L21,IF(cal!$S$7=7,SW!L21,IF(cal!$S$7=8,TS!L21,IF(cal!$S$7=9,ExtraTaal1!L21,IF(cal!$S$7=10,ExtraTaal2!L21,IF(cal!$S$7=11,ExtraTaal3!L21,))))))))))) -> 0 | N22: =IF($S$7=1,NL!M21,IF(cal!$S$7=2,EN!M21,IF(cal!$S$7=3,DE!M21,IF(cal!$S$7=4,FR!M21,IF(cal!$S$7=5,NR!M21,IF(cal!$S$7=6,SP!M21,IF(cal!$S$7=7,SW!M21,IF(cal!$S$7=8,TS!M21,IF(cal!$S$7=9,ExtraTaal1!M21,IF(cal!$S$7=10,ExtraTaal2!M21,IF(cal!$S$7=11,ExtraTaal3!M21,))))))))))) -> 0 | O22: =IF($S$7=1,NL!N21,IF(cal!$S$7=2,EN!N21,IF(cal!$S$7=3,DE!N21,IF(cal!$S$7=4,FR!N21,IF(cal!$S$7=5,NR!N21,IF(cal!$S$7=6,SP!N21,IF(cal!$S$7=7,SW!N21,IF(cal!$S$7=8,TS!N21,IF(cal!$S$7=9,ExtraTaal1!N21,IF(cal!$S$7=10,ExtraTaal2!N21,IF(cal!$S$7=11,ExtraTaal3!N21,))))))))))) -> 0 | P22: =IF($S$7=1,NL!O21,IF(cal!$S$7=2,EN!O21,IF(cal!$S$7=3,DE!O21,IF(cal!$S$7=4,FR!O21,IF(cal!$S$7=5,NR!O21,IF(cal!$S$7=6,SP!O21,IF(cal!$S$7=7,SW!O21,IF(cal!$S$7=8,TS!O21,IF(cal!$S$7=9,ExtraTaal1!O21,IF(cal!$S$7=10,ExtraTaal2!O21,IF(cal!$S$7=11,ExtraTaal3!O21,))))))))))) -> 0 | Q22: n-value | R22: n-value | S22: n-value | T22: n-value | U22: n-value | V22: n-value | X22: =IF($X$16=1,AE22,IF($X$16=2,AQ22,IF($X$16=3,BP22,IF($X$16=4,BI22,IF($X$16=5,CE22,IF($X$16=6,BX22,IF($X$16=7,BB22,))))))) -> H | Y22: 6 | Z22: =IF($X$16=1,AG22,IF($X$16=2,AS22,IF($X$16=3,BR22,IF($X$16=4,BK22,IF($X$16=5,CG22,IF($X$16=6,BZ22,IF($X$16=7,BD22,))))))) -> B | AA22: =IF($X$16=1,AH22,IF($X$16=2,AT22,IF($X$16=3,BS22,IF($X$16=4,BL22,IF($X$16=5,CH22,IF($X$16=6,CA22,IF($X$16=7,BE22,))))))) -> 14 | AB22: =IF($X$16=1,AI22,IF($X$16=2,AU22,IF($X$16=3,BT22,IF($X$16=4,BM22,IF($X$16=5,CI22,IF($X$16=6,CB22,IF($X$16=7,BF22,))))))) -> L | AC22: =IF($X$16=1,AJ22,IF($X$16=2,AV22,IF($X$16=3,BU22,IF($X$16=4,BN22,IF($X$16=5,CJ22,IF($X$16=6,CC22,IF($X$16=7,BG22,))))))) -> 60 | AD22: =IF($X$16=1,AK22,IF($X$16=2,AW22,IF($X$16=3,BV22,IF($X$16=4,BO22,IF($X$16=5,CK22,IF($X$16=6,CD22,IF($X$16=7,BH22,))))))) -> 30 | AE22: H | AF22: =6*IF($X$4=1,1,IF($X$4=2,1/2.54)) -> 6 | AG22: B | AH22: =ROUND(14*IF($X$4=1,1,IF($X$4=2,1/2.54)),1) -> 14 | AI22: L | AJ22: =60*IF($X$4=1,1,IF($X$4=2,1/2.54)) -> 60 | AK22: 30 | AL22: 60 | AM22: =((AN22*(AL22^AP22)*(($AJ$22-19.5)/100)*2)+AO22*(AL22^2))*0.0098 -> 0
B23: 0.2 | C23: 2 | D23: =(X23*($T$11^$Q23))*Watts*CF_Altit -> 129.35 | E23: =ROUND(((D23/Watts)/(($S$9-$S$10)*1.163))*$E$14,IF($X$4=1,0,IF($X$4=2,2))) -> 11 | F23: =(IF($X$4=1,AM23,IF($X$4=2,AM23*0.334552563))) -> 0.008180498891 | K23: =L23-8 -> 14.3 | L23: =AB23 -> 22.3 | M23: 0.52 | N23: =AD23*Cubics -> 18 | O23: =((($D23/Watts)/(((p_atm*0.028964)/(8.31447*(20+273.15)))*(($N23/3600)/Cubics)*(1005+1870*((0.622)/(((p_atm)/($E$12*Pvs_Heat_in))-1)))))+Tl_heat)*Celc1+Celc2 -> 41.09355191 | P23: =(Tl_cool-(($G23/Watts)/(1006*$N23*kgss)))*Celc1+Celc2 -> 0 | Q23: 1 | R23: 0.6 | S23: 0.6 | T23: 1.16 | U23: 0.7807 | V23: 0.8766 | W23: =(H23-G23)/H23 ->  | X23: 129.35 | Y23: =IF($X$16=1,AF23,IF($X$16=2,AR23,IF($X$16=3,BQ23,IF($X$16=4,BJ23,IF($X$16=5,CF23,IF($X$16=6,BY23,IF($X$16=7,BC23,))))))) -> a | Z23: 62 | AA23: a | AB23: 22.3 | AC23: 0.52 | AD23: 18 | AE23: =AE29*($AK$28/$AK$34) -> 129.35 | AF23: a | AG23: 62 | AH23: a | AI23: 22.3 | AJ23: 0.52 | AK23: 18 | AL23: =((D23/Watts)/(($S$9-$S$10)*1.163)) -> 11.12209802 | AM23: =((AN23*(AL23^AP23)*(($AL$28-19.5)/100)*2)+AO23*(AL23^2))*0.0098 -> 0.008180498891 | AN23: 0.0065250871 | AO23: 0.0005785274086 | AP23: 1.805666115
B24: 0.4 | C24: 4 | D24: =(X24*($T$11^$Q24))*Watts*CF_Altit -> 339.95 | E24: =ROUND(((D24/Watts)/(($S$9-$S$10)*1.163))*$E$14,IF($X$4=1,0,IF($X$4=2,2))) -> 29 | F24: =(IF($X$4=1,AM24,IF($X$4=2,AM24*0.334552563))) -> 0.04765943833 | K24: =L24-8 -> 17.4 | L24: 25.4 | M24: 0.87 | N24: =AD24*Cubics -> 30 | O24: =((($D24/Watts)/(((p_atm*0.028964)/(8.31447*(20+273.15)))*(($N24/3600)/Cubics)*(1005+1870*((0.622)/(((p_atm)/($E$12*Pvs_Heat_in))-1)))))+Tl_heat)*Celc1+Celc2 -> 53.26209342 | P24: =(Tl_cool-(($G24/Watts)/(1006*$N24*kgss)))*Celc1+Celc2 -> 0 | Q24: 1 | R24: 0.68 | S24: 0.68 | T24: 1.04 | U24: 0.8587 | V24: 0.8775 | W24: =(H24-G24)/H24 ->  | X24: 339.95 | Y24: =IF($X$16=1,AF24,IF($X$16=2,AR24,IF($X$16=3,BQ24,IF($X$16=4,BJ24,IF($X$16=5,CF24,IF($X$16=6,BY24,IF($X$16=7,BC24,))))))) -> 0.0004020200901 | Z24: 135 | AA24: 0.0004020200901 | AB24: 25.4 | AC24: 0.87 | AD24: 30 | AE24: =AE30*($AK$28/$AK$34) -> 339.95 | AF24: 0.0004020200901 | AG24: 135 | AH24: =AF24 -> 0.0004020200901 | AI24: 25.4 | AJ24: 0.87 | AK24: 30 | AL24: =((D24/Watts)/(($S$9-$S$10)*1.163)) -> 29.23043852 | AM24: =((AN24*(AL24^AP24)*(($AL$28-19.5)/100)*2)+AO24*(AL24^2))*0.0098 -> 0.04765943833 | AN24: 0.0065250871 | AO24: 0.0005785274086 | AP24: 1.805666115
B25: 0.6 | C25: 6 | D25: =(X25*($T$11^$Q25))*Watts*CF_Altit -> 684.45 | E25: =ROUND(((D25/Watts)/(($S$9-$S$10)*1.163))*$E$14,IF($X$4=1,0,IF($X$4=2,2))) -> 59 | F25: 0.171128579 | K25: =L25-8 -> 25.5 | L25: 33.5 | M25: 1.53 | N25: =AD25*Cubics -> 50 | O25: =((($D25/Watts)/(((p_atm*0.028964)/(8.31447*(20+273.15)))*(($N25/3600)/Cubics)*(1005+1870*((0.622)/(((p_atm)/($E$12*Pvs_Heat_in))-1)))))+Tl_heat)*Celc1+Celc2 -> 60.18162643 | P25: =(Tl_cool-(($G25/Watts)/(1006*$N25*kgss)))*Celc1+Celc2 -> 0 | Q25: 1 | R25: 0.79 | S25: 0.79 | T25: 0.95 | U25: 0.8831 | V25: 0.882 | W25: =(H25-G25)/H25 ->  | X25: 684.45 | Y25: =IF($X$16=1,AF25,IF($X$16=2,AR25,IF($X$16=3,BQ25,IF($X$16=4,BJ25,IF($X$16=5,CF25,IF($X$16=6,BY25,IF($X$16=7,BC25,))))))) -> b | Z25: 214 | AA25: b | AB25: 33.5 | AC25: 1.53 | AD25: 50 | AE25: =AE31*($AK$28/$AK$34) -> 684.45 | AF25: b | AG25: 214 | AH25: b | AI25: 33.5 | AJ25: 1.53 | AK25: 50 | AL25: =((D25/Watts)/(($S$9-$S$10)*1.163)) -> 58.85210662 | AM25: 0.171128579 | AN25: 0.0065250871 | AO25: 0.0005785274086 | AP25: 1.805666115
B26: 0.8 | C26: 8 | D26: =(X26*($T$11^$Q26))*Watts*CF_Altit -> 911.95 | E26: =ROUND(((D26/Watts)/(($S$9-$S$10)*1.163))*$E$14,IF($X$4=1,0,IF($X$4=2,2))) -> 78 | F26: 0.2892079601 | K26: =L26-8 -> 36.1 | L26: 44.1 | M26: 2.46 | N26: =AD26*Cubics -> 74 | O26: =((($D26/Watts)/(((p_atm*0.028964)/(8.31447*(20+273.15)))*(($N26/3600)/Cubics)*(1005+1870*((0.622)/(((p_atm)/($E$12*Pvs_Heat_in))-1)))))+Tl_heat)*Celc1+Celc2 -> 56.17388021 | P26: =(Tl_cool-(($G26/Watts)/(1006*$N26*kgss)))*Celc1+Celc2 -> 0 | Q26: 1 | R26: 0.87 | S26: 0.87 | T26: 0.95 | U26: 0.8539 | V26: 0.895 | W26: =(H26-G26)/H26 ->  | X26: 911.95 | Y26: =IF($X$16=1,AF26,IF($X$16=2,AR26,IF($X$16=3,BQ26,IF($X$16=4,BJ26,IF($X$16=5,CF26,IF($X$16=6,BY26,IF($X$16=7,BC26,))))))) -> 1.823515585 | Z26: 296 | AA26: 1.823515585 | AB26: 44.1 | AC26: 2.46 | AD26: 74 | AE26: =AE32*($AK$28/$AK$34) -> 911.95 | AF26: 1.823515585 | AG26: 296 | AH26: =AF26 -> 1.823515585 | AI26: 44.1 | AJ26: 2.46 | AK26: 74 | AL26: =((D26/Watts)/(($S$9-$S$10)*1.163)) -> 78.41358555 | AM26: 0.2892079601 | AN26: 0.0065250871 | AO26: 0.0005785274086 | AP26: 1.805666115
B27: 1 | C27: 10 | D27: =(X27*($T$11^$Q27))*Watts*CF_Altit -> 1071.85 | E27: =ROUND(((D27/Watts)/(($S$9-$S$10)*1.163))*$E$14,IF($X$4=1,0,IF($X$4=2,2))) -> 92 | F27: 0.3886579649 | K27: =L27-8 -> 42.5 | L27: 50.5 | M27: 3.84 | N27: =AD27*Cubics -> 98 | O27: =((($D27/Watts)/(((p_atm*0.028964)/(8.31447*(20+273.15)))*(($N27/3600)/Cubics)*(1005+1870*((0.622)/(((p_atm)/($E$12*Pvs_Heat_in))-1)))))+Tl_heat)*Celc1+Celc2 -> 52.10433842 | P27: =(Tl_cool-(($G27/Watts)/(1006*$N27*kgss)))*Celc1+Celc2 -> 0 | Q27: 1 | R27: 0.91 | S27: 0.91 | T27: 0.98 | U27: 0.7711 | V27: 0.9111 | W27: =(H27-G27)/H27 ->  | X27: 1071.85 | Y27: =IF($X$16=1,AF27,IF($X$16=2,AR27,IF($X$16=3,BQ27,IF($X$16=4,BJ27,IF($X$16=5,CF27,IF($X$16=6,BY27,IF($X$16=7,BC27,))))))) -> 0 | Z27: 381 | AA27: 0 | AB27: 50.5 | AC27: 3.84 | AD27: 98 | AE27: =AE33*($AK$28/$AK$34) -> 1071.85 | AG27: 381 | AI27: 50.5 | AJ27: 3.84 | AK27: 98 | AL27: =((D27/Watts)/(($S$9-$S$10)*1.163)) -> 92.16251075 | AM27: 0.3886579649 | AN27: 0.0065250871 | AO27: 0.0005785274086 | AP27: 1.805666115
B28: =IF($S$7=1,NL!A27,IF(cal!$S$7=2,EN!A27,IF(cal!$S$7=3,DE!A27,IF(cal!$S$7=4,FR!A27,IF(cal!$S$7=5,NR!A27,IF(cal!$S$7=6,SP!A27,IF(cal!$S$7=7,SW!A27,IF(cal!$S$7=8,TS!A27,IF(cal!$S$7=9,ExtraTaal1!A27,IF(cal!$S$7=10,ExtraTaal2!A27,IF(cal!$S$7=11,ExtraTaal3!A27,))))))))))) -> Micro Canal height 6 cm width 14 cm length 130 cm (Type 3) | C28: =IF($S$7=1,NL!B27,IF(cal!$S$7=2,EN!B27,IF(cal!$S$7=3,DE!B27,IF(cal!$S$7=4,FR!B27,IF(cal!$S$7=5,NR!B27,IF(cal!$S$7=6,SP!B27,IF(cal!$S$7=7,SW!B27,IF(cal!$S$7=8,TS!B27,IF(cal!$S$7=9,ExtraTaal1!B27,IF(cal!$S$7=10,ExtraTaal2!B27,IF(cal!$S$7=11,ExtraTaal3!B27,))))))))))) -> 0 | D28: =IF($S$7=1,NL!C27,IF(cal!$S$7=2,EN!C27,IF(cal!$S$7=3,DE!C27,IF(cal!$S$7=4,FR!C27,IF(cal!$S$7=5,NR!C27,IF(cal!$S$7=6,SP!C27,IF(cal!$S$7=7,SW!C27,IF(cal!$S$7=8,TS!C27,IF(cal!$S$7=9,ExtraTaal1!C27,IF(cal!$S$7=10,ExtraTaal2!C27,IF(cal!$S$7=11,ExtraTaal3!C27,))))))))))) -> 0 | E28: =IF($S$7=1,NL!D27,IF(cal!$S$7=2,EN!D27,IF(cal!$S$7=3,DE!D27,IF(cal!$S$7=4,FR!D27,IF(cal!$S$7=5,NR!D27,IF(cal!$S$7=6,SP!D27,IF(cal!$S$7=7,SW!D27,IF(cal!$S$7=8,TS!D27,IF(cal!$S$7=9,ExtraTaal1!D27,IF(cal!$S$7=10,ExtraTaal2!D27,IF(cal!$S$7=11,ExtraTaal3!D27,))))))))))) -> 0 | F28: =IF($S$7=1,NL!E27,IF(cal!$S$7=2,EN!E27,IF(cal!$S$7=3,DE!E27,IF(cal!$S$7=4,FR!E27,IF(cal!$S$7=5,NR!E27,IF(cal!$S$7=6,SP!E27,IF(cal!$S$7=7,SW!E27,IF(cal!$S$7=8,TS!E27,IF(cal!$S$7=9,ExtraTaal1!E27,IF(cal!$S$7=10,ExtraTaal2!E27,IF(cal!$S$7=11,ExtraTaal3!E27,))))))))))) -> 0 | G28: =IF($S$7=1,NL!F27,IF(cal!$S$7=2,EN!F27,IF(cal!$S$7=3,DE!F27,IF(cal!$S$7=4,FR!F27,IF(cal!$S$7=5,NR!F27,IF(cal!$S$7=6,SP!F27,IF(cal!$S$7=7,SW!F27,IF(cal!$S$7=8,TS!F27,IF(cal!$S$7=9,ExtraTaal1!F27,IF(cal!$S$7=10,ExtraTaal2!F27,IF(cal!$S$7=11,ExtraTaal3!F27,))))))))))) -> 0 | H28: =IF($S$7=1,NL!G27,IF(cal!$S$7=2,EN!G27,IF(cal!$S$7=3,DE!G27,IF(cal!$S$7=4,FR!G27,IF(cal!$S$7=5,NR!G27,IF(cal!$S$7=6,SP!G27,IF(cal!$S$7=7,SW!G27,IF(cal!$S$7=8,TS!G27,IF(cal!$S$7=9,ExtraTaal1!G27,IF(cal!$S$7=10,ExtraTaal2!G27,IF(cal!$S$7=11,ExtraTaal3!G27,))))))))))) -> 0 | I28: =IF($S$7=1,NL!H27,IF(cal!$S$7=2,EN!H27,IF(cal!$S$7=3,DE!H27,IF(cal!$S$7=4,FR!H27,IF(cal!$S$7=5,NR!H27,IF(cal!$S$7=6,SP!H27,IF(cal!$S$7=7,SW!H27,IF(cal!$S$7=8,TS!H27,IF(cal!$S$7=9,ExtraTaal1!H27,IF(cal!$S$7=10,ExtraTaal2!H27,IF(cal!$S$7=11,ExtraTaal3!H27,))))))))))) -> 0 | J28: =IF($S$7=1,NL!I27,IF(cal!$S$7=2,EN!I27,IF(cal!$S$7=3,DE!I27,IF(cal!$S$7=4,FR!I27,IF(cal!$S$7=5,NR!I27,IF(cal!$S$7=6,SP!I27,IF(cal!$S$7=7,SW!I27,IF(cal!$S$7=8,TS!I27,IF(cal!$S$7=9,ExtraTaal1!I27,IF(cal!$S$7=10,ExtraTaal2!I27,IF(cal!$S$7=11,ExtraTaal3!I27,))))))))))) -> 0 | K28: =IF($S$7=1,NL!J27,IF(cal!$S$7=2,EN!J27,IF(cal!$S$7=3,DE!J27,IF(cal!$S$7=4,FR!J27,IF(cal!$S$7=5,NR!J27,IF(cal!$S$7=6,SP!J27,IF(cal!$S$7=7,SW!J27,IF(cal!$S$7=8,TS!J27,IF(cal!$S$7=9,ExtraTaal1!J27,IF(cal!$S$7=10,ExtraTaal2!J27,IF(cal!$S$7=11,ExtraTaal3!J27,))))))))))) -> 0 | L28: =IF($S$7=1,NL!K27,IF(cal!$S$7=2,EN!K27,IF(cal!$S$7=3,DE!K27,IF(cal!$S$7=4,FR!K27,IF(cal!$S$7=5,NR!K27,IF(cal!$S$7=6,SP!K27,IF(cal!$S$7=7,SW!K27,IF(cal!$S$7=8,TS!K27,IF(cal!$S$7=9,ExtraTaal1!K27,IF(cal!$S$7=10,ExtraTaal2!K27,IF(cal!$S$7=11,ExtraTaal3!K27,))))))))))) -> 0 | M28: =IF($S$7=1,NL!L27,IF(cal!$S$7=2,EN!L27,IF(cal!$S$7=3,DE!L27,IF(cal!$S$7=4,FR!L27,IF(cal!$S$7=5,NR!L27,IF(cal!$S$7=6,SP!L27,IF(cal!$S$7=7,SW!L27,IF(cal!$S$7=8,TS!L27,IF(cal!$S$7=9,ExtraTaal1!L27,IF(cal!$S$7=10,ExtraTaal2!L27,IF(cal!$S$7=11,ExtraTaal3!L27,))))))))))) -> 0 | N28: =IF($S$7=1,NL!M27,IF(cal!$S$7=2,EN!M27,IF(cal!$S$7=3,DE!M27,IF(cal!$S$7=4,FR!M27,IF(cal!$S$7=5,NR!M27,IF(cal!$S$7=6,SP!M27,IF(cal!$S$7=7,SW!M27,IF(cal!$S$7=8,TS!M27,IF(cal!$S$7=9,ExtraTaal1!M27,IF(cal!$S$7=10,ExtraTaal2!M27,IF(cal!$S$7=11,ExtraTaal3!M27,))))))))))) -> 0 | O28: =IF($S$7=1,NL!N27,IF(cal!$S$7=2,EN!N27,IF(cal!$S$7=3,DE!N27,IF(cal!$S$7=4,FR!N27,IF(cal!$S$7=5,NR!N27,IF(cal!$S$7=6,SP!N27,IF(cal!$S$7=7,SW!N27,IF(cal!$S$7=8,TS!N27,IF(cal!$S$7=9,ExtraTaal1!N27,IF(cal!$S$7=10,ExtraTaal2!N27,IF(cal!$S$7=11,ExtraTaal3!N27,))))))))))) -> 0 | P28: =IF($S$7=1,NL!O27,IF(cal!$S$7=2,EN!O27,IF(cal!$S$7=3,DE!O27,IF(cal!$S$7=4,FR!O27,IF(cal!$S$7=5,NR!O27,IF(cal!$S$7=6,SP!O27,IF(cal!$S$7=7,SW!O27,IF(cal!$S$7=8,TS!O27,IF(cal!$S$7=9,ExtraTaal1!O27,IF(cal!$S$7=10,ExtraTaal2!O27,IF(cal!$S$7=11,ExtraTaal3!O27,))))))))))) -> 0 | Q28: n-value | R28: n-value | S28: n-value | T28: n-value | U28: n-value | V28: n-value | X28: H | Y28: 6 | Z28: B | AA28: =IF($X$16=1,AH28,IF($X$16=2,AT28,IF($X$16=3,BS28,IF($X$16=4,BL28,IF($X$16=5,CH28,IF($X$16=6,CA28,IF($X$16=7,BE28,))))))) -> 14 | AB28: L | AC28: 95 | AD28: 65 | AE28: H | AF28: =AF22 -> 6 | AG28: B | AH28: =AH22 -> 14 | AI28: L | AJ28: =95*IF($X$4=1,1,IF($X$4=2,1/2.54)) -> 95 | AK28: 65 | AL28: 95 | AM28: =((AN28*(AL28^AP28)*(($AJ$28-19.5)/100)*2)+AO28*(AL28^2))*0.0098 -> 0.4108325729 | AN28: 0.0065250871 | AO28: 0.0005785274086 | AP28: 1.805666115
B29: 0.2 | C29: 2 | D29: =(X29*($T$11^$Q29))*Watts*CF_Altit -> 199 | E29: =ROUND(((D29/Watts)/(($S$9-$S$10)*1.163))*$E$14,IF($X$4=1,0,IF($X$4=2,2))) -> 17 | F29: =(IF($X$4=1,AM29,IF($X$4=2,AM29*0.334552563))) -> 0.02548779151 | K29: =L29-8 -> 13.9 | L29: =AB29 -> 21.9 | M29: 0.54 | N29: =AD29*Cubics -> 26 | O29: =((($D29/Watts)/(((p_atm*0.028964)/(8.31447*(20+273.15)))*(($N29/3600)/Cubics)*(1005+1870*((0.622)/(((p_atm)/($E$12*Pvs_Heat_in))-1)))))+Tl_heat)*Celc1+Celc2 -> 42.46650499 | P29: =(Tl_cool-(($G29/Watts)/(1006*$N29*kgss)))*Celc1+Celc2 -> 0 | Q29: 1 | R29: 0.6 | S29: 0.6 | T29: 1.16 | U29: 0.7807 | V29: 0.8766 | W29: =(H29-G29)/H29 ->  | X29: 199 | Y29: =IF($X$16=1,AF29,IF($X$16=2,AR29,IF($X$16=3,BQ29,IF($X$16=4,BJ29,IF($X$16=5,CF29,IF($X$16=6,BY29,IF($X$16=7,BC29,))))))) -> a | Z29: 97 | AA29: a | AB29: 21.9 | AC29: 0.54 | AD29: 26 | AE29: 199 | AF29: a | AG29: 97 | AH29: a | AI29: 21.9 | AJ29: 0.54 | AK29: 26 | AL29: =((D29/Watts)/(($S$9-$S$10)*1.163)) -> 17.11092003 | AM29: =((AN29*(AL29^AP29)*(($AL$34-19.5)/100)*2)+AO29*(AL29^2))*0.0098 -> 0.02548779151 | AN29: 0.0065250871 | AO29: 0.0005785274086 | AP29: 1.805666115
B30: 0.4 | C30: 4 | D30: =(X30*($T$11^$Q30))*Watts*CF_Altit -> 523 | E30: =ROUND(((D30/Watts)/(($S$9-$S$10)*1.163))*$E$14,IF($X$4=1,0,IF($X$4=2,2))) -> 45 | F30: =(IF($X$4=1,AM30,IF($X$4=2,AM30*0.334552563))) -> 0.147870391 | K30: =L30-8 -> 15.2 | L30: 23.2 | M30: 0.95 | N30: =AD30*Cubics -> 41 | O30: =((($D30/Watts)/(((p_atm*0.028964)/(8.31447*(20+273.15)))*(($N30/3600)/Cubics)*(1005+1870*((0.622)/(((p_atm)/($E$12*Pvs_Heat_in))-1)))))+Tl_heat)*Celc1+Celc2 -> 57.44325713 | P30: =(Tl_cool-(($G30/Watts)/(1006*$N30*kgss)))*Celc1+Celc2 -> 0 | Q30: 1 | R30: 0.68 | S30: 0.68 | T30: 1.04 | U30: 0.8587 | V30: 0.8775 | W30: =(H30-G30)/H30 ->  | X30: 523 | Y30: =IF($X$16=1,AF30,IF($X$16=2,AR30,IF($X$16=3,BQ30,IF($X$16=4,BJ30,IF($X$16=5,CF30,IF($X$16=6,BY30,IF($X$16=7,BC30,))))))) -> 0.0005605474778 | Z30: 212 | AA30: 0.0005605474778 | AB30: 23.2 | AC30: 0.95 | AD30: 41 | AE30: 523 | AF30: 0.0005605474778 | AG30: 212 | AH30: =AF30 -> 0.0005605474778 | AI30: 23.2 | AJ30: 0.95 | AK30: 41 | AL30: =((D30/Watts)/(($S$9-$S$10)*1.163)) -> 44.96990542 | AM30: =((AN30*(AL30^AP30)*(($AL$34-19.5)/100)*2)+AO30*(AL30^2))*0.0098 -> 0.147870391 | AN30: 0.0065250871 | AO30: 0.0005785274086 | AP30: 1.805666115
B31: 0.6 | C31: 6 | D31: =(X31*($T$11^$Q31))*Watts*CF_Altit -> 1053 | E31: =ROUND(((D31/Watts)/(($S$9-$S$10)*1.163))*$E$14,IF($X$4=1,0,IF($X$4=2,2))) -> 91 | F31: 0.5291142784 | K31: =L31-8 -> 26.4 | L31: 34.4 | M31: 1.62 | N31: =AD31*Cubics -> 67 | O31: =((($D31/Watts)/(((p_atm*0.028964)/(8.31447*(20+273.15)))*(($N31/3600)/Cubics)*(1005+1870*((0.622)/(((p_atm)/($E$12*Pvs_Heat_in))-1)))))+Tl_heat)*Celc1+Celc2 -> 66.13275135 | P31: =(Tl_cool-(($G31/Watts)/(1006*$N31*kgss)))*Celc1+Celc2 -> 0 | Q31: 1 | R31: 0.79 | S31: 0.79 | T31: 0.95 | U31: 0.8831 | V31: 0.882 | W31: =(H31-G31)/H31 ->  | X31: 1053 | Y31: =IF($X$16=1,AF31,IF($X$16=2,AR31,IF($X$16=3,BQ31,IF($X$16=4,BJ31,IF($X$16=5,CF31,IF($X$16=6,BY31,IF($X$16=7,BC31,))))))) -> b | Z31: 336 | AA31: b | AB31: 34.4 | AC31: 1.62 | AD31: 67 | AE31: 1053 | AF31: b | AG31: 336 | AH31: b | AI31: 34.4 | AJ31: 1.62 | AK31: 67 | AL31: =((D31/Watts)/(($S$9-$S$10)*1.163)) -> 90.54170249 | AM31: 0.5291142784 | AN31: 0.0065250871 | AO31: 0.0005785274086 | AP31: 1.805666115
B32: 0.8 | C32: 8 | D32: =(X32*($T$11^$Q32))*Watts*CF_Altit -> 1403 | E32: =ROUND(((D32/Watts)/(($S$9-$S$10)*1.163))*$E$14,IF($X$4=1,0,IF($X$4=2,2))) -> 121 | F32: 0.8928342016 | K32: =L32-8 -> 37.2 | L32: 45.2 | M32: 2.65 | N32: =AD32*Cubics -> 99 | O32: =((($D32/Watts)/(((p_atm*0.028964)/(8.31447*(20+273.15)))*(($N32/3600)/Cubics)*(1005+1870*((0.622)/(((p_atm)/($E$12*Pvs_Heat_in))-1)))))+Tl_heat)*Celc1+Celc2 -> 61.59855689 | P32: =(Tl_cool-(($G32/Watts)/(1006*$N32*kgss)))*Celc1+Celc2 -> 0 | Q32: 1 | R32: 0.87 | S32: 0.87 | T32: 0.95 | U32: 0.8539 | V32: 0.895 | W32: =(H32-G32)/H32 ->  | X32: 1403 | Y32: =IF($X$16=1,AF32,IF($X$16=2,AR32,IF($X$16=3,BQ32,IF($X$16=4,BJ32,IF($X$16=5,CF32,IF($X$16=6,BY32,IF($X$16=7,BC32,))))))) -> 1.823515585 | Z32: 465 | AA32: 1.823515585 | AB32: 45.2 | AC32: 2.65 | AD32: 99 | AE32: 1403 | AF32: 1.823515585 | AG32: 465 | AH32: =AF32 -> 1.823515585 | AI32: 45.2 | AJ32: 2.65 | AK32: 99 | AL32: =((D32/Watts)/(($S$9-$S$10)*1.163)) -> 120.6362855 | AM32: 0.8928342016 | AN32: 0.0065250871 | AO32: 0.0005785274086 | AP32: 1.805666115
B33: 1 | C33: 10 | D33: =(X33*($T$11^$Q33))*Watts*CF_Altit -> 1649 | E33: =ROUND(((D33/Watts)/(($S$9-$S$10)*1.163))*$E$14,IF($X$4=1,0,IF($X$4=2,2))) -> 142 | F33: 1.198781162 | K33: =L33-8 -> 41.8 | L33: 49.8 | M33: 4.14 | N33: =AD33*Cubics -> 130 | O33: =((($D33/Watts)/(((p_atm*0.028964)/(8.31447*(20+273.15)))*(($N33/3600)/Cubics)*(1005+1870*((0.622)/(((p_atm)/($E$12*Pvs_Heat_in))-1)))))+Tl_heat)*Celc1+Celc2 -> 57.23343391 | P33: =(Tl_cool-(($G33/Watts)/(1006*$N33*kgss)))*Celc1+Celc2 -> 0 | Q33: 1 | R33: 0.91 | S33: 0.91 | T33: 0.98 | U33: 0.7711 | V33: 0.9111 | W33: =(H33-G33)/H33 ->  | X33: 1649 | Y33: =IF($X$16=1,AF33,IF($X$16=2,AR33,IF($X$16=3,BQ33,IF($X$16=4,BJ33,IF($X$16=5,CF33,IF($X$16=6,BY33,IF($X$16=7,BC33,))))))) -> 0 | Z33: 598 | AA33: 0 | AB33: 49.8 | AC33: 4.14 | AD33: 130 | AE33: 1649 | AG33: 598 | AI33: 49.8 | AJ33: 4.14 | AK33: 130 | AL33: =((D33/Watts)/(($S$9-$S$10)*1.163)) -> 141.7884781 | AM33: 1.198781162 | AN33: 0.0065250871 | AO33: 0.0005785274086 | AP33: 1.805666115
B34: =IF($S$7=1,NL!A33,IF(cal!$S$7=2,EN!A33,IF(cal!$S$7=3,DE!A33,IF(cal!$S$7=4,FR!A33,IF(cal!$S$7=5,NR!A33,IF(cal!$S$7=6,SP!A33,IF(cal!$S$7=7,SW!A33,IF(cal!$S$7=8,TS!A33,IF(cal!$S$7=9,ExtraTaal1!A33,IF(cal!$S$7=10,ExtraTaal2!A33,IF(cal!$S$7=11,ExtraTaal3!A33,))))))))))) -> Micro Canal height 6 cm width 14 cm length 165 cm (Type 4) | C34: =IF($S$7=1,NL!B33,IF(cal!$S$7=2,EN!B33,IF(cal!$S$7=3,DE!B33,IF(cal!$S$7=4,FR!B33,IF(cal!$S$7=5,NR!B33,IF(cal!$S$7=6,SP!B33,IF(cal!$S$7=7,SW!B33,IF(cal!$S$7=8,TS!B33,IF(cal!$S$7=9,ExtraTaal1!B33,IF(cal!$S$7=10,ExtraTaal2!B33,IF(cal!$S$7=11,ExtraTaal3!B33,))))))))))) -> 0 | D34: =IF($S$7=1,NL!C33,IF(cal!$S$7=2,EN!C33,IF(cal!$S$7=3,DE!C33,IF(cal!$S$7=4,FR!C33,IF(cal!$S$7=5,NR!C33,IF(cal!$S$7=6,SP!C33,IF(cal!$S$7=7,SW!C33,IF(cal!$S$7=8,TS!C33,IF(cal!$S$7=9,ExtraTaal1!C33,IF(cal!$S$7=10,ExtraTaal2!C33,IF(cal!$S$7=11,ExtraTaal3!C33,))))))))))) -> 0 | E34: =IF($S$7=1,NL!D33,IF(cal!$S$7=2,EN!D33,IF(cal!$S$7=3,DE!D33,IF(cal!$S$7=4,FR!D33,IF(cal!$S$7=5,NR!D33,IF(cal!$S$7=6,SP!D33,IF(cal!$S$7=7,SW!D33,IF(cal!$S$7=8,TS!D33,IF(cal!$S$7=9,ExtraTaal1!D33,IF(cal!$S$7=10,ExtraTaal2!D33,IF(cal!$S$7=11,ExtraTaal3!D33,))))))))))) -> 0 | F34: =IF($S$7=1,NL!E33,IF(cal!$S$7=2,EN!E33,IF(cal!$S$7=3,DE!E33,IF(cal!$S$7=4,FR!E33,IF(cal!$S$7=5,NR!E33,IF(cal!$S$7=6,SP!E33,IF(cal!$S$7=7,SW!E33,IF(cal!$S$7=8,TS!E33,IF(cal!$S$7=9,ExtraTaal1!E33,IF(cal!$S$7=10,ExtraTaal2!E33,IF(cal!$S$7=11,ExtraTaal3!E33,))))))))))) -> 0 | G34: =IF($S$7=1,NL!F33,IF(cal!$S$7=2,EN!F33,IF(cal!$S$7=3,DE!F33,IF(cal!$S$7=4,FR!F33,IF(cal!$S$7=5,NR!F33,IF(cal!$S$7=6,SP!F33,IF(cal!$S$7=7,SW!F33,IF(cal!$S$7=8,TS!F33,IF(cal!$S$7=9,ExtraTaal1!F33,IF(cal!$S$7=10,ExtraTaal2!F33,IF(cal!$S$7=11,ExtraTaal3!F33,))))))))))) -> 0 | H34: =IF($S$7=1,NL!G33,IF(cal!$S$7=2,EN!G33,IF(cal!$S$7=3,DE!G33,IF(cal!$S$7=4,FR!G33,IF(cal!$S$7=5,NR!G33,IF(cal!$S$7=6,SP!G33,IF(cal!$S$7=7,SW!G33,IF(cal!$S$7=8,TS!G33,IF(cal!$S$7=9,ExtraTaal1!G33,IF(cal!$S$7=10,ExtraTaal2!G33,IF(cal!$S$7=11,ExtraTaal3!G33,))))))))))) -> 0 | I34: =IF($S$7=1,NL!H33,IF(cal!$S$7=2,EN!H33,IF(cal!$S$7=3,DE!H33,IF(cal!$S$7=4,FR!H33,IF(cal!$S$7=5,NR!H33,IF(cal!$S$7=6,SP!H33,IF(cal!$S$7=7,SW!H33,IF(cal!$S$7=8,TS!H33,IF(cal!$S$7=9,ExtraTaal1!H33,IF(cal!$S$7=10,ExtraTaal2!H33,IF(cal!$S$7=11,ExtraTaal3!H33,))))))))))) -> 0 | J34: =IF($S$7=1,NL!I33,IF(cal!$S$7=2,EN!I33,IF(cal!$S$7=3,DE!I33,IF(cal!$S$7=4,FR!I33,IF(cal!$S$7=5,NR!I33,IF(cal!$S$7=6,SP!I33,IF(cal!$S$7=7,SW!I33,IF(cal!$S$7=8,TS!I33,IF(cal!$S$7=9,ExtraTaal1!I33,IF(cal!$S$7=10,ExtraTaal2!I33,IF(cal!$S$7=11,ExtraTaal3!I33,))))))))))) -> 0 | K34: =IF($S$7=1,NL!J33,IF(cal!$S$7=2,EN!J33,IF(cal!$S$7=3,DE!J33,IF(cal!$S$7=4,FR!J33,IF(cal!$S$7=5,NR!J33,IF(cal!$S$7=6,SP!J33,IF(cal!$S$7=7,SW!J33,IF(cal!$S$7=8,TS!J33,IF(cal!$S$7=9,ExtraTaal1!J33,IF(cal!$S$7=10,ExtraTaal2!J33,IF(cal!$S$7=11,ExtraTaal3!J33,))))))))))) -> 0 | L34: =IF($S$7=1,NL!K33,IF(cal!$S$7=2,EN!K33,IF(cal!$S$7=3,DE!K33,IF(cal!$S$7=4,FR!K33,IF(cal!$S$7=5,NR!K33,IF(cal!$S$7=6,SP!K33,IF(cal!$S$7=7,SW!K33,IF(cal!$S$7=8,TS!K33,IF(cal!$S$7=9,ExtraTaal1!K33,IF(cal!$S$7=10,ExtraTaal2!K33,IF(cal!$S$7=11,ExtraTaal3!K33,))))))))))) -> 0 | M34: =IF($S$7=1,NL!L33,IF(cal!$S$7=2,EN!L33,IF(cal!$S$7=3,DE!L33,IF(cal!$S$7=4,FR!L33,IF(cal!$S$7=5,NR!L33,IF(cal!$S$7=6,SP!L33,IF(cal!$S$7=7,SW!L33,IF(cal!$S$7=8,TS!L33,IF(cal!$S$7=9,ExtraTaal1!L33,IF(cal!$S$7=10,ExtraTaal2!L33,IF(cal!$S$7=11,ExtraTaal3!L33,))))))))))) -> 0 | N34: =IF($S$7=1,NL!M33,IF(cal!$S$7=2,EN!M33,IF(cal!$S$7=3,DE!M33,IF(cal!$S$7=4,FR!M33,IF(cal!$S$7=5,NR!M33,IF(cal!$S$7=6,SP!M33,IF(cal!$S$7=7,SW!M33,IF(cal!$S$7=8,TS!M33,IF(cal!$S$7=9,ExtraTaal1!M33,IF(cal!$S$7=10,ExtraTaal2!M33,IF(cal!$S$7=11,ExtraTaal3!M33,))))))))))) -> 0 | O34: =IF($S$7=1,NL!N33,IF(cal!$S$7=2,EN!N33,IF(cal!$S$7=3,DE!N33,IF(cal!$S$7=4,FR!N33,IF(cal!$S$7=5,NR!N33,IF(cal!$S$7=6,SP!N33,IF(cal!$S$7=7,SW!N33,IF(cal!$S$7=8,TS!N33,IF(cal!$S$7=9,ExtraTaal1!N33,IF(cal!$S$7=10,ExtraTaal2!N33,IF(cal!$S$7=11,ExtraTaal3!N33,))))))))))) -> 0 | P34: =IF($S$7=1,NL!O33,IF(cal!$S$7=2,EN!O33,IF(cal!$S$7=3,DE!O33,IF(cal!$S$7=4,FR!O33,IF(cal!$S$7=5,NR!O33,IF(cal!$S$7=6,SP!O33,IF(cal!$S$7=7,SW!O33,IF(cal!$S$7=8,TS!O33,IF(cal!$S$7=9,ExtraTaal1!O33,IF(cal!$S$7=10,ExtraTaal2!O33,IF(cal!$S$7=11,ExtraTaal3!O33,))))))))))) -> 0 | Q34: n-value | R34: n-value | S34: n-value | T34: n-value | U34: n-value | V34: n-value | X34: H | Y34: 6 | Z34: B | AA34: 14 | AB34: L | AC34: 130 | AD34: 100 | AE34: H | AF34: =AF28 -> 6 | AG34: B | AH34: =AH28 -> 14 | AI34: L | AJ34: =130*IF($X$4=1,1,IF($X$4=2,1/2.54)) -> 130 | AK34: 100 | AL34: 130 | AM34: =((AN34*(AL34^AP34)*(($AJ$34-19.5)/100)*2)+AO34*(AL34^2))*0.0098 -> 1.023244434 | AN34: 0.0065250871 | AO34: 0.0005785274086 | AP34: 1.805666115
B35: 0.2 | C35: 2 | D35: =(X35*($T$11^$Q35))*Watts*CF_Altit -> 268.65 | E35: =ROUND(((D35/Watts)/(($S$9-$S$10)*1.163))*$E$14,IF($X$4=1,0,IF($X$4=2,2))) -> 23 | F35: =(IF($X$4=1,AM35,IF($X$4=2,AM35*0.334552563))) -> 0.05696696318 | K35: =L35-8 -> 17.3 | L35: =AB35 -> 25.3 | M35: 1.04 | N35: =AD35*Cubics -> 36 | O35: =((($D35/Watts)/(((p_atm*0.028964)/(8.31447*(20+273.15)))*(($N35/3600)/Cubics)*(1005+1870*((0.622)/(((p_atm)/($E$12*Pvs_Heat_in))-1)))))+Tl_heat)*Celc1+Celc2 -> 41.90484237 | P35: =(Tl_cool-(($G35/Watts)/(1006*$N35*kgss)))*Celc1+Celc2 -> 0 | Q35: 1 | R35: 0.6 | S35: 0.6 | T35: 1.16 | U35: 0.7807 | V35: 0.8766 | W35: =(H35-G35)/H35 ->  | X35: 268.65 | Y35: =IF($X$16=1,AF35,IF($X$16=2,AR35,IF($X$16=3,BQ35,IF($X$16=4,BJ35,IF($X$16=5,CF35,IF($X$16=6,BY35,IF($X$16=7,BC35,))))))) -> a | Z35: 132 | AA35: a | AB35: 25.3 | AC35: 1.04 | AD35: 36 | AE35: =AE29*($AK$40/$AK$34) -> 268.65 | AF35: a | AG35: 132 | AH35: a | AI35: 25.3 | AJ35: 1.04 | AK35: 36 | AL35: =((D35/Watts)/(($S$9-$S$10)*1.163)) -> 23.09974205 | AM35: =((AN35*(AL35^AP35)*(($AL$40-19.5)/100)*2)+AO35*(AL35^2))*0.0098 -> 0.05696696318 | AN35: 0.0065250871 | AO35: 0.0005785274086 | AP35: 1.805666115
B36: 0.4 | C36: 4 | D36: =(X36*($T$11^$Q36))*Watts*CF_Altit -> 706.05 | E36: =ROUND(((D36/Watts)/(($S$9-$S$10)*1.163))*$E$14,IF($X$4=1,0,IF($X$4=2,2))) -> 61 | F36: =(IF($X$4=1,AM36,IF($X$4=2,AM36*0.334552563))) -> 0.3296906264 | K36: =L36-8 -> 20.4 | L36: 28.4 | M36: 1.74 | N36: =AD36*Cubics -> 60 | O36: =((($D36/Watts)/(((p_atm*0.028964)/(8.31447*(20+273.15)))*(($N36/3600)/Cubics)*(1005+1870*((0.622)/(((p_atm)/($E$12*Pvs_Heat_in))-1)))))+Tl_heat)*Celc1+Celc2 -> 54.5414047 | P36: =(Tl_cool-(($G36/Watts)/(1006*$N36*kgss)))*Celc1+Celc2 -> 0 | Q36: 1 | R36: 0.68 | S36: 0.68 | T36: 1.04 | U36: 0.8587 | V36: 0.8775 | W36: =(H36-G36)/H36 ->  | X36: 706.05 | Y36: =IF($X$16=1,AF36,IF($X$16=2,AR36,IF($X$16=3,BQ36,IF($X$16=4,BJ36,IF($X$16=5,CF36,IF($X$16=6,BY36,IF($X$16=7,BC36,))))))) -> 0.0007398952517 | Z36: 290 | AA36: 0.0007398952517 | AB36: 28.4 | AC36: 1.74 | AD36: 60 | AE36: =AE30*($AK$40/$AK$34) -> 706.05 | AF36: 0.0007398952517 | AG36: 290 | AH36: =AF36 -> 0.0007398952517 | AI36: 28.4 | AJ36: 1.74 | AK36: 60 | AL36: =((D36/Watts)/(($S$9-$S$10)*1.163)) -> 60.70937231 | AM36: =((AN36*(AL36^AP36)*(($AL$40-19.5)/100)*2)+AO36*(AL36^2))*0.0098 -> 0.3296906264 | AN36: 0.0065250871 | AO36: 0.0005785274086 | AP36: 1.805666115
B37: 0.6 | C37: 6 | D37: =(X37*($T$11^$Q37))*Watts*CF_Altit -> 1421.55 | E37: =ROUND(((D37/Watts)/(($S$9-$S$10)*1.163))*$E$14,IF($X$4=1,0,IF($X$4=2,2))) -> 122 | F37: 1.17730302 | K37: =L37-8 -> 28.5 | L37: 36.5 | M37: 3.06 | N37: =AD37*Cubics -> 100 | O37: =((($D37/Watts)/(((p_atm*0.028964)/(8.31447*(20+273.15)))*(($N37/3600)/Cubics)*(1005+1870*((0.622)/(((p_atm)/($E$12*Pvs_Heat_in))-1)))))+Tl_heat)*Celc1+Celc2 -> 61.7270736 | P37: =(Tl_cool-(($G37/Watts)/(1006*$N37*kgss)))*Celc1+Celc2 -> 0 | Q37: 1 | R37: 0.79 | S37: 0.79 | T37: 0.95 | U37: 0.8831 | V37: 0.882 | W37: =(H37-G37)/H37 ->  | X37: 1421.55 | Y37: =IF($X$16=1,AF37,IF($X$16=2,AR37,IF($X$16=3,BQ37,IF($X$16=4,BJ37,IF($X$16=5,CF37,IF($X$16=6,BY37,IF($X$16=7,BC37,))))))) -> b | Z37: 458 | AA37: b | AB37: 36.5 | AC37: 3.06 | AD37: 100 | AE37: =AE31*($AK$40/$AK$34) -> 1421.55 | AF37: b | AG37: 458 | AH37: b | AI37: 36.5 | AJ37: 3.06 | AK37: 100 | AL37: =((D37/Watts)/(($S$9-$S$10)*1.163)) -> 122.2312984 | AM37: 1.17730302 | AN37: 0.0065250871 | AO37: 0.0005785274086 | AP37: 1.805666115
B38: 0.8 | C38: 8 | D38: =(X38*($T$11^$Q38))*Watts*CF_Altit -> 1894.05 | E38: =ROUND(((D38/Watts)/(($S$9-$S$10)*1.163))*$E$14,IF($X$4=1,0,IF($X$4=2,2))) -> 163 | F38: 1.984794606 | K38: =L38-8 -> 39.1 | L38: 47.1 | M38: 4.92 | N38: =AD38*Cubics -> 148 | O38: =((($D38/Watts)/(((p_atm*0.028964)/(8.31447*(20+273.15)))*(($N38/3600)/Cubics)*(1005+1870*((0.622)/(((p_atm)/($E$12*Pvs_Heat_in))-1)))))+Tl_heat)*Celc1+Celc2 -> 57.5651833 | P38: =(Tl_cool-(($G38/Watts)/(1006*$N38*kgss)))*Celc1+Celc2 -> 0 | Q38: 1 | R38: 0.87 | S38: 0.87 | T38: 0.95 | U38: 0.8539 | V38: 0.895 | W38: =(H38-G38)/H38 ->  | X38: 1894.05 | Y38: =IF($X$16=1,AF38,IF($X$16=2,AR38,IF($X$16=3,BQ38,IF($X$16=4,BJ38,IF($X$16=5,CF38,IF($X$16=6,BY38,IF($X$16=7,BC38,))))))) -> 1.823515585 | Z38: 634 | AA38: 1.823515585 | AB38: 47.1 | AC38: 4.92 | AD38: 148 | AE38: =AE32*($AK$40/$AK$34) -> 1894.05 | AF38: 1.823515585 | AG38: 634 | AH38: =AF38 -> 1.823515585 | AI38: 47.1 | AJ38: 4.92 | AK38: 148 | AL38: =((D38/Watts)/(($S$9-$S$10)*1.163)) -> 162.8589854 | AM38: 1.984794606 | AN38: 0.0065250871 | AO38: 0.0005785274086 | AP38: 1.805666115
B39: 1 | C39: 10 | D39: =(X39*($T$11^$Q39))*Watts*CF_Altit -> 2226.15 | E39: =ROUND(((D39/Watts)/(($S$9-$S$10)*1.163))*$E$14,IF($X$4=1,0,IF($X$4=2,2))) -> 191 | F39: 2.663511954 | K39: =L39-8 -> 45.5 | L39: 53.5 | M39: 7.68 | N39: =AD39*Cubics -> 196 | O39: =((($D39/Watts)/(((p_atm*0.028964)/(8.31447*(20+273.15)))*(($N39/3600)/Cubics)*(1005+1870*((0.622)/(((p_atm)/($E$12*Pvs_Heat_in))-1)))))+Tl_heat)*Celc1+Celc2 -> 53.33912067 | P39: =(Tl_cool-(($G39/Watts)/(1006*$N39*kgss)))*Celc1+Celc2 -> 0 | Q39: 1 | R39: 0.91 | S39: 0.91 | T39: 0.98 | U39: 0.7711 | V39: 0.9111 | W39: =(H39-G39)/H39 ->  | X39: 2226.15 | Y39: =IF($X$16=1,AF39,IF($X$16=2,AR39,IF($X$16=3,BQ39,IF($X$16=4,BJ39,IF($X$16=5,CF39,IF($X$16=6,BY39,IF($X$16=7,BC39,))))))) -> 0 | Z39: 816 | AA39: 0 | AB39: 53.5 | AC39: 7.68 | AD39: 196 | AE39: =AE33*($AK$40/$AK$34) -> 2226.15 | AG39: 816 | AI39: 53.5 | AJ39: 7.68 | AK39: 196 | AL39: =((D39/Watts)/(($S$9-$S$10)*1.163)) -> 191.4144454 | AM39: 2.663511954 | AN39: 0.0065250871 | AO39: 0.0005785274086 | AP39: 1.805666115
B40: =IF($S$7=1,NL!A39,IF(cal!$S$7=2,EN!A39,IF(cal!$S$7=3,DE!A39,IF(cal!$S$7=4,FR!A39,IF(cal!$S$7=5,NR!A39,IF(cal!$S$7=6,SP!A39,IF(cal!$S$7=7,SW!A39,IF(cal!$S$7=8,TS!A39,IF(cal!$S$7=9,ExtraTaal1!A39,IF(cal!$S$7=10,ExtraTaal2!A39,IF(cal!$S$7=11,ExtraTaal3!A39,))))))))))) -> Micro Canal height 6 cm width 14 cm length 200 cm (Type 5) | C40: =IF($S$7=1,NL!B39,IF(cal!$S$7=2,EN!B39,IF(cal!$S$7=3,DE!B39,IF(cal!$S$7=4,FR!B39,IF(cal!$S$7=5,NR!B39,IF(cal!$S$7=6,SP!B39,IF(cal!$S$7=7,SW!B39,IF(cal!$S$7=8,TS!B39,IF(cal!$S$7=9,ExtraTaal1!B39,IF(cal!$S$7=10,ExtraTaal2!B39,IF(cal!$S$7=11,ExtraTaal3!B39,))))))))))) -> 0 | D40: =IF($S$7=1,NL!C39,IF(cal!$S$7=2,EN!C39,IF(cal!$S$7=3,DE!C39,IF(cal!$S$7=4,FR!C39,IF(cal!$S$7=5,NR!C39,IF(cal!$S$7=6,SP!C39,IF(cal!$S$7=7,SW!C39,IF(cal!$S$7=8,TS!C39,IF(cal!$S$7=9,ExtraTaal1!C39,IF(cal!$S$7=10,ExtraTaal2!C39,IF(cal!$S$7=11,ExtraTaal3!C39,))))))))))) -> 0 | E40: =IF($S$7=1,NL!D39,IF(cal!$S$7=2,EN!D39,IF(cal!$S$7=3,DE!D39,IF(cal!$S$7=4,FR!D39,IF(cal!$S$7=5,NR!D39,IF(cal!$S$7=6,SP!D39,IF(cal!$S$7=7,SW!D39,IF(cal!$S$7=8,TS!D39,IF(cal!$S$7=9,ExtraTaal1!D39,IF(cal!$S$7=10,ExtraTaal2!D39,IF(cal!$S$7=11,ExtraTaal3!D39,))))))))))) -> 0 | F40: =IF($S$7=1,NL!E39,IF(cal!$S$7=2,EN!E39,IF(cal!$S$7=3,DE!E39,IF(cal!$S$7=4,FR!E39,IF(cal!$S$7=5,NR!E39,IF(cal!$S$7=6,SP!E39,IF(cal!$S$7=7,SW!E39,IF(cal!$S$7=8,TS!E39,IF(cal!$S$7=9,ExtraTaal1!E39,IF(cal!$S$7=10,ExtraTaal2!E39,IF(cal!$S$7=11,ExtraTaal3!E39,))))))))))) -> 0 | G40: =IF($S$7=1,NL!F39,IF(cal!$S$7=2,EN!F39,IF(cal!$S$7=3,DE!F39,IF(cal!$S$7=4,FR!F39,IF(cal!$S$7=5,NR!F39,IF(cal!$S$7=6,SP!F39,IF(cal!$S$7=7,SW!F39,IF(cal!$S$7=8,TS!F39,IF(cal!$S$7=9,ExtraTaal1!F39,IF(cal!$S$7=10,ExtraTaal2!F39,IF(cal!$S$7=11,ExtraTaal3!F39,))))))))))) -> 0 | H40: =IF($S$7=1,NL!G39,IF(cal!$S$7=2,EN!G39,IF(cal!$S$7=3,DE!G39,IF(cal!$S$7=4,FR!G39,IF(cal!$S$7=5,NR!G39,IF(cal!$S$7=6,SP!G39,IF(cal!$S$7=7,SW!G39,IF(cal!$S$7=8,TS!G39,IF(cal!$S$7=9,ExtraTaal1!G39,IF(cal!$S$7=10,ExtraTaal2!G39,IF(cal!$S$7=11,ExtraTaal3!G39,))))))))))) -> 0 | I40: =IF($S$7=1,NL!H39,IF(cal!$S$7=2,EN!H39,IF(cal!$S$7=3,DE!H39,IF(cal!$S$7=4,FR!H39,IF(cal!$S$7=5,NR!H39,IF(cal!$S$7=6,SP!H39,IF(cal!$S$7=7,SW!H39,IF(cal!$S$7=8,TS!H39,IF(cal!$S$7=9,ExtraTaal1!H39,IF(cal!$S$7=10,ExtraTaal2!H39,IF(cal!$S$7=11,ExtraTaal3!H39,))))))))))) -> 0 | J40: =IF($S$7=1,NL!I39,IF(cal!$S$7=2,EN!I39,IF(cal!$S$7=3,DE!I39,IF(cal!$S$7=4,FR!I39,IF(cal!$S$7=5,NR!I39,IF(cal!$S$7=6,SP!I39,IF(cal!$S$7=7,SW!I39,IF(cal!$S$7=8,TS!I39,IF(cal!$S$7=9,ExtraTaal1!I39,IF(cal!$S$7=10,ExtraTaal2!I39,IF(cal!$S$7=11,ExtraTaal3!I39,))))))))))) -> 0 | K40: =IF($S$7=1,NL!J39,IF(cal!$S$7=2,EN!J39,IF(cal!$S$7=3,DE!J39,IF(cal!$S$7=4,FR!J39,IF(cal!$S$7=5,NR!J39,IF(cal!$S$7=6,SP!J39,IF(cal!$S$7=7,SW!J39,IF(cal!$S$7=8,TS!J39,IF(cal!$S$7=9,ExtraTaal1!J39,IF(cal!$S$7=10,ExtraTaal2!J39,IF(cal!$S$7=11,ExtraTaal3!J39,))))))))))) -> 0 | L40: =IF($S$7=1,NL!K39,IF(cal!$S$7=2,EN!K39,IF(cal!$S$7=3,DE!K39,IF(cal!$S$7=4,FR!K39,IF(cal!$S$7=5,NR!K39,IF(cal!$S$7=6,SP!K39,IF(cal!$S$7=7,SW!K39,IF(cal!$S$7=8,TS!K39,IF(cal!$S$7=9,ExtraTaal1!K39,IF(cal!$S$7=10,ExtraTaal2!K39,IF(cal!$S$7=11,ExtraTaal3!K39,))))))))))) -> 0 | M40: =IF($S$7=1,NL!L39,IF(cal!$S$7=2,EN!L39,IF(cal!$S$7=3,DE!L39,IF(cal!$S$7=4,FR!L39,IF(cal!$S$7=5,NR!L39,IF(cal!$S$7=6,SP!L39,IF(cal!$S$7=7,SW!L39,IF(cal!$S$7=8,TS!L39,IF(cal!$S$7=9,ExtraTaal1!L39,IF(cal!$S$7=10,ExtraTaal2!L39,IF(cal!$S$7=11,ExtraTaal3!L39,))))))))))) -> 0 | N40: =IF($S$7=1,NL!M39,IF(cal!$S$7=2,EN!M39,IF(cal!$S$7=3,DE!M39,IF(cal!$S$7=4,FR!M39,IF(cal!$S$7=5,NR!M39,IF(cal!$S$7=6,SP!M39,IF(cal!$S$7=7,SW!M39,IF(cal!$S$7=8,TS!M39,IF(cal!$S$7=9,ExtraTaal1!M39,IF(cal!$S$7=10,ExtraTaal2!M39,IF(cal!$S$7=11,ExtraTaal3!M39,))))))))))) -> 0 | O40: =IF($S$7=1,NL!N39,IF(cal!$S$7=2,EN!N39,IF(cal!$S$7=3,DE!N39,IF(cal!$S$7=4,FR!N39,IF(cal!$S$7=5,NR!N39,IF(cal!$S$7=6,SP!N39,IF(cal!$S$7=7,SW!N39,IF(cal!$S$7=8,TS!N39,IF(cal!$S$7=9,ExtraTaal1!N39,IF(cal!$S$7=10,ExtraTaal2!N39,IF(cal!$S$7=11,ExtraTaal3!N39,))))))))))) -> 0 | P40: =IF($S$7=1,NL!O39,IF(cal!$S$7=2,EN!O39,IF(cal!$S$7=3,DE!O39,IF(cal!$S$7=4,FR!O39,IF(cal!$S$7=5,NR!O39,IF(cal!$S$7=6,SP!O39,IF(cal!$S$7=7,SW!O39,IF(cal!$S$7=8,TS!O39,IF(cal!$S$7=9,ExtraTaal1!O39,IF(cal!$S$7=10,ExtraTaal2!O39,IF(cal!$S$7=11,ExtraTaal3!O39,))))))))))) -> 0 | Q40: n-value | R40: n-value | S40: n-value | T40: n-value | U40: n-value | V40: n-value | X40: H | Y40: 6 | Z40: B | AA40: 14 | AB40: L | AC40: 165 | AD40: 135 | AE40: H | AF40: =AF34 -> 6 | AG40: B | AH40: =AH34 -> 14 | AI40: L | AJ40: =165*IF($X$4=1,1,IF($X$4=2,1/2.54)) -> 165 | AK40: 135 | AL40: 165 | AM40: =((AN40*(AL40^AP40)*(($AJ$40-19.5)/100)*2)+AO40*(AL40^2))*0.0098 -> 2.032550373 | AN40: 0.0065250871 | AO40: 0.0005785274086 | AP40: 1.805666115
B41: 0.2 | C41: 2 | D41: =(X41*($T$11^$Q41))*Watts*CF_Altit -> 338.3 | E41: =ROUND(((D41/Watts)/(($S$9-$S$10)*1.163))*$E$14,IF($X$4=1,0,IF($X$4=2,2))) -> 29 | F41: =(IF($X$4=1,AM41,IF($X$4=2,AM41*0.334552563))) -> 0.1062615876 | K41: =L41-8 -> 17.1 | L41: =AB41 -> 25.1 | M41: 1.06 | N41: =AD41*Cubics -> 44 | O41: =((($D41/Watts)/(((p_atm*0.028964)/(8.31447*(20+273.15)))*(($N41/3600)/Cubics)*(1005+1870*((0.622)/(((p_atm)/($E$12*Pvs_Heat_in))-1)))))+Tl_heat)*Celc1+Celc2 -> 42.56862547 | P41: =(Tl_cool-(($G41/Watts)/(1006*$N41*kgss)))*Celc1+Celc2 -> 0 | Q41: 1 | R41: 0 | S41: 0 | T41: 0 | U41: 0.7807 | V41: 0 | W41: =(H41-G41)/H41 ->  | X41: 338.3 | Y41: =IF($X$16=1,AF41,IF($X$16=2,AR41,IF($X$16=3,BQ41,IF($X$16=4,BJ41,IF($X$16=5,CF41,IF($X$16=6,BY41,IF($X$16=7,BC41,))))))) -> 0 | Z41: 0 | AA41: 0 | AB41: 25.1 | AC41: 1.06 | AD41: 44 | AE41: =AE29*($AK$46/$AK$34) -> 338.3 | AI41: 25.1 | AJ41: 1.06 | AK41: 44 | AL41: =((D41/Watts)/(($S$9-$S$10)*1.163)) -> 29.08856406 | AM41: =((AN41*(AL41^AP41)*(($AL$46-19.5)/100)*2)+AO41*(AL41^2))*0.0098 -> 0.1062615876 | AN41: 0.0065250871 | AO41: 0.0005785274086 | AP41: 1.805666115
B42: 0.4 | C42: 4 | D42: =(X42*($T$11^$Q42))*Watts*CF_Altit -> 889.1 | E42: =ROUND(((D42/Watts)/(($S$9-$S$10)*1.163))*$E$14,IF($X$4=1,0,IF($X$4=2,2))) -> 76 | F42: =(IF($X$4=1,AM42,IF($X$4=2,AM42*0.334552563))) -> 0.6139781529 | K42: =L42-8 -> 19.4 | L42: 27.4 | M42: 1.82 | N42: =AD42*Cubics -> 71 | O42: =((($D42/Watts)/(((p_atm*0.028964)/(8.31447*(20+273.15)))*(($N42/3600)/Cubics)*(1005+1870*((0.622)/(((p_atm)/($E$12*Pvs_Heat_in))-1)))))+Tl_heat)*Celc1+Celc2 -> 56.75767636 | P42: =(Tl_cool-(($G42/Watts)/(1006*$N42*kgss)))*Celc1+Celc2 -> 0 | Q42: 1 | R42: 0 | S42: 0 | T42: 0 | U42: 0.8587 | V42: 0 | W42: =(H42-G42)/H42 ->  | X42: 889.1 | Y42: =IF($X$16=1,AF42,IF($X$16=2,AR42,IF($X$16=3,BQ42,IF($X$16=4,BJ42,IF($X$16=5,CF42,IF($X$16=6,BY42,IF($X$16=7,BC42,))))))) -> 0 | Z42: 0 | AA42: 0 | AB42: 27.4 | AC42: 1.82 | AD42: 71 | AE42: =AE30*($AK$46/$AK$34) -> 889.1 | AI42: 27.4 | AJ42: 1.82 | AK42: 71 | AL42: =((D42/Watts)/(($S$9-$S$10)*1.163)) -> 76.44883921 | AM42: =((AN42*(AL42^AP42)*(($AL$46-19.5)/100)*2)+AO42*(AL42^2))*0.0098 -> 0.6139781529 | AN42: 0.0065250871 | AO42: 0.0005785274086 | AP42: 1.805666115
B43: 0.6 | C43: 6 | D43: =(X43*($T$11^$Q43))*Watts*CF_Altit -> 1790.1 | E43: =ROUND(((D43/Watts)/(($S$9-$S$10)*1.163))*$E$14,IF($X$4=1,0,IF($X$4=2,2))) -> 154 | F43: 2.189495924 | K43: =L43-8 -> 29 | L43: 37 | M43: 3.15 | N43: =AD43*Cubics -> 117 | O43: =((($D43/Watts)/(((p_atm*0.028964)/(8.31447*(20+273.15)))*(($N43/3600)/Cubics)*(1005+1870*((0.622)/(((p_atm)/($E$12*Pvs_Heat_in))-1)))))+Tl_heat)*Celc1+Celc2 -> 64.91043059 | P43: =(Tl_cool-(($G43/Watts)/(1006*$N43*kgss)))*Celc1+Celc2 -> 0 | Q43: 1 | R43: 0 | S43: 0 | T43: 0 | U43: 0.8831 | V43: 0 | W43: =(H43-G43)/H43 ->  | X43: 1790.1 | Y43: =IF($X$16=1,AF43,IF($X$16=2,AR43,IF($X$16=3,BQ43,IF($X$16=4,BJ43,IF($X$16=5,CF43,IF($X$16=6,BY43,IF($X$16=7,BC43,))))))) -> 0 | Z43: 0 | AA43: 0 | AB43: 37 | AC43: 3.15 | AD43: 117 | AE43: =AE31*($AK$46/$AK$34) -> 1790.1 | AI43: 37 | AJ43: 3.15 | AK43: 117 | AL43: =((D43/Watts)/(($S$9-$S$10)*1.163)) -> 153.9208942 | AM43: 2.189495924 | AN43: 0.0065250871 | AO43: 0.0005785274086 | AP43: 1.805666115
B44: 0.8 | C44: 8 | D44: =(X44*($T$11^$Q44))*Watts*CF_Altit -> 2385.1 | E44: =ROUND(((D44/Watts)/(($S$9-$S$10)*1.163))*$E$14,IF($X$4=1,0,IF($X$4=2,2))) -> 205 | F44: 3.688997889 | K44: =L44-8 -> 39.7 | L44: 47.7 | M44: 5.11 | N44: =AD44*Cubics -> 173 | O44: =((($D44/Watts)/(((p_atm*0.028964)/(8.31447*(20+273.15)))*(($N44/3600)/Cubics)*(1005+1870*((0.622)/(((p_atm)/($E$12*Pvs_Heat_in))-1)))))+Tl_heat)*Celc1+Celc2 -> 60.46842268 | P44: =(Tl_cool-(($G44/Watts)/(1006*$N44*kgss)))*Celc1+Celc2 -> 0 | Q44: 1 | R44: 0 | S44: 0 | T44: 0 | U44: 0.8539 | V44: 0 | W44: =(H44-G44)/H44 ->  | X44: 2385.1 | Y44: =IF($X$16=1,AF44,IF($X$16=2,AR44,IF($X$16=3,BQ44,IF($X$16=4,BJ44,IF($X$16=5,CF44,IF($X$16=6,BY44,IF($X$16=7,BC44,))))))) -> 0 | Z44: 0 | AA44: 0 | AB44: 47.7 | AC44: 5.11 | AD44: 173 | AE44: =AE32*($AK$46/$AK$34) -> 2385.1 | AI44: 47.7 | AJ44: 5.11 | AK44: 173 | AL44: =((D44/Watts)/(($S$9-$S$10)*1.163)) -> 205.0816853 | AM44: 3.688997889 | AN44: 0.0065250871 | AO44: 0.0005785274086 | AP44: 1.805666115
B45: 1 | C45: 10 | D45: =(X45*($T$11^$Q45))*Watts*CF_Altit -> 2803.3 | E45: =ROUND(((D45/Watts)/(($S$9-$S$10)*1.163))*$E$14,IF($X$4=1,0,IF($X$4=2,2))) -> 241 | F45: 4.948729862 | K45: =L45-8 -> 45.2 | L45: 53.2 | M45: 7.98 | N45: =AD45*Cubics -> 228 | O45: =((($D45/Watts)/(((p_atm*0.028964)/(8.31447*(20+273.15)))*(($N45/3600)/Cubics)*(1005+1870*((0.622)/(((p_atm)/($E$12*Pvs_Heat_in))-1)))))+Tl_heat)*Celc1+Celc2 -> 56.09030216 | P45: =(Tl_cool-(($G45/Watts)/(1006*$N45*kgss)))*Celc1+Celc2 -> 0 | Q45: 1 | R45: 0 | S45: 0 | T45: 0 | U45: 0.7711 | V45: 0 | W45: =(H45-G45)/H45 ->  | X45: 2803.3 | Y45: =IF($X$16=1,AF45,IF($X$16=2,AR45,IF($X$16=3,BQ45,IF($X$16=4,BJ45,IF($X$16=5,CF45,IF($X$16=6,BY45,IF($X$16=7,BC45,))))))) -> 0 | Z45: 0 | AA45: 0 | AB45: 53.2 | AC45: 7.98 | AD45: 228 | AE45: =AE33*($AK$46/$AK$34) -> 2803.3 | AI45: 53.2 | AJ45: 7.98 | AK45: 228 | AL45: =((D45/Watts)/(($S$9-$S$10)*1.163)) -> 241.0404127 | AM45: 4.948729862 | AN45: 0.0065250871 | AO45: 0.0005785274086 | AP45: 1.805666115
B46: =IF($S$7=1,NL!A45,IF(cal!$S$7=2,EN!A45,IF(cal!$S$7=3,DE!A45,IF(cal!$S$7=4,FR!A45,IF(cal!$S$7=5,NR!A45,IF(cal!$S$7=6,SP!A45,IF(cal!$S$7=7,SW!A45,IF(cal!$S$7=8,TS!A45,IF(cal!$S$7=9,ExtraTaal1!A45,IF(cal!$S$7=10,ExtraTaal2!A45,IF(cal!$S$7=11,ExtraTaal3!A45,))))))))))) -> Micro Canal height 0 cm width 0 cm length 0 cm (Type 6) | C46: =IF($S$7=1,NL!B45,IF(cal!$S$7=2,EN!B45,IF(cal!$S$7=3,DE!B45,IF(cal!$S$7=4,FR!B45,IF(cal!$S$7=5,NR!B45,IF(cal!$S$7=6,SP!B45,IF(cal!$S$7=7,SW!B45,IF(cal!$S$7=8,TS!B45,IF(cal!$S$7=9,ExtraTaal1!B45,IF(cal!$S$7=10,ExtraTaal2!B45,IF(cal!$S$7=11,ExtraTaal3!B45,))))))))))) -> 0 | D46: =IF($S$7=1,NL!C45,IF(cal!$S$7=2,EN!C45,IF(cal!$S$7=3,DE!C45,IF(cal!$S$7=4,FR!C45,IF(cal!$S$7=5,NR!C45,IF(cal!$S$7=6,SP!C45,IF(cal!$S$7=7,SW!C45,IF(cal!$S$7=8,TS!C45,IF(cal!$S$7=9,ExtraTaal1!C45,IF(cal!$S$7=10,ExtraTaal2!C45,IF(cal!$S$7=11,ExtraTaal3!C45,))))))))))) -> 0 | E46: =IF($S$7=1,NL!D45,IF(cal!$S$7=2,EN!D45,IF(cal!$S$7=3,DE!D45,IF(cal!$S$7=4,FR!D45,IF(cal!$S$7=5,NR!D45,IF(cal!$S$7=6,SP!D45,IF(cal!$S$7=7,SW!D45,IF(cal!$S$7=8,TS!D45,IF(cal!$S$7=9,ExtraTaal1!D45,IF(cal!$S$7=10,ExtraTaal2!D45,IF(cal!$S$7=11,ExtraTaal3!D45,))))))))))) -> 0 | F46: =IF($S$7=1,NL!E45,IF(cal!$S$7=2,EN!E45,IF(cal!$S$7=3,DE!E45,IF(cal!$S$7=4,FR!E45,IF(cal!$S$7=5,NR!E45,IF(cal!$S$7=6,SP!E45,IF(cal!$S$7=7,SW!E45,IF(cal!$S$7=8,TS!E45,IF(cal!$S$7=9,ExtraTaal1!E45,IF(cal!$S$7=10,ExtraTaal2!E45,IF(cal!$S$7=11,ExtraTaal3!E45,))))))))))) -> 0 | G46: =IF($S$7=1,NL!F45,IF(cal!$S$7=2,EN!F45,IF(cal!$S$7=3,DE!F45,IF(cal!$S$7=4,FR!F45,IF(cal!$S$7=5,NR!F45,IF(cal!$S$7=6,SP!F45,IF(cal!$S$7=7,SW!F45,IF(cal!$S$7=8,TS!F45,IF(cal!$S$7=9,ExtraTaal1!F45,IF(cal!$S$7=10,ExtraTaal2!F45,IF(cal!$S$7=11,ExtraTaal3!F45,))))))))))) -> 0 | H46: =IF($S$7=1,NL!G45,IF(cal!$S$7=2,EN!G45,IF(cal!$S$7=3,DE!G45,IF(cal!$S$7=4,FR!G45,IF(cal!$S$7=5,NR!G45,IF(cal!$S$7=6,SP!G45,IF(cal!$S$7=7,SW!G45,IF(cal!$S$7=8,TS!G45,IF(cal!$S$7=9,ExtraTaal1!G45,IF(cal!$S$7=10,ExtraTaal2!G45,IF(cal!$S$7=11,ExtraTaal3!G45,))))))))))) -> 0 | I46: =IF($S$7=1,NL!H45,IF(cal!$S$7=2,EN!H45,IF(cal!$S$7=3,DE!H45,IF(cal!$S$7=4,FR!H45,IF(cal!$S$7=5,NR!H45,IF(cal!$S$7=6,SP!H45,IF(cal!$S$7=7,SW!H45,IF(cal!$S$7=8,TS!H45,IF(cal!$S$7=9,ExtraTaal1!H45,IF(cal!$S$7=10,ExtraTaal2!H45,IF(cal!$S$7=11,ExtraTaal3!H45,))))))))))) -> 0 | J46: =IF($S$7=1,NL!I45,IF(cal!$S$7=2,EN!I45,IF(cal!$S$7=3,DE!I45,IF(cal!$S$7=4,FR!I45,IF(cal!$S$7=5,NR!I45,IF(cal!$S$7=6,SP!I45,IF(cal!$S$7=7,SW!I45,IF(cal!$S$7=8,TS!I45,IF(cal!$S$7=9,ExtraTaal1!I45,IF(cal!$S$7=10,ExtraTaal2!I45,IF(cal!$S$7=11,ExtraTaal3!I45,))))))))))) -> 0 | K46: =IF($S$7=1,NL!J45,IF(cal!$S$7=2,EN!J45,IF(cal!$S$7=3,DE!J45,IF(cal!$S$7=4,FR!J45,IF(cal!$S$7=5,NR!J45,IF(cal!$S$7=6,SP!J45,IF(cal!$S$7=7,SW!J45,IF(cal!$S$7=8,TS!J45,IF(cal!$S$7=9,ExtraTaal1!J45,IF(cal!$S$7=10,ExtraTaal2!J45,IF(cal!$S$7=11,ExtraTaal3!J45,))))))))))) -> 0 | L46: =IF($S$7=1,NL!K45,IF(cal!$S$7=2,EN!K45,IF(cal!$S$7=3,DE!K45,IF(cal!$S$7=4,FR!K45,IF(cal!$S$7=5,NR!K45,IF(cal!$S$7=6,SP!K45,IF(cal!$S$7=7,SW!K45,IF(cal!$S$7=8,TS!K45,IF(cal!$S$7=9,ExtraTaal1!K45,IF(cal!$S$7=10,ExtraTaal2!K45,IF(cal!$S$7=11,ExtraTaal3!K45,))))))))))) -> 0 | M46: =IF($S$7=1,NL!L45,IF(cal!$S$7=2,EN!L45,IF(cal!$S$7=3,DE!L45,IF(cal!$S$7=4,FR!L45,IF(cal!$S$7=5,NR!L45,IF(cal!$S$7=6,SP!L45,IF(cal!$S$7=7,SW!L45,IF(cal!$S$7=8,TS!L45,IF(cal!$S$7=9,ExtraTaal1!L45,IF(cal!$S$7=10,ExtraTaal2!L45,IF(cal!$S$7=11,ExtraTaal3!L45,))))))))))) -> 0 | N46: =IF($S$7=1,NL!M45,IF(cal!$S$7=2,EN!M45,IF(cal!$S$7=3,DE!M45,IF(cal!$S$7=4,FR!M45,IF(cal!$S$7=5,NR!M45,IF(cal!$S$7=6,SP!M45,IF(cal!$S$7=7,SW!M45,IF(cal!$S$7=8,TS!M45,IF(cal!$S$7=9,ExtraTaal1!M45,IF(cal!$S$7=10,ExtraTaal2!M45,IF(cal!$S$7=11,ExtraTaal3!M45,))))))))))) -> 0 | O46: =IF($S$7=1,NL!N45,IF(cal!$S$7=2,EN!N45,IF(cal!$S$7=3,DE!N45,IF(cal!$S$7=4,FR!N45,IF(cal!$S$7=5,NR!N45,IF(cal!$S$7=6,SP!N45,IF(cal!$S$7=7,SW!N45,IF(cal!$S$7=8,TS!N45,IF(cal!$S$7=9,ExtraTaal1!N45,IF(cal!$S$7=10,ExtraTaal2!N45,IF(cal!$S$7=11,ExtraTaal3!N45,))))))))))) -> 0 | P46: =IF($S$7=1,NL!O45,IF(cal!$S$7=2,EN!O45,IF(cal!$S$7=3,DE!O45,IF(cal!$S$7=4,FR!O45,IF(cal!$S$7=5,NR!O45,IF(cal!$S$7=6,SP!O45,IF(cal!$S$7=7,SW!O45,IF(cal!$S$7=8,TS!O45,IF(cal!$S$7=9,ExtraTaal1!O45,IF(cal!$S$7=10,ExtraTaal2!O45,IF(cal!$S$7=11,ExtraTaal3!O45,))))))))))) -> 0 | Q46: n-value | R46: n-value | S46: n-value | T46: n-value | U46: n-value | V46: n-value | X46: H | Y46: 6 | Z46: =IF($X$16=1,AG46,IF($X$16=2,AS46,IF($X$16=3,BR46,IF($X$16=4,BK46,IF($X$16=5,CG46,IF($X$16=6,BZ46,IF($X$16=7,BD46,))))))) -> B | AA46: 14 | AB46: =IF($X$16=1,AI46,IF($X$16=2,AU46,IF($X$16=3,BT46,IF($X$16=4,BM46,IF($X$16=5,CI46,IF($X$16=6,CB46,IF($X$16=7,BF46,))))))) -> L | AC46: =IF($X$16=1,AJ46,IF($X$16=2,AV46,IF($X$16=3,BU46,IF($X$16=4,BN46,IF($X$16=5,CJ46,IF($X$16=6,CC46,IF($X$16=7,BG46,))))))) -> 200 | AD46: =IF($X$16=1,AK46,IF($X$16=2,AW46,IF($X$16=3,BV46,IF($X$16=4,BO46,IF($X$16=5,CK46,IF($X$16=6,CD46,IF($X$16=7,BH46,))))))) -> 170 | AE46: H | AF46: 6 | AG46: B | AH46: =AH40 -> 14 | AI46: L | AJ46: =200*IF($X$4=1,1,IF($X$4=2,1/2.54)) -> 200 | AK46: 170 | AL46: 200 | AM46: 0.9667104686 | AN46: 0.0065250871 | AO46: 0.0005785274086 | AP46: 1.805666115
B47: =IF($S$7=1,NL!A69,IF(cal!$S$7=2,EN!A69,IF(cal!$S$7=3,DE!A69,IF(cal!$S$7=4,FR!A69,IF(cal!$S$7=5,NR!A69,IF(cal!$S$7=6,SP!A69,IF(cal!$S$7=7,SW!A69,IF(cal!$S$7=8,TS!A69,IF(cal!$S$7=9,ExtraTaal1!A69,IF(cal!$S$7=10,ExtraTaal2!A69,IF(cal!$S$7=11,ExtraTaal3!A69,))))))))))) -> *Values according to EN 16430
B48: =IF($S$7=1,NL!A70,IF(cal!$S$7=2,EN!A70,IF(cal!$S$7=3,DE!A70,IF(cal!$S$7=4,FR!A70,IF(cal!$S$7=5,NR!A70,IF(cal!$S$7=6,SP!A70,IF(cal!$S$7=7,SW!A70,IF(cal!$S$7=8,TS!A70,IF(cal!$S$7=9,ExtraTaal1!A70,IF(cal!$S$7=10,ExtraTaal2!A70,IF(cal!$S$7=11,ExtraTaal3!A70,))))))))))) -> **Sound power according to ISO 3741:2010
B49: =IF($S$7=1,NL!A71,IF(cal!$S$7=2,EN!A71,IF(cal!$S$7=3,DE!A71,IF(cal!$S$7=4,FR!A71,IF(cal!$S$7=5,NR!A71,IF(cal!$S$7=6,SP!A71,IF(cal!$S$7=7,SW!A71,IF(cal!$S$7=8,TS!A71,IF(cal!$S$7=9,ExtraTaal1!A71,IF(cal!$S$7=10,ExtraTaal2!A71,IF(cal!$S$7=11,ExtraTaal3!A71,))))))))))) -> ***Sound pressure with an assumed room damping of 8dB(A)
N70: v2022-06-01

Sheet NL (hidden)
A2: Invulformulier
A4: Randvoorwaarden
A6: Temperaturen | L6: Geplaatste hoogte
A7: Verwarmen: | F7: Koelen: | Q7: Kopieer alle data
A8: ="Aanvoertemp." -> Aanvoertemp. | D8: =cal!E9 -> 75 | E8: =IF(cal!$X$4=1,"°C",IF(cal!$X$4=2,"°F")) -> °C | F8: =A8 -> Aanvoertemp. | J8: =cal!K9 -> 0 | K8: =E8 -> °C | L8: Eenheidsstelsel | Q8: SI-eenheden
A9: ="Retourtemp." -> Retourtemp. | D9: =cal!E10 -> 65 | E9: =E8 -> °C | F9: =A9 -> Retourtemp. | J9: =cal!K10 -> 0 | K9: =E8 -> °C | Q9: Imperiale-eenheden
A10: ="Ruimtetemp." -> Ruimtetemp. | D10: =cal!E11 -> 20 | E10: =E8 -> °C | F10: =A10 -> Ruimtetemp. | J10: =cal!K11 -> 0 | K10: =E8 -> °C
F11: Relatieve vochtigheid | J11: =cal!K12 -> 0
A14: Snelheidsniveau: | B14: Stuurspanning: [V] | C14: =CONCATENATE("Warmteafgifte * ",ROUND(D8,0),"/",ROUND(D9,0),"/",ROUND(D10,0)," ["&IF(cal!$X$4=1,"W",IF(cal!$X$4=2,"Btu/h"))&"]") -> Warmteafgifte * 75/65/20 [W] | D14: ="Waterdebiet, verwarming ["&IF(cal!$X$4=1,"l/h",IF(cal!$X$4=2,"GPM"))&"]" -> Waterdebiet, verwarming [l/h] | E14: ="Waterzijdig drukverlies ["&IF(cal!$X$4=1,"kPa",IF(cal!$X$4=2,"ftH2O"))&"]" -> Waterzijdig drukverlies [kPa] | F14: =CONCATENATE("Voelb. Koelcapaciteit * ",ROUND(J8,0),"/",,ROUND(J9,0),"/",,ROUND(J10,0)," ["&IF(cal!$X$4=1,"W",IF(cal!$X$4=2,"Btu/h"))&"]") -> Voelb. Koelcapaciteit * 0/0/0 [W] | G14: =CONCATENATE("Tot. koelcapaciteit ",,ROUND(J8,0),"/",,ROUND(J9,0),"/",,ROUND(J10,0)," ["&IF(cal!$X$4=1,"W",IF(cal!$X$4=2,"Btu/h"))&"]") -> Tot. koelcapaciteit 0/0/0 [W] | H14: ="Waterdebiet, koeling ["&IF(cal!$X$4=1,"l/h",IF(cal!$X$4=2,"GPM"))&"]" -> Waterdebiet, koeling [l/h] | I14: ="Waterzijdig drukverlies ["&IF(cal!$X$4=1,"kPa",IF(cal!$X$4=2,"ftH2O"))&"]" -> Waterzijdig drukverlies [kPa] | J14: Geluidsdruk *** [dB(A)] | K14: Geluidsvermogen ** [dB(A)] | L14: Opgenomen elektr. vermogen [W] | M14: ="Luchtdebiet ["&IF(cal!$X$4=1,"m³/h",IF(cal!$X$4=2,"CFM"))&"]" -> Luchtdebiet [m³/h] | N14: ="Uitblaastemp. verwarming ["&IF(cal!$X$4=1,"°C",IF(cal!$X$4=2,"°F"))&"]" -> Uitblaastemp. verwarming [°C] | O14: ="Uitblaastemp. koeling ["&IF(cal!$X$4=1,"°C",IF(cal!$X$4=2,"°F"))&"]" -> Uitblaastemp. koeling [°C]
A15: =cal!$Z$1&" "&$R$15&" "&ROUND(cal!Y22,1)&IF(cal!$X$4=1," cm",IF(cal!$X$4=2," in"))&" "&$R$16&" "&ROUND(cal!AA22,1)&IF(cal!$X$4=1," cm",IF(cal!$X$4=2," in"))&" "&$R$17&" "&ROUND(cal!AC22,1)&IF(cal!$X$4=1," cm",IF(cal!$X$4=2," in")) -> Micro Canal hoogte 6 cm breedte 14 cm lengte 60 cm | Q15: Temp. | R15: hoogte
Q16: verw.! | R16: breedte
Q17: koelen! | R17: lengte
A21: =cal!$Z$1&" "&$R$15&" "&ROUND(cal!Y28,1)&IF(cal!$X$4=1," cm",IF(cal!$X$4=2," in"))&" "&$R$16&" "&ROUND(cal!AA28,1)&IF(cal!$X$4=1," cm",IF(cal!$X$4=2," in"))&" "&$R$17&" "&ROUND(cal!AC28,1)&IF(cal!$X$4=1," cm",IF(cal!$X$4=2," in")) -> Micro Canal hoogte 6 cm breedte 14 cm lengte 95 cm
A27: =cal!$Z$1&" "&$R$15&" "&ROUND(cal!Y34,1)&IF(cal!$X$4=1," cm",IF(cal!$X$4=2," in"))&" "&$R$16&" "&ROUND(cal!AA34,1)&IF(cal!$X$4=1," cm",IF(cal!$X$4=2," in"))&" "&$R$17&" "&ROUND(cal!AC34,1)&IF(cal!$X$4=1," cm",IF(cal!$X$4=2," in")) -> Micro Canal hoogte 6 cm breedte 14 cm lengte 130 cm
A33: =cal!$Z$1&" "&$R$15&" "&ROUND(cal!Y40,1)&IF(cal!$X$4=1," cm",IF(cal!$X$4=2," in"))&" "&$R$16&" "&ROUND(cal!AA40,1)&IF(cal!$X$4=1," cm",IF(cal!$X$4=2," in"))&" "&$R$17&" "&ROUND(cal!AC40,1)&IF(cal!$X$4=1," cm",IF(cal!$X$4=2," in")) -> Micro Canal hoogte 6 cm breedte 14 cm lengte 165 cm
A39: =cal!$Z$1&" "&$R$15&" "&ROUND(cal!Y46,1)&IF(cal!$X$4=1," cm",IF(cal!$X$4=2," in"))&" "&$R$16&" "&ROUND(cal!AA46,1)&IF(cal!$X$4=1," cm",IF(cal!$X$4=2," in"))&" "&$R$17&" "&ROUND(cal!AC46,1)&IF(cal!$X$4=1," cm",IF(cal!$X$4=2," in")) -> Micro Canal hoogte 6 cm breedte 14 cm lengte 200 cm
A45: =cal!$Z$1&" "&$R$15&" "&ROUND(cal!Y52,1)&IF(cal!$X$4=1," cm",IF(cal!$X$4=2," in"))&" "&$R$16&" "&ROUND(cal!AA52,1)&IF(cal!$X$4=1," cm",IF(cal!$X$4=2," in"))&" "&$R$17&" "&ROUND(cal!AC52,1)&IF(cal!$X$4=1," cm",IF(cal!$X$4=2," in"))&" (Type 6)" -> Micro Canal hoogte 0 cm breedte 0 cm lengte 0 cm (Type 6)
A51: =cal!$Z$1&" "&$R$15&" "&ROUND(cal!Y58,1)&IF(cal!$X$4=1," cm",IF(cal!$X$4=2," in"))&" "&$R$16&" "&ROUND(cal!AA58,1)&IF(cal!$X$4=1," cm",IF(cal!$X$4=2," in"))&" "&$R$17&" "&ROUND(cal!AC58,1)&IF(cal!$X$4=1," cm",IF(cal!$X$4=2," in"))&" (Type 7)" -> Micro Canal hoogte 0 cm breedte 0 cm lengte 0 cm (Type 7)
A57: =cal!$Z$1&" "&$R$15&" "&ROUND(cal!Y64,1)&IF(cal!$X$4=1," cm",IF(cal!$X$4=2," in"))&" "&$R$16&" "&ROUND(cal!AA64,1)&IF(cal!$X$4=1," cm",IF(cal!$X$4=2," in"))&" "&$R$17&" "&ROUND(cal!AC64,1)&IF(cal!$X$4=1," cm",IF(cal!$X$4=2," in"))&" (Type 8)" -> Micro Canal hoogte 0 cm breedte 0 cm lengte 0 cm (Type 8)
A63: =cal!$Z$1&" "&$R$15&" "&ROUND(cal!Y70,1)&IF(cal!$X$4=1," cm",IF(cal!$X$4=2," in"))&" "&$R$16&" "&ROUND(cal!AA70,1)&IF(cal!$X$4=1," cm",IF(cal!$X$4=2," in"))&" "&$R$17&" "&ROUND(cal!AC70,1)&IF(cal!$X$4=1," cm",IF(cal!$X$4=2," in"))&" (Type 9)" -> Micro Canal hoogte 0 cm breedte 0 cm lengte 0 cm (Type 9)
A69: *Waardes gemeten volgens EN 16430 | M69: =cal!N70 -> v2022-06-01
A70: **Geluidsvermogen gemeten volgens ISO 3741:2010
A71: ***Geluidsdruk bij een aangenomen ruimtedemping van 8 dB(A)

Sheet EN (hidden)
A2: Formulary
A4: Conditions
A6: Temperatures | L6: Altitude
A7: Heating: | F7: Cooling: | Q7: Copy all data
A8: ="Inlet temp." -> Inlet temp. | D8: =cal!E9 -> 75 | E8: =IF(cal!$X$4=1,"°C",IF(cal!$X$4=2,"°F")) -> °C | F8: =A8 -> Inlet temp. | J8: =cal!K9 -> 0 | K8: =E8 -> °C | L8: Unit conversion | Q8: SI-units
A9: ="Return temp." -> Return temp. | D9: =cal!E10 -> 65 | E9: =E8 -> °C | F9: =A9 -> Return temp. | J9: =cal!K10 -> 0 | K9: =E8 -> °C | Q9: Imperial-units
A10: ="Room temp." -> Room temp. | D10: =cal!E11 -> 20 | E10: =E8 -> °C | F10: =A10 -> Room temp. | J10: =cal!K11 -> 0 | K10: =E8 -> °C
F11: Relative humidity | J11: =cal!K12 -> 0
A14: Speed level: | B14: Control voltage [V] | C14: =CONCATENATE("Heat output * ",ROUND(D8,0),"/",ROUND(D9,0),"/",ROUND(D10,0)," ["&IF(cal!$X$4=1,"W",IF(cal!$X$4=2,"Btu/h"))&"]") -> Heat output * 75/65/20 [W] | D14: ="Water flowrate, heating ["&IF(cal!$X$4=1,"l/h",IF(cal!$X$4=2,"GPM"))&"]" -> Water flowrate, heating [l/h] | E14: ="Watersided pressure loss ["&IF(cal!$X$4=1,"kPa",IF(cal!$X$4=2,"ftH2O"))&"]" -> Watersided pressure loss [kPa] | F14: =CONCATENATE("Sens. cooling capacity * ",ROUND(J8,0),"/",ROUND(J9,0),"/",ROUND(J10,0)," ["&IF(cal!$X$4=1,"W",IF(cal!$X$4=2,"Btu/h"))&"]") -> Sens. cooling capacity * 0/0/0 [W] | G14: =CONCATENATE("Tot. cooling capacity ",ROUND(J8,0),"/",ROUND(J9,0),"/",ROUND(J10,0)," ["&IF(cal!$X$4=1,"W",IF(cal!$X$4=2,"Btu/h"))&"]") -> Tot. cooling capacity 0/0/0 [W] | H14: ="Water flowrate, cooling ["&IF(cal!$X$4=1,"l/h",IF(cal!$X$4=2,"GPM"))&"]" -> Water flowrate, cooling [l/h] | I14: ="Watersided pressure loss ["&IF(cal!$X$4=1,"kPa",IF(cal!$X$4=2,"ftH2O"))&"]" -> Watersided pressure loss [kPa] | J14: Sound pressure *** [dB(A)] | K14: Sound power ** [dB(A)] | L14: Electrical power [W] | M14: ="Air flowrate ["&IF(cal!$X$4=1,"m³/h",IF(cal!$X$4=2,"CFM"))&"]" -> Air flowrate [m³/h] | N14: ="Air exhaust temp. heating ["&IF(cal!$X$4=1,"°C",IF(cal!$X$4=2,"°F"))&"]" -> Air exhaust temp. heating [°C] | O14: ="Air exhaust temp. cooling ["&IF(cal!$X$4=1,"°C",IF(cal!$X$4=2,"°F"))&"]" -> Air exhaust temp. cooling [°C]
A15: =cal!$Z$1&" "&$R$15&" "&ROUND(cal!Y22,1)&IF(cal!$X$4=1," cm",IF(cal!$X$4=2," in"))&" "&$R$16&" "&ROUND(cal!AA22,1)&IF(cal!$X$4=1," cm",IF(cal!$X$4=2," in"))&" "&$R$17&" "&ROUND(cal!AC22,1)&IF(cal!$X$4=1," cm",IF(cal!$X$4=2," in"))&" (Type 1)" -> Micro Canal height 6 cm width 14 cm length 60 cm (Type 1) | Q15: Temp. | R15: height
Q16: heating! | R16: width
Q17: cooling! | R17: length
A21: =cal!$Z$1&" "&$R$15&" "&ROUND(cal!Y28,1)&IF(cal!$X$4=1," cm",IF(cal!$X$4=2," in"))&" "&$R$16&" "&ROUND(cal!AA28,1)&IF(cal!$X$4=1," cm",IF(cal!$X$4=2," in"))&" "&$R$17&" "&ROUND(cal!AC28,1)&IF(cal!$X$4=1," cm",IF(cal!$X$4=2," in"))&" (Type 2)" -> Micro Canal height 6 cm width 14 cm length 95 cm (Type 2)
A27: =cal!$Z$1&" "&$R$15&" "&ROUND(cal!Y34,1)&IF(cal!$X$4=1," cm",IF(cal!$X$4=2," in"))&" "&$R$16&" "&ROUND(cal!AA34,1)&IF(cal!$X$4=1," cm",IF(cal!$X$4=2," in"))&" "&$R$17&" "&ROUND(cal!AC34,1)&IF(cal!$X$4=1," cm",IF(cal!$X$4=2," in"))&" (Type 3)" -> Micro Canal height 6 cm width 14 cm length 130 cm (Type 3)
A33: =cal!$Z$1&" "&$R$15&" "&ROUND(cal!Y40,1)&IF(cal!$X$4=1," cm",IF(cal!$X$4=2," in"))&" "&$R$16&" "&ROUND(cal!AA40,1)&IF(cal!$X$4=1," cm",IF(cal!$X$4=2," in"))&" "&$R$17&" "&ROUND(cal!AC40,1)&IF(cal!$X$4=1," cm",IF(cal!$X$4=2," in"))&" (Type 4)" -> Micro Canal height 6 cm width 14 cm length 165 cm (Type 4)
A39: =cal!$Z$1&" "&$R$15&" "&ROUND(cal!Y46,1)&IF(cal!$X$4=1," cm",IF(cal!$X$4=2," in"))&" "&$R$16&" "&ROUND(cal!AA46,1)&IF(cal!$X$4=1," cm",IF(cal!$X$4=2," in"))&" "&$R$17&" "&ROUND(cal!AC46,1)&IF(cal!$X$4=1," cm",IF(cal!$X$4=2," in"))&" (Type 5)" -> Micro Canal height 6 cm width 14 cm length 200 cm (Type 5)
A45: =cal!$Z$1&" "&$R$15&" "&ROUND(cal!Y52,1)&IF(cal!$X$4=1," cm",IF(cal!$X$4=2," in"))&" "&$R$16&" "&ROUND(cal!AA52,1)&IF(cal!$X$4=1," cm",IF(cal!$X$4=2," in"))&" "&$R$17&" "&ROUND(cal!AC52,1)&IF(cal!$X$4=1," cm",IF(cal!$X$4=2," in"))&" (Type 6)" -> Micro Canal height 0 cm width 0 cm length 0 cm (Type 6)
A51: =cal!$Z$1&" "&$R$15&" "&ROUND(cal!Y58,1)&IF(cal!$X$4=1," cm",IF(cal!$X$4=2," in"))&" "&$R$16&" "&ROUND(cal!AA58,1)&IF(cal!$X$4=1," cm",IF(cal!$X$4=2," in"))&" "&$R$17&" "&ROUND(cal!AC58,1)&IF(cal!$X$4=1," cm",IF(cal!$X$4=2," in"))&" (Type 7)" -> Micro Canal height 0 cm width 0 cm length 0 cm (Type 7)
A57: =cal!$Z$1&" "&$R$15&" "&ROUND(cal!Y64,1)&IF(cal!$X$4=1," cm",IF(cal!$X$4=2," in"))&" "&$R$16&" "&ROUND(cal!AA64,1)&IF(cal!$X$4=1," cm",IF(cal!$X$4=2," in"))&" "&$R$17&" "&ROUND(cal!AC64,1)&IF(cal!$X$4=1," cm",IF(cal!$X$4=2," in"))&" (Type 8)" -> Micro Canal height 0 cm width 0 cm length 0 cm (Type 8)
A63: =cal!$Z$1&" "&$R$15&" "&ROUND(cal!Y70,1)&IF(cal!$X$4=1," cm",IF(cal!$X$4=2," in"))&" "&$R$16&" "&ROUND(cal!AA70,1)&IF(cal!$X$4=1," cm",IF(cal!$X$4=2," in"))&" "&$R$17&" "&ROUND(cal!AC70,1)&IF(cal!$X$4=1," cm",IF(cal!$X$4=2," in"))&" (Type 9)" -> Micro Canal height 0 cm width 0 cm length 0 cm (Type 9)
A69: *Values according to EN 16430 | M69: =cal!N70 -> v2022-06-01
A70: **Sound power according to ISO 3741:2010
A71: ***Sound pressure with an assumed room damping of 8dB(A)

Sheet DE (hidden)
A2: Eingabefelder
A4: Auslegungsrandbedingungen
A6: Temperaturen | L6: Platzierte Höhe
A7: Heizen: | F7: Kühlen: | Q7: Kopieren Sie alle daten
A8: ="Vorlauftemp." -> Vorlauftemp. | D8: =cal!E9 -> 75 | E8: =IF(cal!$X$4=1,"°C",IF(cal!$X$4=2,"°F")) -> °C | F8: =A8 -> Vorlauftemp. | J8: =cal!K9 -> 0 | K8: =E8 -> °C | L8: Einheiten | Q8: SI-einheiten
A9: ="Rücklauftemp." -> Rücklauftemp. | D9: =cal!E10 -> 65 | E9: =E8 -> °C | F9: =A9 -> Rücklauftemp. | J9: =cal!K10 -> 0 | K9: =E8 -> °C | Q9: Imperiale-einheiten
A10: ="Raumtemp." -> Raumtemp. | D10: =cal!E11 -> 20 | E10: =E8 -> °C | F10: =A10 -> Raumtemp. | J10: =cal!K11 -> 0 | K10: =E8 -> °C
F11: Relative Luftfeuchtigkeit | J11: =cal!K12 -> 0
A14: Drehzahlstufe: | B14: Regelspannung: [V] | C14: =CONCATENATE("Wärmeleistung * ",ROUND(D8,0),"/",ROUND(D9,0),"/",ROUND(D10,0)," ["&IF(cal!$X$4=1,"W",IF(cal!$X$4=2,"Btu/h"))&"]") -> Wärmeleistung * 75/65/20 [W] | D14: ="Heizmittelstrom ["&IF(cal!$X$4=1,"l/h",IF(cal!$X$4=2,"GPM"))&"]" -> Heizmittelstrom [l/h] | E14: ="zug. wassers. Druckverlust ["&IF(cal!$X$4=1,"kPa",IF(cal!$X$4=2,"ftH2O"))&"]" -> zug. wassers. Druckverlust [kPa] | F14: =CONCATENATE("Sens. Kälteleistung * ",ROUND(J8,0),"/",ROUND(J9,0),"/",ROUND(J10,0)," ["&IF(cal!$X$4=1,"W",IF(cal!$X$4=2,"Btu/h"))&"]") -> Sens. Kälteleistung * 0/0/0 [W] | G14: =CONCATENATE("Tot. Kälteleistung ",ROUND(J8,0),"/",ROUND(J9,0),"/",ROUND(J10,0)," ["&IF(cal!$X$4=1,"W",IF(cal!$X$4=2,"Btu/h"))&"]") -> Tot. Kälteleistung 0/0/0 [W] | H14: ="Kühlmittelstrom ["&IF(cal!$X$4=1,"l/h",IF(cal!$X$4=2,"GPM"))&"]" -> Kühlmittelstrom [l/h] | I14: ="zug. wassers. Druckverlust ["&IF(cal!$X$4=1,"kPa",IF(cal!$X$4=2,"ftH2O"))&"]" -> zug. wassers. Druckverlust [kPa] | J14: Schalldruckpegel *** [dB(A)] | K14: Schallleistungspegel ** [dB(A)] | L14: Leistungsaufnahme [W] | M14: ="Luftvolumenstrom ["&IF(cal!$X$4=1,"m³/h",IF(cal!$X$4=2,"CFM"))&"]" -> Luftvolumenstrom [m³/h] | N14: ="Luftaustrittstemp. Heizung ["&IF(cal!$X$4=1,"°C",IF(cal!$X$4=2,"°F"))&"]" -> Luftaustrittstemp. Heizung [°C] | O14: ="Luftaustrittstemp. kühlung ["&IF(cal!$X$4=1,"°C",IF(cal!$X$4=2,"°F"))&"]" -> Luftaustrittstemp. kühlung [°C]
A15: =cal!$Z$1&" "&$R$15&" "&ROUND(cal!Y22,1)&IF(cal!$X$4=1," cm",IF(cal!$X$4=2," in"))&" "&$R$16&" "&ROUND(cal!AA22,1)&IF(cal!$X$4=1," cm",IF(cal!$X$4=2," in"))&" "&$R$17&" "&ROUND(cal!AC22,1)&IF(cal!$X$4=1," cm",IF(cal!$X$4=2," in"))&" (Type 1)" -> Micro Canal höhe 6 cm breite 14 cm länge 60 cm (Type 1) | Q15: Temp. | R15: höhe
Q16: heizen! | R16: breite
Q17: kühlen! | R17: länge
A21: =cal!$Z$1&" "&$R$15&" "&ROUND(cal!Y28,1)&IF(cal!$X$4=1," cm",IF(cal!$X$4=2," in"))&" "&$R$16&" "&ROUND(cal!AA28,1)&IF(cal!$X$4=1," cm",IF(cal!$X$4=2," in"))&" "&$R$17&" "&ROUND(cal!AC28,1)&IF(cal!$X$4=1," cm",IF(cal!$X$4=2," in"))&" (Type 2)" -> Micro Canal höhe 6 cm breite 14 cm länge 95 cm (Type 2)
A27: =cal!$Z$1&" "&$R$15&" "&ROUND(cal!Y34,1)&IF(cal!$X$4=1," cm",IF(cal!$X$4=2," in"))&" "&$R$16&" "&ROUND(cal!AA34,1)&IF(cal!$X$4=1," cm",IF(cal!$X$4=2," in"))&" "&$R$17&" "&ROUND(cal!AC34,1)&IF(cal!$X$4=1," cm",IF(cal!$X$4=2," in"))&" (Type 3)" -> Micro Canal höhe 6 cm breite 14 cm länge 130 cm (Type 3)
A33: =cal!$Z$1&" "&$R$15&" "&ROUND(cal!Y40,1)&IF(cal!$X$4=1," cm",IF(cal!$X$4=2," in"))&" "&$R$16&" "&ROUND(cal!AA40,1)&IF(cal!$X$4=1," cm",IF(cal!$X$4=2," in"))&" "&$R$17&" "&ROUND(cal!AC40,1)&IF(cal!$X$4=1," cm",IF(cal!$X$4=2," in"))&" (Type 4)" -> Micro Canal höhe 6 cm breite 14 cm länge 165 cm (Type 4)
A39: =cal!$Z$1&" "&$R$15&" "&ROUND(cal!Y46,1)&IF(cal!$X$4=1," cm",IF(cal!$X$4=2," in"))&" "&$R$16&" "&ROUND(cal!AA46,1)&IF(cal!$X$4=1," cm",IF(cal!$X$4=2," in"))&" "&$R$17&" "&ROUND(cal!AC46,1)&IF(cal!$X$4=1," cm",IF(cal!$X$4=2," in"))&" (Type 5)" -> Micro Canal höhe 6 cm breite 14 cm länge 200 cm (Type 5)
A45: =cal!$Z$1&" "&$R$15&" "&ROUND(cal!Y52,1)&IF(cal!$X$4=1," cm",IF(cal!$X$4=2," in"))&" "&$R$16&" "&ROUND(cal!AA52,1)&IF(cal!$X$4=1," cm",IF(cal!$X$4=2," in"))&" "&$R$17&" "&ROUND(cal!AC52,1)&IF(cal!$X$4=1," cm",IF(cal!$X$4=2," in"))&" (Type 6)" -> Micro Canal höhe 0 cm breite 0 cm länge 0 cm (Type 6)
A51: =cal!$Z$1&" "&$R$15&" "&ROUND(cal!Y58,1)&IF(cal!$X$4=1," cm",IF(cal!$X$4=2," in"))&" "&$R$16&" "&ROUND(cal!AA58,1)&IF(cal!$X$4=1," cm",IF(cal!$X$4=2," in"))&" "&$R$17&" "&ROUND(cal!AC58,1)&IF(cal!$X$4=1," cm",IF(cal!$X$4=2," in"))&" (Type 7)" -> Micro Canal höhe 0 cm breite 0 cm länge 0 cm (Type 7)
A57: =cal!$Z$1&" "&$R$15&" "&ROUND(cal!Y64,1)&IF(cal!$X$4=1," cm",IF(cal!$X$4=2," in"))&" "&$R$16&" "&ROUND(cal!AA64,1)&IF(cal!$X$4=1," cm",IF(cal!$X$4=2," in"))&" "&$R$17&" "&ROUND(cal!AC64,1)&IF(cal!$X$4=1," cm",IF(cal!$X$4=2," in"))&" (Type 8)" -> Micro Canal höhe 0 cm breite 0 cm länge 0 cm (Type 8)
A63: =cal!$Z$1&" "&$R$15&" "&ROUND(cal!Y70,1)&IF(cal!$X$4=1," cm",IF(cal!$X$4=2," in"))&" "&$R$16&" "&ROUND(cal!AA70,1)&IF(cal!$X$4=1," cm",IF(cal!$X$4=2," in"))&" "&$R$17&" "&ROUND(cal!AC70,1)&IF(cal!$X$4=1," cm",IF(cal!$X$4=2," in"))&" (Type 9)" -> Micro Canal höhe 0 cm breite 0 cm länge 0 cm (Type 9)
A69: *Leistungsangaben nach EN 16430 | M69: =cal!N70 -> v2022-06-01
A70: **Schallleistungspegel nach ISO 3741:2010
A71: ***Schalldruckpegel bei angenommener Raumdämpfung von 8dB(A)

Sheet FR (hidden)
A2: Formulaire
A4: Conditions
A6: Températures | L6: Hauteur placée
A7: Chauffer: | F7: Refroidir: | Q7: Copier toutes des données
A8: ="Temp. entrée" -> Temp. entrée | D8: =cal!E9 -> 75 | E8: =IF(cal!$X$4=1,"°C",IF(cal!$X$4=2,"°F")) -> °C | F8: =A8 -> Temp. entrée | J8: =cal!K9 -> 0 | K8: =E8 -> °C | L8: Système unitaire | Q8: Unités-SI
A9: ="Temp. retour" -> Temp. retour | D9: =cal!E10 -> 65 | E9: =E8 -> °C | F9: =A9 -> Temp. retour | J9: =cal!K10 -> 0 | K9: =E8 -> °C | Q9: Unités-Impériales
A10: ="Temp. ambiante" -> Temp. ambiante | D10: =cal!E11 -> 20 | E10: =E8 -> °C | F10: =A10 -> Temp. ambiante | J10: =cal!K11 -> 0 | K10: =E8 -> °C
F11: Humidité relative | J11: =cal!K12 -> 0
A14: Niveau de vitesse | B14: Voltage [V] | C14: =CONCATENATE("Puissance de cha. * ",ROUND(D8,0),"/",ROUND(D9,0),"/",ROUND(D10,0)," ["&IF(cal!$X$4=1,"W",IF(cal!$X$4=2,"Btu/h"))&"]") -> Puissance de cha. * 75/65/20 [W] | D14: ="Débit d'eau, chauffer ["&IF(cal!$X$4=1,"l/h",IF(cal!$X$4=2,"GPM"))&"]" -> Débit d'eau, chauffer [l/h] | E14: ="Perte de charge ["&IF(cal!$X$4=1,"kPa",IF(cal!$X$4=2,"ftH2O"))&"]" -> Perte de charge [kPa] | F14: =CONCATENATE("Puissance sens. de refr. * ",ROUND(J8,0),"/",ROUND(J9,0),"/",ROUND(J10,0)," ["&IF(cal!$X$4=1,"W",IF(cal!$X$4=2,"Btu/h"))&"]") -> Puissance sens. de refr. * 0/0/0 [W] | G14: =CONCATENATE("Puissance tot. de refr. ",ROUND(J8,0),"/",ROUND(J9,0),"/",ROUND(J10,0)," ["&IF(cal!$X$4=1,"W",IF(cal!$X$4=2,"Btu/h"))&"]") -> Puissance tot. de refr. 0/0/0 [W] | H14: ="Débit d'eau, refroidir ["&IF(cal!$X$4=1,"l/h",IF(cal!$X$4=2,"GPM"))&"]" -> Débit d'eau, refroidir [l/h] | I14: ="Perte de charge ["&IF(cal!$X$4=1,"kPa",IF(cal!$X$4=2,"ftH2O"))&"]" -> Perte de charge [kPa] | J14: Pression sonore *** [dB(A)] | K14: Puissance sonore ** [dB(A)] | L14: Puissance absorbée [W] | M14: ="Débit d'air ["&IF(cal!$X$4=1,"m³/h",IF(cal!$X$4=2,"CFM"))&"]" -> Débit d'air [m³/h] | N14: ="Temp. de la sortie d'air cha. ["&IF(cal!$X$4=1,"°C",IF(cal!$X$4=2,"°F"))&"]" -> Temp. de la sortie d'air cha. [°C] | O14: ="Temp. de la sortie d'air refr. ["&IF(cal!$X$4=1,"°C",IF(cal!$X$4=2,"°F"))&"]" -> Temp. de la sortie d'air refr. [°C]
A15: =cal!$Z$1&" "&$R$15&" "&ROUND(cal!Y22,1)&IF(cal!$X$4=1," cm",IF(cal!$X$4=2," in"))&" "&$R$16&" "&ROUND(cal!AA22,1)&IF(cal!$X$4=1," cm",IF(cal!$X$4=2," in"))&" "&$R$17&" "&ROUND(cal!AC22,1)&IF(cal!$X$4=1," cm",IF(cal!$X$4=2," in"))&" (Type 1)" -> Micro Canal hauteur 6 cm largeur 14 cm longueur 60 cm (Type 1) | Q15: Temp. | R15: hauteur
Q16: chauf.! | R16: largeur
Q17: refr.! | R17: longueur
A21: =cal!$Z$1&" "&$R$15&" "&ROUND(cal!Y28,1)&IF(cal!$X$4=1," cm",IF(cal!$X$4=2," in"))&" "&$R$16&" "&ROUND(cal!AA28,1)&IF(cal!$X$4=1," cm",IF(cal!$X$4=2," in"))&" "&$R$17&" "&ROUND(cal!AC28,1)&IF(cal!$X$4=1," cm",IF(cal!$X$4=2," in"))&" (Type 2)" -> Micro Canal hauteur 6 cm largeur 14 cm longueur 95 cm (Type 2)
A27: =cal!$Z$1&" "&$R$15&" "&ROUND(cal!Y34,1)&IF(cal!$X$4=1," cm",IF(cal!$X$4=2," in"))&" "&$R$16&" "&ROUND(cal!AA34,1)&IF(cal!$X$4=1," cm",IF(cal!$X$4=2," in"))&" "&$R$17&" "&ROUND(cal!AC34,1)&IF(cal!$X$4=1," cm",IF(cal!$X$4=2," in"))&" (Type 3)" -> Micro Canal hauteur 6 cm largeur 14 cm longueur 130 cm (Type 3)
A33: =cal!$Z$1&" "&$R$15&" "&ROUND(cal!Y40,1)&IF(cal!$X$4=1," cm",IF(cal!$X$4=2," in"))&" "&$R$16&" "&ROUND(cal!AA40,1)&IF(cal!$X$4=1," cm",IF(cal!$X$4=2," in"))&" "&$R$17&" "&ROUND(cal!AC40,1)&IF(cal!$X$4=1," cm",IF(cal!$X$4=2," in"))&" (Type 4)" -> Micro Canal hauteur 6 cm largeur 14 cm longueur 165 cm (Type 4)
A39: =cal!$Z$1&" "&$R$15&" "&ROUND(cal!Y46,1)&IF(cal!$X$4=1," cm",IF(cal!$X$4=2," in"))&" "&$R$16&" "&ROUND(cal!AA46,1)&IF(cal!$X$4=1," cm",IF(cal!$X$4=2," in"))&" "&$R$17&" "&ROUND(cal!AC46,1)&IF(cal!$X$4=1," cm",IF(cal!$X$4=2," in"))&" (Type 5)" -> Micro Canal hauteur 6 cm largeur 14 cm longueur 200 cm (Type 5)
A45: =cal!$Z$1&" "&$R$15&" "&ROUND(cal!Y52,1)&IF(cal!$X$4=1," cm",IF(cal!$X$4=2," in"))&" "&$R$16&" "&ROUND(cal!AA52,1)&IF(cal!$X$4=1," cm",IF(cal!$X$4=2," in"))&" "&$R$17&" "&ROUND(cal!AC52,1)&IF(cal!$X$4=1," cm",IF(cal!$X$4=2," in"))&" (Type 6)" -> Micro Canal hauteur 0 cm largeur 0 cm longueur 0 cm (Type 6)
A51: =cal!$Z$1&" "&$R$15&" "&ROUND(cal!Y58,1)&IF(cal!$X$4=1," cm",IF(cal!$X$4=2," in"))&" "&$R$16&" "&ROUND(cal!AA58,1)&IF(cal!$X$4=1," cm",IF(cal!$X$4=2," in"))&" "&$R$17&" "&ROUND(cal!AC58,1)&IF(cal!$X$4=1," cm",IF(cal!$X$4=2," in"))&" (Type 7)" -> Micro Canal hauteur 0 cm largeur 0 cm longueur 0 cm (Type 7)
A57: =cal!$Z$1&" "&$R$15&" "&ROUND(cal!Y64,1)&IF(cal!$X$4=1," cm",IF(cal!$X$4=2," in"))&" "&$R$16&" "&ROUND(cal!AA64,1)&IF(cal!$X$4=1," cm",IF(cal!$X$4=2," in"))&" "&$R$17&" "&ROUND(cal!AC64,1)&IF(cal!$X$4=1," cm",IF(cal!$X$4=2," in"))&" (Type 8)" -> Micro Canal hauteur 0 cm largeur 0 cm longueur 0 cm (Type 8)
A63: =cal!$Z$1&" "&$R$15&" "&ROUND(cal!Y70,1)&IF(cal!$X$4=1," cm",IF(cal!$X$4=2," in"))&" "&$R$16&" "&ROUND(cal!AA70,1)&IF(cal!$X$4=1," cm",IF(cal!$X$4=2," in"))&" "&$R$17&" "&ROUND(cal!AC70,1)&IF(cal!$X$4=1," cm",IF(cal!$X$4=2," in"))&" (Type 9)" -> Micro Canal hauteur 0 cm largeur 0 cm longueur 0 cm (Type 9)
A69: *Testé selon EN 16430 | M69: =cal!N70 -> v2022-06-01
A70: **Puissance sonore testé selon ISO 3741:2010
A71: ***Pression sonore avec une atténuation ambiante du 8dB(A)

Sheet NR (hidden)
A2: Modell
A4: Conditions
A6: Temperaturer | L6: Plassert høyde
A7: Varme: | F7: Kjøling: | Q7: Kopier alle data
A8: Tur vanntemp. | B8: 0 | C8: 0 | D8: =cal!E9 -> 75 | E8: =IF(cal!$X$4=1,"°C",IF(cal!$X$4=2,"°F")) -> °C | F8: =A8 -> Tur vanntemp. | J8: =cal!K9 -> 0 | K8: =E8 -> °C | L8: Enhetssystem | Q8: SI-enheter
A9: Retur vanntemp. | B9: 0 | C9: 0 | D9: =cal!E10 -> 65 | E9: =E8 -> °C | F9: =A9 -> Retur vanntemp. | J9: =cal!K10 -> 0 | K9: =E8 -> °C | Q9: Imperiale-enheter
A10: Rom temp. | B10: 0 | C10: 0 | D10: =cal!E11 -> 20 | E10: =E8 -> °C | F10: =A10 -> Rom temp. | J10: =cal!K11 -> 0 | K10: =E8 -> °C
F11: Relativ fuktighet | J11: =cal!K12 -> 0
A14: Hastighet: | B14: Styresignal[V] | C14: =CONCATENATE("Varme effekt * ",ROUND(D8,0),"/",ROUND(D9,0),"/",ROUND(D10,0)," ["&IF(cal!$X$4=1,"W",IF(cal!$X$4=2,"Btu/h"))&"]") -> Varme effekt * 75/65/20 [W] | D14: ="Vannmengde, varme ["&IF(cal!$X$4=1,"l/h",IF(cal!$X$4=2,"GPM"))&"]" -> Vannmengde, varme [l/h] | E14: ="Trykktap ["&IF(cal!$X$4=1,"kPa",IF(cal!$X$4=2,"ftH2O"))&"]" -> Trykktap [kPa] | F14: =CONCATENATE("Sens. Kjøling effekt * ",ROUND(J8,0),"/",ROUND(J9,0),"/",ROUND(J10,0)," ["&IF(cal!$X$4=1,"W",IF(cal!$X$4=2,"Btu/h"))&"]") -> Sens. Kjøling effekt * 0/0/0 [W] | G14: =CONCATENATE("Tot. Kjøle effekt * ",ROUND(J8,0),"/",ROUND(J9,0),"/",ROUND(J10,0)," ["&IF(cal!$X$4=1,"W",IF(cal!$X$4=2,"Btu/h"))&"]") -> Tot. Kjøle effekt * 0/0/0 [W] | H14: ="Vannmengde, kjøling ["&IF(cal!$X$4=1,"l/h",IF(cal!$X$4=2,"GPM"))&"]" -> Vannmengde, kjøling [l/h] | I14: =E14 -> Trykktap [kPa] | J14: Lydtrykk *** [dB(A)] | K14: Lydeffekt ** [dB(A)] | L14: Elektrisk effekt [W] | M14: ="Luftmengde ["&IF(cal!$X$4=1,"m³/h",IF(cal!$X$4=2,"CFM"))&"]" -> Luftmengde [m³/h] | N14: ="Utluft temperatur, Varme ["&IF(cal!$X$4=1,"°C",IF(cal!$X$4=2,"°F"))&"]" -> Utluft temperatur, Varme [°C] | O14: ="Utluft temperatur, Kjøling ["&IF(cal!$X$4=1,"°C",IF(cal!$X$4=2,"°F"))&"]" -> Utluft temperatur, Kjøling [°C]
A15: =cal!$Z$1&" "&$R$15&" "&ROUND(cal!Y22,1)&IF(cal!$X$4=1," cm",IF(cal!$X$4=2," in"))&" "&$R$16&" "&ROUND(cal!AA22,1)&IF(cal!$X$4=1," cm",IF(cal!$X$4=2," in"))&" "&$R$17&" "&ROUND(cal!AC22,1)&IF(cal!$X$4=1," cm",IF(cal!$X$4=2," in"))&" (Type 1)" -> Micro Canal høyde 6 cm bredde 14 cm lengde 60 cm (Type 1) | Q15: Temp. | R15: høyde
Q16: varme! | R16: bredde
Q17: kjøling! | R17: lengde
A21: =cal!$Z$1&" "&$R$15&" "&ROUND(cal!Y28,1)&IF(cal!$X$4=1," cm",IF(cal!$X$4=2," in"))&" "&$R$16&" "&ROUND(cal!AA28,1)&IF(cal!$X$4=1," cm",IF(cal!$X$4=2," in"))&" "&$R$17&" "&ROUND(cal!AC28,1)&IF(cal!$X$4=1," cm",IF(cal!$X$4=2," in"))&" (Type 2)" -> Micro Canal høyde 6 cm bredde 14 cm lengde 95 cm (Type 2)
A27: =cal!$Z$1&" "&$R$15&" "&ROUND(cal!Y34,1)&IF(cal!$X$4=1," cm",IF(cal!$X$4=2," in"))&" "&$R$16&" "&ROUND(cal!AA34,1)&IF(cal!$X$4=1," cm",IF(cal!$X$4=2," in"))&" "&$R$17&" "&ROUND(cal!AC34,1)&IF(cal!$X$4=1," cm",IF(cal!$X$4=2," in"))&" (Type 3)" -> Micro Canal høyde 6 cm bredde 14 cm lengde 130 cm (Type 3)
A33: =cal!$Z$1&" "&$R$15&" "&ROUND(cal!Y40,1)&IF(cal!$X$4=1," cm",IF(cal!$X$4=2," in"))&" "&$R$16&" "&ROUND(cal!AA40,1)&IF(cal!$X$4=1," cm",IF(cal!$X$4=2," in"))&" "&$R$17&" "&ROUND(cal!AC40,1)&IF(cal!$X$4=1," cm",IF(cal!$X$4=2," in"))&" (Type 4)" -> Micro Canal høyde 6 cm bredde 14 cm lengde 165 cm (Type 4)
A39: =cal!$Z$1&" "&$R$15&" "&ROUND(cal!Y46,1)&IF(cal!$X$4=1," cm",IF(cal!$X$4=2," in"))&" "&$R$16&" "&ROUND(cal!AA46,1)&IF(cal!$X$4=1," cm",IF(cal!$X$4=2," in"))&" "&$R$17&" "&ROUND(cal!AC46,1)&IF(cal!$X$4=1," cm",IF(cal!$X$4=2," in"))&" (Type 5)" -> Micro Canal høyde 6 cm bredde 14 cm lengde 200 cm (Type 5)
A45: =cal!$Z$1&" "&$R$15&" "&ROUND(cal!Y52,1)&IF(cal!$X$4=1," cm",IF(cal!$X$4=2," in"))&" "&$R$16&" "&ROUND(cal!AA52,1)&IF(cal!$X$4=1," cm",IF(cal!$X$4=2," in"))&" "&$R$17&" "&ROUND(cal!AC52,1)&IF(cal!$X$4=1," cm",IF(cal!$X$4=2," in"))&" (Type 6)" -> Micro Canal høyde 0 cm bredde 0 cm lengde 0 cm (Type 6)
A51: =cal!$Z$1&" "&$R$15&" "&ROUND(cal!Y58,1)&IF(cal!$X$4=1," cm",IF(cal!$X$4=2," in"))&" "&$R$16&" "&ROUND(cal!AA58,1)&IF(cal!$X$4=1," cm",IF(cal!$X$4=2," in"))&" "&$R$17&" "&ROUND(cal!AC58,1)&IF(cal!$X$4=1," cm",IF(cal!$X$4=2," in"))&" (Type 7)" -> Micro Canal høyde 0 cm bredde 0 cm lengde 0 cm (Type 7)
A57: =cal!$Z$1&" "&$R$15&" "&ROUND(cal!Y64,1)&IF(cal!$X$4=1," cm",IF(cal!$X$4=2," in"))&" "&$R$16&" "&ROUND(cal!AA64,1)&IF(cal!$X$4=1," cm",IF(cal!$X$4=2," in"))&" "&$R$17&" "&ROUND(cal!AC64,1)&IF(cal!$X$4=1," cm",IF(cal!$X$4=2," in"))&" (Type 8)" -> Micro Canal høyde 0 cm bredde 0 cm lengde 0 cm (Type 8)
A63: =cal!$Z$1&" "&$R$15&" "&ROUND(cal!Y70,1)&IF(cal!$X$4=1," cm",IF(cal!$X$4=2," in"))&" "&$R$16&" "&ROUND(cal!AA70,1)&IF(cal!$X$4=1," cm",IF(cal!$X$4=2," in"))&" "&$R$17&" "&ROUND(cal!AC70,1)&IF(cal!$X$4=1," cm",IF(cal!$X$4=2," in"))&" (Type 9)" -> Micro Canal høyde 0 cm bredde 0 cm lengde 0 cm (Type 9)
A69: *Testé selon EN 16430 | M69: =cal!N70 -> v2022-06-01
A70: **Puissance sonore testé selon ISO 3741:2010
A71: ***Pression sonore avec une atténuation ambiante du 8dB(A)

Sheet SP (hidden)
A2: Model
A4: Conditions
A6: Temperaturas | L6: Altitud
A7: Calefacción: | F7: Enfriamiento: | Q7: Copiar todos los datos
A8: Agua impulsión | B8: 0 | C8: 0 | D8: =cal!E9 -> 75 | E8: =IF(cal!$X$4=1,"°C",IF(cal!$X$4=2,"°F")) -> °C | F8: =A8 -> Agua impulsión | J8: =cal!K9 -> 0 | K8: =E8 -> °C | L8: Convers. de unidades | Q8: Unidades-SI
A9: Agua retorno | B9: 0 | C9: 0 | D9: =cal!E10 -> 65 | E9: =E8 -> °C | F9: =A9 -> Agua retorno | J9: =cal!K10 -> 0 | K9: =E8 -> °C | Q9: Unidades-Imperial
A10: Ambiente (bulbo seco) | B10: 0 | C10: 0 | D10: =cal!E11 -> 20 | E10: =E8 -> °C | F10: =A10 -> Ambiente (bulbo seco) | J10: =cal!K11 -> 0 | K10: =E8 -> °C
F11: Humedad relativa | J11: =cal!K12 -> 0
A14: Nivel de velocidad: | B14: Voltaje control [V] | C14: =CONCATENATE("Emisión calefacción * ",ROUND(D8,0),"/",ROUND(D9,0),"/",ROUND(D10,0)," ["&IF(cal!$X$4=1,"W",IF(cal!$X$4=2,"Btu/h"))&"]") -> Emisión calefacción * 75/65/20 [W] | D14: ="Caudal de agua, calefacción ["&IF(cal!$X$4=1,"l/h",IF(cal!$X$4=2,"GPM"))&"]" -> Caudal de agua, calefacción [l/h] | E14: ="Pérdida de carga del agua ["&IF(cal!$X$4=1,"kPa",IF(cal!$X$4=2,"ftH2O"))&"]" -> Pérdida de carga del agua [kPa] | F14: =CONCATENATE("Emisión sensible Frío * ",ROUND(J8,0),"/",ROUND(J9,0),"/",ROUND(J10,0)," ["&IF(cal!$X$4=1,"W",IF(cal!$X$4=2,"Btu/h"))&"]") -> Emisión sensible Frío * 0/0/0 [W] | G14: =CONCATENATE("Emisión total Frío * ",ROUND(J8,0),"/",ROUND(J9,0),"/",ROUND(J10,0)," ["&IF(cal!$X$4=1,"W",IF(cal!$X$4=2,"Btu/h"))&"]") -> Emisión total Frío * 0/0/0 [W] | H14: ="Caudal de agua, calefacción ["&IF(cal!$X$4=1,"l/h",IF(cal!$X$4=2,"GPM"))&"]" -> Caudal de agua, calefacción [l/h] | I14: =E14 -> Pérdida de carga del agua [kPa] | J14: Presión sonora *** [dB(A)] | K14: Potencia sonora ** [dB(A)] | L14: Potencia eléctrica absorbida [W] | M14: ="Caudal de aire ["&IF(cal!$X$4=1,"m³/h",IF(cal!$X$4=2,"CFM"))&"]" -> Caudal de aire [m³/h] | N14: ="Temperatura salida de aire calefacción ["&IF(cal!$X$4=1,"°C",IF(cal!$X$4=2,"°F"))&"]" -> Temperatura salida de aire calefacción [°C] | O14: ="Temperatura salida de aire refrigeración ["&IF(cal!$X$4=1,"°C",IF(cal!$X$4=2,"°F"))&"]" -> Temperatura salida de aire refrigeración [°C]
A15: =cal!$Z$1&" "&$R$15&" "&ROUND(cal!Y22,1)&IF(cal!$X$4=1," cm",IF(cal!$X$4=2," in"))&" "&$R$16&" "&ROUND(cal!AA22,1)&IF(cal!$X$4=1," cm",IF(cal!$X$4=2," in"))&" "&$R$17&" "&ROUND(cal!AC22,1)&IF(cal!$X$4=1," cm",IF(cal!$X$4=2," in"))&" (Type 1)" -> Micro Canal altura 6 cm ancho 14 cm longitud 60 cm (Type 1) | Q15: Temp. | R15: altura
Q16: calefac. | R16: ancho
Q17: enfria. | R17: longitud
A21: =cal!$Z$1&" "&$R$15&" "&ROUND(cal!Y28,1)&IF(cal!$X$4=1," cm",IF(cal!$X$4=2," in"))&" "&$R$16&" "&ROUND(cal!AA28,1)&IF(cal!$X$4=1," cm",IF(cal!$X$4=2," in"))&" "&$R$17&" "&ROUND(cal!AC28,1)&IF(cal!$X$4=1," cm",IF(cal!$X$4=2," in"))&" (Type 2)" -> Micro Canal altura 6 cm ancho 14 cm longitud 95 cm (Type 2)
A27: =cal!$Z$1&" "&$R$15&" "&ROUND(cal!Y34,1)&IF(cal!$X$4=1," cm",IF(cal!$X$4=2," in"))&" "&$R$16&" "&ROUND(cal!AA34,1)&IF(cal!$X$4=1," cm",IF(cal!$X$4=2," in"))&" "&$R$17&" "&ROUND(cal!AC34,1)&IF(cal!$X$4=1," cm",IF(cal!$X$4=2," in"))&" (Type 3)" -> Micro Canal altura 6 cm ancho 14 cm longitud 130 cm (Type 3)
A33: =cal!$Z$1&" "&$R$15&" "&ROUND(cal!Y40,1)&IF(cal!$X$4=1," cm",IF(cal!$X$4=2," in"))&" "&$R$16&" "&ROUND(cal!AA40,1)&IF(cal!$X$4=1," cm",IF(cal!$X$4=2," in"))&" "&$R$17&" "&ROUND(cal!AC40,1)&IF(cal!$X$4=1," cm",IF(cal!$X$4=2," in"))&" (Type 4)" -> Micro Canal altura 6 cm ancho 14 cm longitud 165 cm (Type 4)
A39: =cal!$Z$1&" "&$R$15&" "&ROUND(cal!Y46,1)&IF(cal!$X$4=1," cm",IF(cal!$X$4=2," in"))&" "&$R$16&" "&ROUND(cal!AA46,1)&IF(cal!$X$4=1," cm",IF(cal!$X$4=2," in"))&" "&$R$17&" "&ROUND(cal!AC46,1)&IF(cal!$X$4=1," cm",IF(cal!$X$4=2," in"))&" (Type 5)" -> Micro Canal altura 6 cm ancho 14 cm longitud 200 cm (Type 5)
A45: =cal!$Z$1&" "&$R$15&" "&ROUND(cal!Y52,1)&IF(cal!$X$4=1," cm",IF(cal!$X$4=2," in"))&" "&$R$16&" "&ROUND(cal!AA52,1)&IF(cal!$X$4=1," cm",IF(cal!$X$4=2," in"))&" "&$R$17&" "&ROUND(cal!AC52,1)&IF(cal!$X$4=1," cm",IF(cal!$X$4=2," in"))&" (Type 6)" -> Micro Canal altura 0 cm ancho 0 cm longitud 0 cm (Type 6)
A51: =cal!$Z$1&" "&$R$15&" "&ROUND(cal!Y58,1)&IF(cal!$X$4=1," cm",IF(cal!$X$4=2," in"))&" "&$R$16&" "&ROUND(cal!AA58,1)&IF(cal!$X$4=1," cm",IF(cal!$X$4=2," in"))&" "&$R$17&" "&ROUND(cal!AC58,1)&IF(cal!$X$4=1," cm",IF(cal!$X$4=2," in"))&" (Type 7)" -> Micro Canal altura 0 cm ancho 0 cm longitud 0 cm (Type 7)
A57: =cal!$Z$1&" "&$R$15&" "&ROUND(cal!Y64,1)&IF(cal!$X$4=1," cm",IF(cal!$X$4=2," in"))&" "&$R$16&" "&ROUND(cal!AA64,1)&IF(cal!$X$4=1," cm",IF(cal!$X$4=2," in"))&" "&$R$17&" "&ROUND(cal!AC64,1)&IF(cal!$X$4=1," cm",IF(cal!$X$4=2," in"))&" (Type 8)" -> Micro Canal altura 0 cm ancho 0 cm longitud 0 cm (Type 8)
A63: =cal!$Z$1&" "&$R$15&" "&ROUND(cal!Y70,1)&IF(cal!$X$4=1," cm",IF(cal!$X$4=2," in"))&" "&$R$16&" "&ROUND(cal!AA70,1)&IF(cal!$X$4=1," cm",IF(cal!$X$4=2," in"))&" "&$R$17&" "&ROUND(cal!AC70,1)&IF(cal!$X$4=1," cm",IF(cal!$X$4=2," in"))&" (Type 9)" -> Micro Canal altura 0 cm ancho 0 cm longitud 0 cm (Type 9)
A69: *La potencia de enfriamiento se calcula según la norma EN 16430 con ventiladores de todas las alturas. | M69: =cal!N70 -> v2022-06-01
A70: **Potencia sonora según ISO 3741: 2010.
A71: ***Nivel de presión acústica con una amortiguación ambiental supuesta de 8 dB (A).

Sheet SW (hidden)
A2: Formulary
A4: Conditions
A6: Temperaturer | L6: Höjd över havet
A7: Värme: | F7: Kyla: | Q7: Kopiera all data
A8: Tillopp | D8: =cal!E9 -> 75 | E8: =IF(cal!$X$4=1,"°C",IF(cal!$X$4=2,"°F")) -> °C | F8: =A8 -> Tillopp | J8: =cal!K9 -> 0 | K8: =E8 -> °C | L8: Enhetssystem | Q8: SI-enheter
A9: Retur | D9: =cal!E10 -> 65 | E9: =E8 -> °C | F9: =A9 -> Retur | J9: =cal!K10 -> 0 | K9: =E8 -> °C | Q9: Imperiella-enheter
A10: Rum (torr) | D10: =cal!E11 -> 20 | E10: =E8 -> °C | F10: =A10 -> Rum (torr) | J10: =cal!K11 -> 0 | K10: =E8 -> °C
F11: rel. Fuktighet | J11: =cal!K12 -> 0
A14: Fläkthastighet | B14: Spänning, Fläkt [V] | C14: =CONCATENATE("Värme effekt * ",ROUND(D8,0),"/",ROUND(D9,0),"/",ROUND(D10,0)," ["&IF(cal!$X$4=1,"W",IF(cal!$X$4=2,"Btu/h"))&"]") -> Värme effekt * 75/65/20 [W] | D14: ="Vattenflöde, värme ["&IF(cal!$X$4=1,"l/h",IF(cal!$X$4=2,"GPM"))&"]" -> Vattenflöde, värme [l/h] | E14: ="Tryckfall, vatten ["&IF(cal!$X$4=1,"kPa",IF(cal!$X$4=2,"ftH2O"))&"]" -> Tryckfall, vatten [kPa] | F14: =CONCATENATE("Märkbar kylkapacitet * ",ROUND(J8,0),"/",ROUND(J9,0),"/",ROUND(J10,0)," ["&IF(cal!$X$4=1,"W",IF(cal!$X$4=2,"Btu/h"))&"]") -> Märkbar kylkapacitet * 0/0/0 [W] | G14: =CONCATENATE("Total kylkapacitet ",ROUND(J8,0),"/",ROUND(J9,0),"/",ROUND(J10,0)," ["&IF(cal!$X$4=1,"W",IF(cal!$X$4=2,"Btu/h"))&"]") -> Total kylkapacitet 0/0/0 [W] | H14: ="Vattenflöde, kyla ["&IF(cal!$X$4=1,"l/h",IF(cal!$X$4=2,"GPM"))&"]" -> Vattenflöde, kyla [l/h] | I14: =E14 -> Tryckfall, vatten [kPa] | J14: Ljudtryck *** [dB(A)] | K14: Ljudeffekt ** [dB(A)] | L14: Effektförbrukning [W] | M14: ="Luftflöde ["&IF(cal!$X$4=1,"m³/h",IF(cal!$X$4=2,"CFM"))&"]" -> Luftflöde [m³/h] | N14: ="Air exhaust temp. heating ["&IF(cal!$X$4=1,"°C",IF(cal!$X$4=2,"°F"))&"]" -> Air exhaust temp. heating [°C] | O14: ="Air exhaust temp. cooling ["&IF(cal!$X$4=1,"°C",IF(cal!$X$4=2,"°F"))&"]" -> Air exhaust temp. cooling [°C]
A15: =cal!$Z$1&" "&$R$15&" "&ROUND(cal!Y22,1)&IF(cal!$X$4=1," cm",IF(cal!$X$4=2," in"))&" "&$R$16&" "&ROUND(cal!AA22,1)&IF(cal!$X$4=1," cm",IF(cal!$X$4=2," in"))&" "&$R$17&" "&ROUND(cal!AC22,1)&IF(cal!$X$4=1," cm",IF(cal!$X$4=2," in"))&" (Typ 1)" -> Micro Canal höjd 6 cm djup 14 cm längd 60 cm (Typ 1) | Q15: Temp. | R15: höjd
Q16: värme! | R16: djup
Q17: kyla! | R17: längd
A21: =cal!$Z$1&" "&$R$15&" "&ROUND(cal!Y28,1)&IF(cal!$X$4=1," cm",IF(cal!$X$4=2," in"))&" "&$R$16&" "&ROUND(cal!AA28,1)&IF(cal!$X$4=1," cm",IF(cal!$X$4=2," in"))&" "&$R$17&" "&ROUND(cal!AC28,1)&IF(cal!$X$4=1," cm",IF(cal!$X$4=2," in"))&" (Typ 2)" -> Micro Canal höjd 6 cm djup 14 cm längd 95 cm (Typ 2)
A27: =cal!$Z$1&" "&$R$15&" "&ROUND(cal!Y34,1)&IF(cal!$X$4=1," cm",IF(cal!$X$4=2," in"))&" "&$R$16&" "&ROUND(cal!AA34,1)&IF(cal!$X$4=1," cm",IF(cal!$X$4=2," in"))&" "&$R$17&" "&ROUND(cal!AC34,1)&IF(cal!$X$4=1," cm",IF(cal!$X$4=2," in"))&" (Typ 3)" -> Micro Canal höjd 6 cm djup 14 cm längd 130 cm (Typ 3)
A33: =cal!$Z$1&" "&$R$15&" "&ROUND(cal!Y40,1)&IF(cal!$X$4=1," cm",IF(cal!$X$4=2," in"))&" "&$R$16&" "&ROUND(cal!AA40,1)&IF(cal!$X$4=1," cm",IF(cal!$X$4=2," in"))&" "&$R$17&" "&ROUND(cal!AC40,1)&IF(cal!$X$4=1," cm",IF(cal!$X$4=2," in"))&" (Typ 4)" -> Micro Canal höjd 6 cm djup 14 cm längd 165 cm (Typ 4)
A39: =cal!$Z$1&" "&$R$15&" "&ROUND(cal!Y46,1)&IF(cal!$X$4=1," cm",IF(cal!$X$4=2," in"))&" "&$R$16&" "&ROUND(cal!AA46,1)&IF(cal!$X$4=1," cm",IF(cal!$X$4=2," in"))&" "&$R$17&" "&ROUND(cal!AC46,1)&IF(cal!$X$4=1," cm",IF(cal!$X$4=2," in"))&" (Typ 5)" -> Micro Canal höjd 6 cm djup 14 cm längd 200 cm (Typ 5)
A45: =cal!$Z$1&" "&$R$15&" "&ROUND(cal!Y52,1)&IF(cal!$X$4=1," cm",IF(cal!$X$4=2," in"))&" "&$R$16&" "&ROUND(cal!AA52,1)&IF(cal!$X$4=1," cm",IF(cal!$X$4=2," in"))&" "&$R$17&" "&ROUND(cal!AC52,1)&IF(cal!$X$4=1," cm",IF(cal!$X$4=2," in"))&" (Typ 6)" -> Micro Canal höjd 0 cm djup 0 cm längd 0 cm (Typ 6)
A51: =cal!$Z$1&" "&$R$15&" "&ROUND(cal!Y58,1)&IF(cal!$X$4=1," cm",IF(cal!$X$4=2," in"))&" "&$R$16&" "&ROUND(cal!AA58,1)&IF(cal!$X$4=1," cm",IF(cal!$X$4=2," in"))&" "&$R$17&" "&ROUND(cal!AC58,1)&IF(cal!$X$4=1," cm",IF(cal!$X$4=2," in"))&" (Typ 7)" -> Micro Canal höjd 0 cm djup 0 cm längd 0 cm (Typ 7)
A57: =cal!$Z$1&" "&$R$15&" "&ROUND(cal!Y64,1)&IF(cal!$X$4=1," cm",IF(cal!$X$4=2," in"))&" "&$R$16&" "&ROUND(cal!AA64,1)&IF(cal!$X$4=1," cm",IF(cal!$X$4=2," in"))&" "&$R$17&" "&ROUND(cal!AC64,1)&IF(cal!$X$4=1," cm",IF(cal!$X$4=2," in"))&" (Typ 8)" -> Micro Canal höjd 0 cm djup 0 cm längd 0 cm (Typ 8)
A63: =cal!$Z$1&" "&$R$15&" "&ROUND(cal!Y70,1)&IF(cal!$X$4=1," cm",IF(cal!$X$4=2," in"))&" "&$R$16&" "&ROUND(cal!AA70,1)&IF(cal!$X$4=1," cm",IF(cal!$X$4=2," in"))&" "&$R$17&" "&ROUND(cal!AC70,1)&IF(cal!$X$4=1," cm",IF(cal!$X$4=2," in"))&" (Typ 9)" -> Micro Canal höjd 0 cm djup 0 cm längd 0 cm (Typ 9)
A69: *Värden enligt EN16430 | M69: =cal!N70 -> v2022-06-01
A70: **Ljudeffekt enligt ISO 3741: 2010
A71: ***Ljudtryck med en antagen rumsdämpning på 8dB (A),

Sheet TS (hidden)
A2: Formulary
A4: Conditions
A6: Teploty | L6: Výška umístění
A7: Topení: | F7: Chlazení: | Q7: Kopírovat všechna data
A8: Voda na přívodu | D8: =cal!E9 -> 75 | E8: =IF(cal!$X$4=1,"°C",IF(cal!$X$4=2,"°F")) -> °C | F8: =A8 -> Voda na přívodu | J8: =cal!K9 -> 0 | K8: =E8 -> °C | L8: Převod jednotek | Q8: Mezinárodní (Sl)
A9: Voda na zpátečce | D9: =cal!E10 -> 65 | E9: =E8 -> °C | F9: =A9 -> Voda na zpátečce | J9: =cal!K10 -> 0 | K9: =E8 -> °C | Q9: Imperiální
A10: "Suchá" Teplota vzduchu | D10: =cal!E11 -> 20 | E10: =E8 -> °C | F10: =A10 -> "Suchá" Teplota vzduchu | J10: =cal!K11 -> 0 | K10: =E8 -> °C
F11: Relativní vlhkost | J11: =cal!K12 -> 0
A14: Rychlost | B14: Ovládací napětí [V] | C14: =CONCATENATE("Výkon Topení * ",ROUND(D8,0),"/",ROUND(D9,0),"/",ROUND(D10,0)," ["&IF(cal!$X$4=1,"W",IF(cal!$X$4=2,"Btu/h"))&"]") -> Výkon Topení * 75/65/20 [W] | D14: ="Průtok vody, topení ["&IF(cal!$X$4=1,"l/h",IF(cal!$X$4=2,"GPM"))&"]" -> Průtok vody, topení [l/h] | E14: ="Tlaková ztráta ["&IF(cal!$X$4=1,"kPa",IF(cal!$X$4=2,"ftH2O"))&"]" -> Tlaková ztráta [kPa] | F14: =CONCATENATE("Výkon chlazení Znatelný * ",ROUND(J8,0),"/",ROUND(J9,0),"/",ROUND(J10,0)," ["&IF(cal!$X$4=1,"W",IF(cal!$X$4=2,"Btu/h"))&"]") -> Výkon chlazení Znatelný * 0/0/0 [W] | G14: =CONCATENATE("Výkon chlazení Celkový ",ROUND(J8,0),"/",ROUND(J9,0),"/",ROUND(J10,0)," ["&IF(cal!$X$4=1,"W",IF(cal!$X$4=2,"Btu/h"))&"]") -> Výkon chlazení Celkový 0/0/0 [W] | H14: ="Průtok vody,chlazení ["&IF(cal!$X$4=1,"l/h",IF(cal!$X$4=2,"GPM"))&"]" -> Průtok vody,chlazení [l/h] | I14: =E14 -> Tlaková ztráta [kPa] | J14: Akustický tlak *** [dB(A)] | K14: Akustický výkon ** [dB(A)] | L14: Elektrický výkon [W] | M14: ="Průtok vzduchu ["&IF(cal!$X$4=1,"m³/h",IF(cal!$X$4=2,"CFM"))&"]" -> Průtok vzduchu [m³/h] | N14: ="Air exhaust temp. heating ["&IF(cal!$X$4=1,"°C",IF(cal!$X$4=2,"°F"))&"]" -> Air exhaust temp. heating [°C] | O14: ="Air exhaust temp. cooling ["&IF(cal!$X$4=1,"°C",IF(cal!$X$4=2,"°F"))&"]" -> Air exhaust temp. cooling [°C]
A15: =cal!$Z$1&", "&$R$15&" "&ROUND(cal!Y22,1)&IF(cal!$X$4=1," cm",IF(cal!$X$4=2," in"))&", "&$R$16&" "&ROUND(cal!AA22,1)&IF(cal!$X$4=1," cm",IF(cal!$X$4=2," in"))&", "&$R$17&" "&ROUND(cal!AC22,1)&IF(cal!$X$4=1," cm",IF(cal!$X$4=2," in"))&" (Typ 1)" -> Micro Canal, Výška 6 cm, Šířka 14 cm, Délka 60 cm (Typ 1) | Q15: Teploty | R15: Výška
Q16: topení! | R16: Šířka
Q17: chlazení! | R17: Délka
A21: =cal!$Z$1&" "&$R$15&" "&ROUND(cal!Y28,1)&IF(cal!$X$4=1," cm",IF(cal!$X$4=2," in"))&" "&$R$16&" "&ROUND(cal!AA28,1)&IF(cal!$X$4=1," cm",IF(cal!$X$4=2," in"))&" "&$R$17&" "&ROUND(cal!AC28,1)&IF(cal!$X$4=1," cm",IF(cal!$X$4=2," in"))&" (Typ 2)" -> Micro Canal Výška 6 cm Šířka 14 cm Délka 95 cm (Typ 2)
A27: =cal!$Z$1&" "&$R$15&" "&ROUND(cal!Y34,1)&IF(cal!$X$4=1," cm",IF(cal!$X$4=2," in"))&" "&$R$16&" "&ROUND(cal!AA34,1)&IF(cal!$X$4=1," cm",IF(cal!$X$4=2," in"))&" "&$R$17&" "&ROUND(cal!AC34,1)&IF(cal!$X$4=1," cm",IF(cal!$X$4=2," in"))&" (Type 3)" -> Micro Canal Výška 6 cm Šířka 14 cm Délka 130 cm (Type 3)
A33: =cal!$Z$1&" "&$R$15&" "&ROUND(cal!Y40,1)&IF(cal!$X$4=1," cm",IF(cal!$X$4=2," in"))&" "&$R$16&" "&ROUND(cal!AA40,1)&IF(cal!$X$4=1," cm",IF(cal!$X$4=2," in"))&" "&$R$17&" "&ROUND(cal!AC40,1)&IF(cal!$X$4=1," cm",IF(cal!$X$4=2," in"))&" (Typ 4)" -> Micro Canal Výška 6 cm Šířka 14 cm Délka 165 cm (Typ 4)
A39: =cal!$Z$1&" "&$R$15&" "&ROUND(cal!Y46,1)&IF(cal!$X$4=1," cm",IF(cal!$X$4=2," in"))&" "&$R$16&" "&ROUND(cal!AA46,1)&IF(cal!$X$4=1," cm",IF(cal!$X$4=2," in"))&" "&$R$17&" "&ROUND(cal!AC46,1)&IF(cal!$X$4=1," cm",IF(cal!$X$4=2," in"))&" (Typ 5)" -> Micro Canal Výška 6 cm Šířka 14 cm Délka 200 cm (Typ 5)
A45: =cal!$Z$1&" "&$R$15&" "&ROUND(cal!Y52,1)&IF(cal!$X$4=1," cm",IF(cal!$X$4=2," in"))&" "&$R$16&" "&ROUND(cal!AA52,1)&IF(cal!$X$4=1," cm",IF(cal!$X$4=2," in"))&" "&$R$17&" "&ROUND(cal!AC52,1)&IF(cal!$X$4=1," cm",IF(cal!$X$4=2," in"))&" (Typ 6)" -> Micro Canal Výška 0 cm Šířka 0 cm Délka 0 cm (Typ 6)
A51: =cal!$Z$1&" "&$R$15&" "&ROUND(cal!Y58,1)&IF(cal!$X$4=1," cm",IF(cal!$X$4=2," in"))&" "&$R$16&" "&ROUND(cal!AA58,1)&IF(cal!$X$4=1," cm",IF(cal!$X$4=2," in"))&" "&$R$17&" "&ROUND(cal!AC58,1)&IF(cal!$X$4=1," cm",IF(cal!$X$4=2," in"))&" (Typ 7)" -> Micro Canal Výška 0 cm Šířka 0 cm Délka 0 cm (Typ 7)
A57: =cal!$Z$1&" "&$R$15&" "&ROUND(cal!Y64,1)&IF(cal!$X$4=1," cm",IF(cal!$X$4=2," in"))&" "&$R$16&" "&ROUND(cal!AA64,1)&IF(cal!$X$4=1," cm",IF(cal!$X$4=2," in"))&" "&$R$17&" "&ROUND(cal!AC64,1)&IF(cal!$X$4=1," cm",IF(cal!$X$4=2," in"))&" (Typ 8)" -> Micro Canal Výška 0 cm Šířka 0 cm Délka 0 cm (Typ 8)
A63: =cal!$Z$1&" "&$R$15&" "&ROUND(cal!Y70,1)&IF(cal!$X$4=1," cm",IF(cal!$X$4=2," in"))&" "&$R$16&" "&ROUND(cal!AA70,1)&IF(cal!$X$4=1," cm",IF(cal!$X$4=2," in"))&" "&$R$17&" "&ROUND(cal!AC70,1)&IF(cal!$X$4=1," cm",IF(cal!$X$4=2," in"))&" (Typ 9)" -> Micro Canal Výška 0 cm Šířka 0 cm Délka 0 cm (Typ 9)
A69: *Hodnoty podle EN16430 | M69: =cal!N70 -> v2022-06-01
A70: **Akustický tlak podle ISO 3741:2010
A71: ***Akustický výkon s předpokládaným útlumem místnosti 8 dB (A).

Sheet ExtraTaal1 (hidden)
A2: Formulary
A4: Conditions
A6: Temperatures | L6: Altitude
A7: Heating: | F7: Cooling: | Q7: Copy all data
A8: ="Inlet temp." -> Inlet temp. | D8: =cal!E9 -> 75 | E8: =IF(cal!$X$4=1,"°C",IF(cal!$X$4=2,"°F")) -> °C | F8: =A8 -> Inlet temp. | J8: =cal!K9 -> 0 | K8: =E8 -> °C | L8: Unit conversion | Q8: SI-units
A9: ="Return temp." -> Return temp. | D9: =cal!E10 -> 65 | E9: =E8 -> °C | F9: =A9 -> Return temp. | J9: =cal!K10 -> 0 | K9: =E8 -> °C | Q9: Imperial-units
A10: ="Room temp." -> Room temp. | D10: =cal!E11 -> 20 | E10: =E8 -> °C | F10: =A10 -> Room temp. | J10: =cal!K11 -> 0 | K10: =E8 -> °C
F11: Relative humidity | J11: =cal!K12 -> 0
A14: Speed level: | B14: Control voltage [V] | C14: =CONCATENATE("Heat output * ",ROUND(D8,0),"/",ROUND(D9,0),"/",ROUND(D10,0)," ["&IF(cal!$X$4=1,"W",IF(cal!$X$4=2,"Btu/h"))&"]") -> Heat output * 75/65/20 [W] | D14: ="Water flowrate, heating ["&IF(cal!$X$4=1,"l/h",IF(cal!$X$4=2,"GPM"))&"]" -> Water flowrate, heating [l/h] | E14: ="Watersided pressure loss ["&IF(cal!$X$4=1,"kPa",IF(cal!$X$4=2,"inH2O"))&"]" -> Watersided pressure loss [kPa] | F14: =CONCATENATE("Sens. cooling capacity * ",ROUND(J8,0),"/",ROUND(J9,0),"/",ROUND(J10,0)," ["&IF(cal!$X$4=1,"W",IF(cal!$X$4=2,"Btu/h"))&"]") -> Sens. cooling capacity * 0/0/0 [W] | G14: =CONCATENATE("Tot. cooling capacity ",ROUND(J8,0),"/",ROUND(J9,0),"/",ROUND(J10,0)," ["&IF(cal!$X$4=1,"W",IF(cal!$X$4=2,"Btu/h"))&"]") -> Tot. cooling capacity 0/0/0 [W] | H14: ="Water flowrate, cooling ["&IF(cal!$X$4=1,"l/h",IF(cal!$X$4=2,"GPM"))&"]" -> Water flowrate, cooling [l/h] | I14: ="Watersided pressure loss ["&IF(cal!$X$4=1,"kPa",IF(cal!$X$4=2,"ftH2O"))&"]" -> Watersided pressure loss [kPa] | J14: Sound pressure *** [dB(A)] | K14: Sound power ** [dB(A)] | L14: Electrical power [W] | M14: ="Air flowrate ["&IF(cal!$X$4=1,"m³/h",IF(cal!$X$4=2,"CFM"))&"]" -> Air flowrate [m³/h] | N14: ="Air exhaust temp. heating ["&IF(cal!$X$4=1,"°C",IF(cal!$X$4=2,"°F"))&"]" -> Air exhaust temp. heating [°C] | O14: ="Air exhaust temp. cooling ["&IF(cal!$X$4=1,"°C",IF(cal!$X$4=2,"°F"))&"]" -> Air exhaust temp. cooling [°C]
A15: =cal!$Z$1&" "&$R$15&" "&ROUND(cal!Y22,1)&IF(cal!$X$4=1," cm",IF(cal!$X$4=2," in"))&" "&$R$16&" "&ROUND(cal!AA22,1)&IF(cal!$X$4=1," cm",IF(cal!$X$4=2," in"))&" "&$R$17&" "&ROUND(cal!AC22,1)&IF(cal!$X$4=1," cm",IF(cal!$X$4=2," in"))&" (Type 1)" -> Micro Canal height 6 cm width 14 cm length 60 cm (Type 1) | Q15: Temp. | R15: height
Q16: heating! | R16: width
Q17: cooling! | R17: length
A21: =cal!$Z$1&" "&$R$15&" "&ROUND(cal!Y28,1)&IF(cal!$X$4=1," cm",IF(cal!$X$4=2," in"))&" "&$R$16&" "&ROUND(cal!AA28,1)&IF(cal!$X$4=1," cm",IF(cal!$X$4=2," in"))&" "&$R$17&" "&ROUND(cal!AC28,1)&IF(cal!$X$4=1," cm",IF(cal!$X$4=2," in"))&" (Type 2)" -> Micro Canal height 6 cm width 14 cm length 95 cm (Type 2)
A27: =cal!$Z$1&" "&$R$15&" "&ROUND(cal!Y34,1)&IF(cal!$X$4=1," cm",IF(cal!$X$4=2," in"))&" "&$R$16&" "&ROUND(cal!AA34,1)&IF(cal!$X$4=1," cm",IF(cal!$X$4=2," in"))&" "&$R$17&" "&ROUND(cal!AC34,1)&IF(cal!$X$4=1," cm",IF(cal!$X$4=2," in"))&" (Type 3)" -> Micro Canal height 6 cm width 14 cm length 130 cm (Type 3)
A33: =cal!$Z$1&" "&$R$15&" "&ROUND(cal!Y40,1)&IF(cal!$X$4=1," cm",IF(cal!$X$4=2," in"))&" "&$R$16&" "&ROUND(cal!AA40,1)&IF(cal!$X$4=1," cm",IF(cal!$X$4=2," in"))&" "&$R$17&" "&ROUND(cal!AC40,1)&IF(cal!$X$4=1," cm",IF(cal!$X$4=2," in"))&" (Type 4)" -> Micro Canal height 6 cm width 14 cm length 165 cm (Type 4)
A39: =cal!$Z$1&" "&$R$15&" "&ROUND(cal!Y46,1)&IF(cal!$X$4=1," cm",IF(cal!$X$4=2," in"))&" "&$R$16&" "&ROUND(cal!AA46,1)&IF(cal!$X$4=1," cm",IF(cal!$X$4=2," in"))&" "&$R$17&" "&ROUND(cal!AC46,1)&IF(cal!$X$4=1," cm",IF(cal!$X$4=2," in"))&" (Type 5)" -> Micro Canal height 6 cm width 14 cm length 200 cm (Type 5)
A45: =cal!$Z$1&" "&$R$15&" "&ROUND(cal!Y52,1)&IF(cal!$X$4=1," cm",IF(cal!$X$4=2," in"))&" "&$R$16&" "&ROUND(cal!AA52,1)&IF(cal!$X$4=1," cm",IF(cal!$X$4=2," in"))&" "&$R$17&" "&ROUND(cal!AC52,1)&IF(cal!$X$4=1," cm",IF(cal!$X$4=2," in"))&" (Type 6)" -> Micro Canal height 0 cm width 0 cm length 0 cm (Type 6)
A51: =cal!$Z$1&" "&$R$15&" "&ROUND(cal!Y58,1)&IF(cal!$X$4=1," cm",IF(cal!$X$4=2," in"))&" "&$R$16&" "&ROUND(cal!AA58,1)&IF(cal!$X$4=1," cm",IF(cal!$X$4=2," in"))&" "&$R$17&" "&ROUND(cal!AC58,1)&IF(cal!$X$4=1," cm",IF(cal!$X$4=2," in"))&" (Type 7)" -> Micro Canal height 0 cm width 0 cm length 0 cm (Type 7)
A57: =cal!$Z$1&" "&$R$15&" "&ROUND(cal!Y64,1)&IF(cal!$X$4=1," cm",IF(cal!$X$4=2," in"))&" "&$R$16&" "&ROUND(cal!AA64,1)&IF(cal!$X$4=1," cm",IF(cal!$X$4=2," in"))&" "&$R$17&" "&ROUND(cal!AC64,1)&IF(cal!$X$4=1," cm",IF(cal!$X$4=2," in"))&" (Type 8)" -> Micro Canal height 0 cm width 0 cm length 0 cm (Type 8)
A63: =cal!$Z$1&" "&$R$15&" "&ROUND(cal!Y70,1)&IF(cal!$X$4=1," cm",IF(cal!$X$4=2," in"))&" "&$R$16&" "&ROUND(cal!AA70,1)&IF(cal!$X$4=1," cm",IF(cal!$X$4=2," in"))&" "&$R$17&" "&ROUND(cal!AC70,1)&IF(cal!$X$4=1," cm",IF(cal!$X$4=2," in"))&" (Type 9)" -> Micro Canal height 0 cm width 0 cm length 0 cm (Type 9)
A69: *Values according to EN 16430 | M69: =cal!N70 -> v2022-06-01
A70: **Sound power according to ISO 3741:2010
A71: ***Sound pressure with an assumed room damping of 8dB(A)

Sheet ExtraTaal2 (hidden)
A2: Formulary
A4: Conditions
A6: Temperatures | L6: Altitude
A7: Heating: | F7: Cooling: | Q7: Copy all data
A8: ="Inlet temp." -> Inlet temp. | D8: =cal!E9 -> 75 | E8: =IF(cal!$X$4=1,"°C",IF(cal!$X$4=2,"°F")) -> °C | F8: =A8 -> Inlet temp. | J8: =cal!K9 -> 0 | K8: =E8 -> °C | L8: Unit conversion | Q8: SI-units
A9: ="Return temp." -> Return temp. | D9: =cal!E10 -> 65 | E9: =E8 -> °C | F9: =A9 -> Return temp. | J9: =cal!K10 -> 0 | K9: =E8 -> °C | Q9: Imperial-units
A10: ="Room temp." -> Room temp. | D10: =cal!E11 -> 20 | E10: =E8 -> °C | F10: =A10 -> Room temp. | J10: =cal!K11 -> 0 | K10: =E8 -> °C
F11: Relative humidity | J11: =cal!K12 -> 0
A14: Speed level: | B14: Control voltage [V] | C14: =CONCATENATE("Heat output * ",ROUND(D8,0),"/",ROUND(D9,0),"/",ROUND(D10,0)," ["&IF(cal!$X$4=1,"W",IF(cal!$X$4=2,"Btu/h"))&"]") -> Heat output * 75/65/20 [W] | D14: ="Water flowrate, heating ["&IF(cal!$X$4=1,"l/h",IF(cal!$X$4=2,"GPM"))&"]" -> Water flowrate, heating [l/h] | E14: ="Watersided pressure loss ["&IF(cal!$X$4=1,"kPa",IF(cal!$X$4=2,"inH2O"))&"]" -> Watersided pressure loss [kPa] | F14: =CONCATENATE("Sens. cooling capacity * ",ROUND(J8,0),"/",ROUND(J9,0),"/",ROUND(J10,0)," ["&IF(cal!$X$4=1,"W",IF(cal!$X$4=2,"Btu/h"))&"]") -> Sens. cooling capacity * 0/0/0 [W] | G14: =CONCATENATE("Tot. cooling capacity ",ROUND(J8,0),"/",ROUND(J9,0),"/",ROUND(J10,0)," ["&IF(cal!$X$4=1,"W",IF(cal!$X$4=2,"Btu/h"))&"]") -> Tot. cooling capacity 0/0/0 [W] | H14: ="Water flowrate, cooling ["&IF(cal!$X$4=1,"l/h",IF(cal!$X$4=2,"GPM"))&"]" -> Water flowrate, cooling [l/h] | I14: ="Watersided pressure loss ["&IF(cal!$X$4=1,"kPa",IF(cal!$X$4=2,"ftH2O"))&"]" -> Watersided pressure loss [kPa] | J14: Sound pressure *** [dB(A)] | K14: Sound power ** [dB(A)] | L14: Electrical power [W] | M14: ="Air flowrate ["&IF(cal!$X$4=1,"m³/h",IF(cal!$X$4=2,"CFM"))&"]" -> Air flowrate [m³/h] | N14: ="Air exhaust temp. heating ["&IF(cal!$X$4=1,"°C",IF(cal!$X$4=2,"°F"))&"]" -> Air exhaust temp. heating [°C] | O14: ="Air exhaust temp. cooling ["&IF(cal!$X$4=1,"°C",IF(cal!$X$4=2,"°F"))&"]" -> Air exhaust temp. cooling [°C]
A15: =cal!$Z$1&" "&$R$15&" "&ROUND(cal!Y22,1)&IF(cal!$X$4=1," cm",IF(cal!$X$4=2," in"))&" "&$R$16&" "&ROUND(cal!AA22,1)&IF(cal!$X$4=1," cm",IF(cal!$X$4=2," in"))&" "&$R$17&" "&ROUND(cal!AC22,1)&IF(cal!$X$4=1," cm",IF(cal!$X$4=2," in"))&" (Type 1)" -> Micro Canal height 6 cm width 14 cm length 60 cm (Type 1) | Q15: Temp. | R15: height
Q16: heating! | R16: width
Q17: cooling! | R17: length
A21: =cal!$Z$1&" "&$R$15&" "&ROUND(cal!Y28,1)&IF(cal!$X$4=1," cm",IF(cal!$X$4=2," in"))&" "&$R$16&" "&ROUND(cal!AA28,1)&IF(cal!$X$4=1," cm",IF(cal!$X$4=2," in"))&" "&$R$17&" "&ROUND(cal!AC28,1)&IF(cal!$X$4=1," cm",IF(cal!$X$4=2," in"))&" (Type 2)" -> Micro Canal height 6 cm width 14 cm length 95 cm (Type 2)
A27: =cal!$Z$1&" "&$R$15&" "&ROUND(cal!Y34,1)&IF(cal!$X$4=1," cm",IF(cal!$X$4=2," in"))&" "&$R$16&" "&ROUND(cal!AA34,1)&IF(cal!$X$4=1," cm",IF(cal!$X$4=2," in"))&" "&$R$17&" "&ROUND(cal!AC34,1)&IF(cal!$X$4=1," cm",IF(cal!$X$4=2," in"))&" (Type 3)" -> Micro Canal height 6 cm width 14 cm length 130 cm (Type 3)
A33: =cal!$Z$1&" "&$R$15&" "&ROUND(cal!Y40,1)&IF(cal!$X$4=1," cm",IF(cal!$X$4=2," in"))&" "&$R$16&" "&ROUND(cal!AA40,1)&IF(cal!$X$4=1," cm",IF(cal!$X$4=2," in"))&" "&$R$17&" "&ROUND(cal!AC40,1)&IF(cal!$X$4=1," cm",IF(cal!$X$4=2," in"))&" (Type 4)" -> Micro Canal height 6 cm width 14 cm length 165 cm (Type 4)
A39: =cal!$Z$1&" "&$R$15&" "&ROUND(cal!Y46,1)&IF(cal!$X$4=1," cm",IF(cal!$X$4=2," in"))&" "&$R$16&" "&ROUND(cal!AA46,1)&IF(cal!$X$4=1," cm",IF(cal!$X$4=2," in"))&" "&$R$17&" "&ROUND(cal!AC46,1)&IF(cal!$X$4=1," cm",IF(cal!$X$4=2," in"))&" (Type 5)" -> Micro Canal height 6 cm width 14 cm length 200 cm (Type 5)
A45: =cal!$Z$1&" "&$R$15&" "&ROUND(cal!Y52,1)&IF(cal!$X$4=1," cm",IF(cal!$X$4=2," in"))&" "&$R$16&" "&ROUND(cal!AA52,1)&IF(cal!$X$4=1," cm",IF(cal!$X$4=2," in"))&" "&$R$17&" "&ROUND(cal!AC52,1)&IF(cal!$X$4=1," cm",IF(cal!$X$4=2," in"))&" (Type 6)" -> Micro Canal height 0 cm width 0 cm length 0 cm (Type 6)
A51: =cal!$Z$1&" "&$R$15&" "&ROUND(cal!Y58,1)&IF(cal!$X$4=1," cm",IF(cal!$X$4=2," in"))&" "&$R$16&" "&ROUND(cal!AA58,1)&IF(cal!$X$4=1," cm",IF(cal!$X$4=2," in"))&" "&$R$17&" "&ROUND(cal!AC58,1)&IF(cal!$X$4=1," cm",IF(cal!$X$4=2," in"))&" (Type 7)" -> Micro Canal height 0 cm width 0 cm length 0 cm (Type 7)
A57: =cal!$Z$1&" "&$R$15&" "&ROUND(cal!Y64,1)&IF(cal!$X$4=1," cm",IF(cal!$X$4=2," in"))&" "&$R$16&" "&ROUND(cal!AA64,1)&IF(cal!$X$4=1," cm",IF(cal!$X$4=2," in"))&" "&$R$17&" "&ROUND(cal!AC64,1)&IF(cal!$X$4=1," cm",IF(cal!$X$4=2," in"))&" (Type 8)" -> Micro Canal height 0 cm width 0 cm length 0 cm (Type 8)
A63: =cal!$Z$1&" "&$R$15&" "&ROUND(cal!Y70,1)&IF(cal!$X$4=1," cm",IF(cal!$X$4=2," in"))&" "&$R$16&" "&ROUND(cal!AA70,1)&IF(cal!$X$4=1," cm",IF(cal!$X$4=2," in"))&" "&$R$17&" "&ROUND(cal!AC70,1)&IF(cal!$X$4=1," cm",IF(cal!$X$4=2," in"))&" (Type 9)" -> Micro Canal height 0 cm width 0 cm length 0 cm (Type 9)
A69: *Values according to EN 16430 | M69: =cal!N70 -> v2022-06-01
A70: **Sound power according to ISO 3741:2010
A71: ***Sound pressure with an assumed room damping of 8dB(A)

Sheet ExtraTaal3 (hidden)
A2: Formulary
A4: Conditions
A6: Temperatures | L6: Altitude
A7: Heating: | F7: Cooling: | Q7: Copy all data
A8: ="Inlet temp." -> Inlet temp. | D8: =cal!E9 -> 75 | E8: =IF(cal!$X$4=1,"°C",IF(cal!$X$4=2,"°F")) -> °C | F8: =A8 -> Inlet temp. | J8: =cal!K9 -> 0 | K8: =E8 -> °C | L8: Unit conversion | Q8: SI-units
A9: ="Return temp." -> Return temp. | D9: =cal!E10 -> 65 | E9: =E8 -> °C | F9: =A9 -> Return temp. | J9: =cal!K10 -> 0 | K9: =E8 -> °C | Q9: Imperial-units
A10: ="Room temp." -> Room temp. | D10: =cal!E11 -> 20 | E10: =E8 -> °C | F10: =A10 -> Room temp. | J10: =cal!K11 -> 0 | K10: =E8 -> °C
F11: Relative humidity | J11: =cal!K12 -> 0
A14: Speed level: | B14: Control voltage [V] | C14: =CONCATENATE("Heat output * ",ROUND(D8,0),"/",ROUND(D9,0),"/",ROUND(D10,0)," ["&IF(cal!$X$4=1,"W",IF(cal!$X$4=2,"Btu/h"))&"]") -> Heat output * 75/65/20 [W] | D14: ="Water flowrate, heating ["&IF(cal!$X$4=1,"l/h",IF(cal!$X$4=2,"GPM"))&"]" -> Water flowrate, heating [l/h] | E14: ="Watersided pressure loss ["&IF(cal!$X$4=1,"kPa",IF(cal!$X$4=2,"inH2O"))&"]" -> Watersided pressure loss [kPa] | F14: =CONCATENATE("Sens. cooling capacity * ",ROUND(J8,0),"/",ROUND(J9,0),"/",ROUND(J10,0)," ["&IF(cal!$X$4=1,"W",IF(cal!$X$4=2,"Btu/h"))&"]") -> Sens. cooling capacity * 0/0/0 [W] | G14: =CONCATENATE("Tot. cooling capacity ",ROUND(J8,0),"/",ROUND(J9,0),"/",ROUND(J10,0)," ["&IF(cal!$X$4=1,"W",IF(cal!$X$4=2,"Btu/h"))&"]") -> Tot. cooling capacity 0/0/0 [W] | H14: ="Water flowrate, cooling ["&IF(cal!$X$4=1,"l/h",IF(cal!$X$4=2,"GPM"))&"]" -> Water flowrate, cooling [l/h] | I14: ="Watersided pressure loss ["&IF(cal!$X$4=1,"kPa",IF(cal!$X$4=2,"ftH2O"))&"]" -> Watersided pressure loss [kPa] | J14: Sound pressure *** [dB(A)] | K14: Sound power ** [dB(A)] | L14: Electrical power [W] | M14: ="Air flowrate ["&IF(cal!$X$4=1,"m³/h",IF(cal!$X$4=2,"CFM"))&"]" -> Air flowrate [m³/h] | N14: ="Air exhaust temp. heating ["&IF(cal!$X$4=1,"°C",IF(cal!$X$4=2,"°F"))&"]" -> Air exhaust temp. heating [°C] | O14: ="Air exhaust temp. cooling ["&IF(cal!$X$4=1,"°C",IF(cal!$X$4=2,"°F"))&"]" -> Air exhaust temp. cooling [°C]
A15: =cal!$Z$1&" "&$R$15&" "&ROUND(cal!Y22,1)&IF(cal!$X$4=1," cm",IF(cal!$X$4=2," in"))&" "&$R$16&" "&ROUND(cal!AA22,1)&IF(cal!$X$4=1," cm",IF(cal!$X$4=2," in"))&" "&$R$17&" "&ROUND(cal!AC22,1)&IF(cal!$X$4=1," cm",IF(cal!$X$4=2," in"))&" (Type 1)" -> Micro Canal height 6 cm width 14 cm length 60 cm (Type 1) | Q15: Temp. | R15: height
Q16: heating! | R16: width
Q17: cooling! | R17: length
A21: =cal!$Z$1&" "&$R$15&" "&ROUND(cal!Y28,1)&IF(cal!$X$4=1," cm",IF(cal!$X$4=2," in"))&" "&$R$16&" "&ROUND(cal!AA28,1)&IF(cal!$X$4=1," cm",IF(cal!$X$4=2," in"))&" "&$R$17&" "&ROUND(cal!AC28,1)&IF(cal!$X$4=1," cm",IF(cal!$X$4=2," in"))&" (Type 2)" -> Micro Canal height 6 cm width 14 cm length 95 cm (Type 2)
A27: =cal!$Z$1&" "&$R$15&" "&ROUND(cal!Y34,1)&IF(cal!$X$4=1," cm",IF(cal!$X$4=2," in"))&" "&$R$16&" "&ROUND(cal!AA34,1)&IF(cal!$X$4=1," cm",IF(cal!$X$4=2," in"))&" "&$R$17&" "&ROUND(cal!AC34,1)&IF(cal!$X$4=1," cm",IF(cal!$X$4=2," in"))&" (Type 3)" -> Micro Canal height 6 cm width 14 cm length 130 cm (Type 3)
A33: =cal!$Z$1&" "&$R$15&" "&ROUND(cal!Y40,1)&IF(cal!$X$4=1," cm",IF(cal!$X$4=2," in"))&" "&$R$16&" "&ROUND(cal!AA40,1)&IF(cal!$X$4=1," cm",IF(cal!$X$4=2," in"))&" "&$R$17&" "&ROUND(cal!AC40,1)&IF(cal!$X$4=1," cm",IF(cal!$X$4=2," in"))&" (Type 4)" -> Micro Canal height 6 cm width 14 cm length 165 cm (Type 4)
A39: =cal!$Z$1&" "&$R$15&" "&ROUND(cal!Y46,1)&IF(cal!$X$4=1," cm",IF(cal!$X$4=2," in"))&" "&$R$16&" "&ROUND(cal!AA46,1)&IF(cal!$X$4=1," cm",IF(cal!$X$4=2," in"))&" "&$R$17&" "&ROUND(cal!AC46,1)&IF(cal!$X$4=1," cm",IF(cal!$X$4=2," in"))&" (Type 5)" -> Micro Canal height 6 cm width 14 cm length 200 cm (Type 5)
A45: =cal!$Z$1&" "&$R$15&" "&ROUND(cal!Y52,1)&IF(cal!$X$4=1," cm",IF(cal!$X$4=2," in"))&" "&$R$16&" "&ROUND(cal!AA52,1)&IF(cal!$X$4=1," cm",IF(cal!$X$4=2," in"))&" "&$R$17&" "&ROUND(cal!AC52,1)&IF(cal!$X$4=1," cm",IF(cal!$X$4=2," in"))&" (Type 6)" -> Micro Canal height 0 cm width 0 cm length 0 cm (Type 6)
A51: =cal!$Z$1&" "&$R$15&" "&ROUND(cal!Y58,1)&IF(cal!$X$4=1," cm",IF(cal!$X$4=2," in"))&" "&$R$16&" "&ROUND(cal!AA58,1)&IF(cal!$X$4=1," cm",IF(cal!$X$4=2," in"))&" "&$R$17&" "&ROUND(cal!AC58,1)&IF(cal!$X$4=1," cm",IF(cal!$X$4=2," in"))&" (Type 7)" -> Micro Canal height 0 cm width 0 cm length 0 cm (Type 7)
A57: =cal!$Z$1&" "&$R$15&" "&ROUND(cal!Y64,1)&IF(cal!$X$4=1," cm",IF(cal!$X$4=2," in"))&" "&$R$16&" "&ROUND(cal!AA64,1)&IF(cal!$X$4=1," cm",IF(cal!$X$4=2," in"))&" "&$R$17&" "&ROUND(cal!AC64,1)&IF(cal!$X$4=1," cm",IF(cal!$X$4=2," in"))&" (Type 8)" -> Micro Canal height 0 cm width 0 cm length 0 cm (Type 8)
A63: =cal!$Z$1&" "&$R$15&" "&ROUND(cal!Y70,1)&IF(cal!$X$4=1," cm",IF(cal!$X$4=2," in"))&" "&$R$16&" "&ROUND(cal!AA70,1)&IF(cal!$X$4=1," cm",IF(cal!$X$4=2," in"))&" "&$R$17&" "&ROUND(cal!AC70,1)&IF(cal!$X$4=1," cm",IF(cal!$X$4=2," in"))&" (Type 9)" -> Micro Canal height 0 cm width 0 cm length 0 cm (Type 9)
A69: *Values according to EN 16430 | M69: =cal!N70 -> v2022-06-01
A70: **Sound power according to ISO 3741:2010
A71: ***Sound pressure with an assumed room damping of 8dB(A)
